Workbook

Sheet HOME
H1: SHRP2 Risk Management Template
A2: HELP | J2: Home
G8: PROJECT INFORMATION
B10: AGENCY : | F10: Federal Highway Administration | N10: FACILITATOR : | Q10: Carlos F Figueroa
B12: LOCATION : | F12: QDOT District 1 | N12: PROJECT MANAGER : | Q12: Luis Millan
B14: PROJECT NAME : | F14: QDOT Example | N14: DATE : | Q14: 42247
B16: PROJECT DESCRIPTION : | F16: QDOT Example R09 Guidebook | N16: VERSION : | Q16: 1
B20: RISK MANAGEMENT TEMPLATE STEPS
H23: Enter base project information (schedule, cost, etc.).
H25: Create list of potential risks.
H27: Enter values for scales used to assess risk severity.
H29: Enter severity information for each risk to assess risk impact.
H31: View unmitigated risks ranked by mean severity value.
H33: View impact of unmitigated risks on project performance and schedule.
H35: View graphical ranking of unmitigated risks.
H37: Enter mitigation strategies for risks selected to be mitigated.
H39: View summary of mitigation strategies selected for each mitigated risk.
H41: View mitigated risks ranked by mean severity value.
H43: View impact of mitigated risks on project performance and schedule.
H45: View graphical ranking of mitigated risks.

Sheet 1-Hidden (hidden)
A1: Design-Bid-Build
A2: Project Start Date | C2: 41674
A3: Target Date for Start of Operations | C3: 41764
A4: Schedule Value
B6: Months/Date | C6: Early Start | D6: Early Finish | E6: Late Start | F6: Late Finish | G6: Float | I6: 3
A7: Planning | B7: 0 | C7: ='1 - Project Structuring'!$E$15 -> 40148 | D7: =IF(OR(C7="",B7=""),"",C7+(B7*30.4)) -> 40148 | E7: =IF(OR(F7="",B7=""),"",F7-(B7*30.4)) -> 40148 | F7: =IF(E8 = "", "",E8) -> 40148 | G7: =IF(OR(F7 ="",D7 =""),"",(F7-D7)/30.4) -> 0 | I7: 2
A8: Scoping | B8: 0 | C8: =IF(D7="","",D7) -> 40148 | D8: =IF(OR(C8="",B8=""),"",C8+(B8*30.4)) -> 40148 | E8: =IF(OR(F8="",B8=""),"",F8-(B8*30.4)) -> 40148 | F8: =IF(E10 = "", "",E10) -> 40148 | G8: 0 | I8: 42522
A9: Design Funding Date | B9: 40148 | D9: =IF(B9 ="", "",B9) -> 40148 | F9: =IF(E10 = "", "",E10) -> 40148 | G9: =IF(OR(F9 ="",D9 =""),"",(F9-D9)/30.4) -> 0 | I9: 6
A10: Prelim Design/Environmental Process | B10: 12 | C10: =IF(OR(D9="",D8=""),"",MAX(D9,D8)) -> 40148 | D10: =IF(OR(C10="",B10=""),"",C10+(B10*30.4)) -> 40512.8 | E10: =IF(OR(F10="",B10=""),"",F10-(B10*30.4)) -> 40148 | F10: =IF(OR(E11="",E13="",E14=""),"",MIN(E11,E13,E14)) -> 40512.8 | G10: =IF(OR(F10 ="",D10 =""),"",(F10-D10)/30.4) -> 0 | I10: 6
A11: Environmental Permits | B11: 6 | C11: =IF(D10="","",D10) -> 40512.8 | D11: =IF(OR(C11="",B11=""),"",C11+(B11*30.4)) -> 40695.2 | E11: 40695.2 | F11: =IF(E16 = "", "",E16) -> 40877.6 | G11: =IF(OR(F11 ="",D11 =""),"",(F11-D11)/30.4) -> 6 | I11: 42736
A12: ROW/Util/RR Funding Date | B12: 40148 | D12: =IF(B12="","",B12) -> 40148 | E12: -1179621.6 | F12: =IF(OR(F13="", ),"",F13-('1 - Project Structuring'!$J$42*30.4)) -> 40877.6 | G12: 24 | I12: 5
A13: ROW/Util/RR | B13: 12 | C13: =IF(D10="","",D10) -> 40512.8 | D13: =IF(OR(C13="",B13="",),"",MAX(C13 +(B13*30.4),D12+('1 - Project Structuring'!$J$42*30.4))) -> 40877.6 | E13: 40512.8 | F13: =IF(E16="","",E16) -> 40877.6 | G13: 0 | I13: 4
A14: Final Design | B14: 6 | C14: =IF(D10="","",D10) -> 40512.8 | D14: =IF(OR(C14="",B14=""),"",C14+(B14*30.4)) -> 40695.2 | E14: 40695.2 | F14: =IF(E16="","",E16) -> 40877.6 | G14: 6 | I14: 43101
A15: Construction Funding Date | B15: 40148 | D15: =IF(B15="","",B15) -> 40148 | E15: -1179621.6 | F15: =IF(E16="","",E16) -> 40877.6 | G15: 24 | I15: 8
A16: Procurement | B16: 6 | C16: =IF(OR(D15="",D11="",D13="",D14=""),"",MAX(D15,D11,D13,D14)) -> 40877.6 | D16: =IF(OR(C16="",B16=""),"",C16+(B16*30.4)) -> 41060 | E16: 40877.6 | F16: =IF(E17="","",E17) -> 41060 | G16: 0 | I16: 23
A17: Construction | B17: 16 | C17: =IF(D16="","",D16) -> 41060 | D17: =IF(OR(C17="",B17=""),"",C17+(B17*30.4)) -> 41546.4 | E17: 41060 | F17: =IF(E18="","",E18) -> 41546.4 | G17: 0
A18: Operations & Maintenance | B18: ='1 - Project Structuring'!D65 *12 -> 600 | C18: =IF(D17="","",D17) -> 41546.4 | D18: =IF(OR(C18="",B18=""),"",C18+(B18*30.4)) -> 59786.4 | E18: 41546.4 | F18: =IF(E19="","",E19) -> 59786.4
A19: Replacement | B19: 0 | C19: =IF(D18="","",D18) -> 59786.4 | D19: =IF(OR(C19="",B19=""),"",C19+(B19*30.4)) -> 59786.4 | E19: 59786.4 | F19: =IF(D19="","",D19) -> 59786.4
A21: Design-Build
A22: Project Start Date
A23: Target Date for Start of Operations
A24: Schedule Value
B26: Months/Date | C26: Early Start | D26: Early Finish | E26: Late Start | F26: Late Finish | G26: Float
A27: Planning | B27: 0 | C27: ='1 - Project Structuring'!$E$15 -> 40148 | D27: =IF(OR(C27="",B27=""),"",C27+(B27*30.4)) -> 40148 | E27: =IF(OR(F27="",B27=""),"",F27-(B27*30.4)) -> 40148 | F27: =IF(E28 = "", "",E28) -> 40148 | G27: =IF(OR(F27 ="",D27 =""),"",(F27-D27)/30.4) -> 0 | I27: 3
A28: Scoping | B28: 0 | C28: =IF(D27="","",D27) -> 40148 | D28: =IF(OR(C28="",B28=""),"",C28+(B28*30.4)) -> 40148 | E28: =IF(OR(F28="",B28=""),"",F28-(B28*30.4)) -> 40148 | F28: =IF(E30 = "", "",E30) -> 40148 | G28: =IF(OR(F28 ="",D28 =""),"",(F28-D28)/30.4) -> 0 | I28: 2
A29: Design Funding Date | B29: 40148 | D29: =IF(B29 ="", "",B29) -> 40148 | F29: =IF(E30 = "", "",E30) -> 40148 | G29: 0 | I29: 43101
A30: Prelim Design/Environmental Process | B30: 12 | C30: =IF(OR(D29="",D28=""),"",MAX(D29,D28)) -> 40148 | D30: =IF(OR(C30="",B30=""),"",C30+(B30*30.4)) -> 40512.8 | E30: =IF(OR(F30="",B30=""),"",F30-(B30*30.4)) -> 40148 | F30: =IF(OR(E31="",E33="",E35=""),"",MIN(E31,E33,E35)) -> 40512.8 | G30: 0 | I30: 6
A31: Environmental Permits | B31: 6 | C31: =IF(D30="","",D30) -> 40512.8 | D31: =IF(OR(C31="",B31=""),"",C31+(B31*30.4)) -> 40695.2 | E31: =IF(OR(F31="",B31=""),"",F31-(B31*30.4)) -> 40512.8 | F31: =IF(OR(E37="",F35="",F33=""),"",MIN(E37,F35-('1 - Project Structuring'!$J$39*30.4)+('1 - Project Structuring'!$J$38*30.4),F33-('1 - Project Structuring'!$J$41*30.4)+('1 - Project Structuring'!$J$40*30.4))) -> 40695.2 | G31: 0 | I31: 6
A32: ROW/Util/RR Funding Date | B32: 40148 | D32: =IF(B32="","",B32) -> 40148 | F32: =IF(OR(F33=""),"",F33-('1 - Project Structuring'!$J$42*30.4)) -> 40877.6 | G32: 24 | I32: 43282
A33: ROW/Util/RR | B33: 12 | C33: =IF(D30="","",D30) -> 40512.8 | D33: =IF(OR(C33="",B33="",D32=""),"",MAX(C33+(B33*30.4),D32+('1 - Project Structuring'!$J$42*30.4),D31-('1 - Project Structuring'!$J$40*30.4)+('1 - Project Structuring'!$J$41*30.4))) -> 40877.6 | E33: =IF(OR(F33="",B33=""),"",F33-(B33*30.4)) -> 40512.8 | F33: =IF(OR(E37="",F37=""),"",MIN(E37+('1 - Project Structuring'!$J$43*30.4),F37-('1 - Project Structuring'!$J$46*30.4),F35-('1 - Project Structuring'!$J$48*30.4)+('1 - Project Structuring'!$J$47*30.4))) -> 40877.6 | G33: 0 | I33: 3
A34: Construction Funding Date | B34: 40148 | D34: =IF(B34="","",B34) -> 40148 | F34: =IF(E35="","",E35) -> 40512.8 | G34: 12 | I34: 43831
A35: Procurement | B35: 6 | C35: =IF(OR(D34="",D30=""),"",MAX(D34,D30)) -> 40512.8 | D35: =IF(OR(C35="",B35="",D31="",D33=""),"",MAX(C35+(B35*30.4),D31-('1 - Project Structuring'!$J$38*30.4)+('1 - Project Structuring'!$J$39*30.4),D33-('1 - Project Structuring'!$J$47*30.4)+('1 - Project Structuring'!$J$48*30.4))) -> 40695.2 | E35: =IF(OR(F35="",B35=""),"",F35-(B35*30.4)) -> 40512.8 | F35: =IF(E36="","",E36) -> 40695.2 | G35: 0 | I35: 8
A36: Final Design | B36: 6 | C36: =IF(D35="","",D35) -> 40695.2 | D36: =IF(OR(C36="",B36=""),"",C36+(B36*30.4)) -> 40877.6 | E36: =IF(OR(F36="",B36="",E37=""),"",MIN(F36-(B36*30.4),E37-('1 - Project Structuring'!$J$44*30.4))) -> 40695.2 | F36: =IF(OR(F37=""),"",F37-('1 - Project Structuring'!$J$45*30.4)) -> 41034.825 | G36: 5.171875 | I36: 10
A37: Construction | B37: 16.171875 | C37: =IF(OR(D31="",C36="",,D33=""),"",MAX(D31,C36+('1 - Project Structuring'!$J$44*30.4),D33-('1 - Project Structuring'!$J$43*30.4))) -> 40725.6 | D37: =IF(OR(C37="",B37="",D36="",D33=""),"",MAX(C37+(B37*30.4),D36+('1 - Project Structuring'!$J$45*30.4),D33+('1 - Project Structuring'!$J$46*30.4))) -> 41217.225 | E37: =IF(OR(F37="",B37=""),"",F37-(B37*30.4)) -> 40725.6 | F37: =IF(D37="","",D37) -> 41217.225 | G37: 0 | I37: 18
A38: Operations & Maintenance | B38: 600 | C38: =IF(OR(C37="",B37=""),"",C37+(B37*30.4)) -> 41217.225 | D38: =IF(OR(C38="",B38=""),"",C38+(B38*30.4)) -> 59457.225 | E38: =IF(OR(F38="",B38=""),"",F38-(B38*30.4)) -> 41217.225 | F38: =IF(E39="","",E39) -> 59457.225
A39: Replacement | B39: 0 | C39: =IF(D38="","",D38) -> 59457.225 | D39: =IF(OR(C39="",B39=""),"",C39+(B39*30.4)) -> 59457.225 | E39: =IF(OR(F39="",B39=""),"",F39-(B39*30.4)) -> 59457.225 | F39: =IF(D39="","",D39) -> 59457.225
A40: Risk Brainstorm Help Table
A41: Planning | B41: PL
A42: Scoping | B42: SC
A43: Design Funding | B43: F1
A44: Prelim Design/Environmental Process | B44: PD
A45: Environmental Permits | B45: EP
A46: ROW/Util/RR Funding | B46: F2
A47: ROW/Util/RR | B47: RR
A48: Final Design | B48: FD
A49: Construction Funding | B49: F3
A50: Procurement | B50: PR
A51: Construction | B51: CR
A52: Operations & Maintenance | B52: OM
A53: Replacement | B53: RP
A55: Risk Type List
A56: Threat
A57: Opportunity
A60: Impact of Probability of Risk | B60: Rating | C60: 0.3
A61: Definite | B61: 4 | C61: =1-(($B$61-$B61)*(1-$C$60)/4) -> 1
A62: Almost Certain | B62: 3 | C62: =1-(($B$61-$B62)*(1-$C$60)/4) -> 0.825
A63: More Likely | B63: 2 | C63: =1-(($B$61-$B63)*(1-$C$60)/4) -> 0.65
A64: Slightly More Likely | B64: 1 | C64: 0.475
A65: No Change | B65: 0 | C65: 0.3
A66: Slightly Less Likely | B66: -1 | C66: =$C$60-(((ABS(B66))/4)*$C$60) -> 0.225
A67: Less Likely | B67: -2 | C67: =$C$60-(((ABS(B67))/4)*$C$60) -> 0.15
A68: Rare | B68: -3 | C68: 0.075
A69: Eliminate | B69: -4 | C69: 0
A71: Strategy Select
A72: Yes
A73: No
A75: Phases - Cost & Disruption
A76: Planning
A77: Scoping
A78: Prelim Design/Environmental Process
A79: Environmental Permits
A80: ROW/Util/RR
A81: Final Design
A82: Procurement
A83: Construction
A84: Operations & Maintenance
A85: Replacement
A87: Phases - Duration
A88: Planning
A89: Scoping
A90: Design Funding
A91: Prelim Design/Environmental Process
A92: Environmental Permits
A93: ROW/Util/RR Funding
A94: ROW/Util/RR
A95: Final Design
A96: Construction Funding
A97: Procurement
A98: Construction
A100: Input for copying charts
A101: Copy Thrt_Unmit? | B101: TRUE
A102: Copy Opp_Unmit? | B102: TRUE
A103: Copy Thrt_Mit? | B103: TRUE
A104: Copy Opp_Mit? | B104: TRUE
A106: Start Row - Risk Mitigation | B106: 67
A108: Sheet Names
A109: 1 - Project Structuring
A110: 2 - Risk Identification
A111: 3 - Risk Scale
A112: 4 - Unmit. Risk Assessment
A113: 5 - Unmit. Risk Register
A114: 6 - Unmit. Project Performance
A115: 7 - Unmit. Risk Ranking Plots
A116: 8 - Risk Mitigation Strategies
A117: 9 - Mit. Strategies Register
A118: 10 - Mit. Risk Register
A119: 11 - Mit. Project Performance
A120: 12 - Mit. Risk Ranking Plots
A121: 13 - Summary Report

Sheet 1 - Project Structuring
D1: SHRP2 Risk Management Template
B2: HELP | D2: Step 01 - Project Structuring
C6: ANALYSIS - Select the "Analysis" button on the left to enter values in the "Analysis" portion of this sheet
C7: Project Delivery Method | D7: Design-Build | F7: Include Operations, Maintenance, & Replacement? | J7: Yes
C9: Selected Perfomance Measures | D9: Schedule
D10: Cost
D11: Disruption
C14: SCHEDULE
C15: Project Start Date | E15: 40148
C16: Target Date for Start of Operations | D16: (Open to Traffic Date) | E16: 41212
C17: Schedule Value ($M/month) | E17: 0.1
C19: Project Phase | D19: Months/Date | E19: Early Start | F19: Early Finish | G19: Late Start | H19: Late Finish | I19: Float (months)
C20: Planning | D20: 0 | E20: ='1 - Project Structuring'!$E$15 -> 40148 | F20: =IF(OR(E20="",D20=""),"",E20+(D20*30.4)) -> 40148 | G20: =IF(OR(H20="",D20=""),"",H20-(D20*30.4)) -> 40148 | H20: =IF(G21 = "", "",G21) -> 40148 | I20: =IF(OR(H20 ="",F20 =""),"",(H20-F20)/30.4) -> 0
C21: Scoping | D21: 0 | E21: =IF(F20="","",F20) -> 40148 | F21: =IF(OR(E21="",D21=""),"",E21+(D21*30.4)) -> 40148 | G21: =IF(OR(H21="",D21=""),"",H21-(D21*30.4)) -> 40148 | H21: =IF(G23 = "", "",G23) -> 40148 | I21: =IF(OR(H21 ="",F21 =""),"",(H21-F21)/30.4) -> 0
C22: Design Funding Date | D22: 40148 | F22: =IF(D22 ="", "",D22) -> 40148 | H22: =IF(G23 = "", "",G23) -> 40148 | I22: 0
C23: Prelim Design/Environmental Process | D23: 12 | E23: =IF(OR(F22="",F21=""),"",MAX(F22,F21)) -> 40148 | F23: =IF(OR(E23="",D23=""),"",E23+(D23*30.4)) -> 40512.8 | G23: =IF(OR(H23="",D23=""),"",H23-(D23*30.4)) -> 40148 | H23: =IF(OR(G24="",G26="",G28=""),"",MIN(G24,G26,G28)) -> 40512.8 | I23: 0
C24: Environmental Permits | D24: 6 | E24: =IF(F23="","",F23) -> 40512.8 | F24: =IF(OR(E24="",D24=""),"",E24+(D24*30.4)) -> 40695.2 | G24: =IF(OR(H24="",D24=""),"",H24-(D24*30.4)) -> 40512.8 | H24: =IF(OR(G30="",H28="",H26=""),"",MIN(G30,H28-('1 - Project Structuring'!$J$39*30.4)+('1 - Project Structuring'!$J$38*30.4),H26-('1 - Project Structuring'!$J$41*30.4)+('1 - Project Structuring'!$J$40*30.4))) -> 40695.2 | I24: 0
C25: ROW/Util/RR Funding Date | D25: 40148 | F25: =IF(D25="","",D25) -> 40148 | H25: =IF(OR(H26=""),"",H26-('1 - Project Structuring'!$J$42*30.4)) -> 40877.6 | I25: 24
C26: ROW/Util/RR | D26: 12 | E26: =IF(F23="","",F23) -> 40512.8 | F26: =IF(OR(E26="",D26="",F25=""),"",MAX(E26+(D26*30.4),F25+('1 - Project Structuring'!$J$42*30.4),F24-('1 - Project Structuring'!$J$40*30.4)+('1 - Project Structuring'!$J$41*30.4))) -> 40877.6 | G26: =IF(OR(H26="",D26=""),"",H26-(D26*30.4)) -> 40512.8 | H26: =IF(OR(G30="",H30=""),"",MIN(G30+('1 - Project Structuring'!$J$43*30.4),H30-('1 - Project Structuring'!$J$46*30.4),H28-('1 - Project Structuring'!$J$48*30.4)+('1 - Project Structuring'!$J$47*30.4))) -> 40877.6 | I26: 0
C27: Construction Funding Date | D27: 40148 | F27: =IF(D27="","",D27) -> 40148 | H27: =IF(G28="","",G28) -> 40512.8 | I27: 12
C28: Procurement | D28: 6 | E28: =IF(OR(F27="",F23=""),"",MAX(F27,F23)) -> 40512.8 | F28: =IF(OR(E28="",D28="",F24="",F26=""),"",MAX(E28+(D28*30.4),F24-('1 - Project Structuring'!$J$38*30.4)+('1 - Project Structuring'!$J$39*30.4),F26-('1 - Project Structuring'!$J$47*30.4)+('1 - Project Structuring'!$J$48*30.4))) -> 40695.2 | G28: =IF(OR(H28="",D28=""),"",H28-(D28*30.4)) -> 40512.8 | H28: =IF(G29="","",G29) -> 40695.2 | I28: 0
C29: Final Design | D29: 6 | E29: =IF(F28="","",F28) -> 40695.2 | F29: =IF(OR(E29="",D29=""),"",E29+(D29*30.4)) -> 40877.6 | G29: =IF(OR(H29="",D29="",G30=""),"",MIN(H29-(D29*30.4),G30-('1 - Project Structuring'!$J$44*30.4))) -> 40695.2 | H29: =IF(OR(H30=""),"",H30-('1 - Project Structuring'!$J$45*30.4)) -> 41029.6 | I29: 5
C30: Construction | D30: 16 | E30: =IF(OR(F24="",E29="",,F26=""),"",MAX(F24,E29+('1 - Project Structuring'!$J$44*30.4),F26-('1 - Project Structuring'!$J$43*30.4))) -> 40725.6 | F30: =IF(OR(E30="",D30="",F29="",F26=""),"",MAX(E30+(D30*30.4),F29+('1 - Project Structuring'!$J$45*30.4),F26+('1 - Project Structuring'!$J$46*30.4))) -> 41212 | G30: =IF(OR(H30="",D30=""),"",H30-(D30*30.4)) -> 40725.6 | H30: =IF(F30="","",F30) -> 41212 | I30: 0
C31: Operations & Maintenance | D31: 600 | E31: =IF(OR(E30="",D30=""),"",E30+(D30*30.4)) -> 41212 | F31: =IF(OR(E31="",D31=""),"",E31+(D31*30.4)) -> 59452 | G31: =IF(OR(H31="",D31=""),"",H31-(D31*30.4)) -> 41212 | H31: =IF(G32="","",G32) -> 59452
C32: Replacement | D32: 0 | E32: =IF(F31="","",F31) -> 59452 | F32: =IF(OR(E32="",D32=""),"",E32+(D32*30.4)) -> 59452 | G32: =IF(OR(H32="",D32=""),"",H32-(D32*30.4)) -> 59452 | H32: =IF(F32="","",F32) -> 59452
C34: SCHEDULE LAG
C35: Include Schedule Lag? | D35: Yes
D37: Schedule Lag Parameters - Description | J37: Months
C38: Lag A - Time remaining from the finish of Environmental permitting to Lag B | J38: 0
C39: Lag B - Time remaining after completion of Environmental Permitting to finish of Procurement | J39: 0
C40: Lag C - Lag remaining from finish of Environmental permits to Lag D | J40: 0
C41: Lag D - Time remaining after the completion of Environmental Permitting to the completion of ROW/Utilities/RR | J41: 0
C42: Lag E - Time remaining to finish ROW/Utilities/RR after the ROW/Utilities/RR funding date | J42: 0
C43: Lag F - Time elapsed from the completion of ROW/Utilities/RR to start of Construction | J43: 6
C44: Lag G - Time elapsed after the start of Final Design to start of Construction | J44: 1
C45: Lag H - Time remaining after the finish of Final Design to finish of Construction | J45: 6
C46: Lag I - Time remaining after finish of ROW/UTL/RR to finish of Construction | J46: 10
C47: Lag J - Time remaining after finish of ROW/Utilities/RR to Lag K | J47: 6
C48: Lag K - Time remaining from finish of ROW/Utilities/RR to finish of Procurement | J48: 0
C51: BASE COST (in Current Year and Year of Expenditure Dollars)
C52: Project Phase | D52: Base Cost (CY $M) | E52: Base Cost + Overhead Cost (CY $M) | F52: Base Cost + Overhead Cost (YOE $M)
C53: Planning | E53: 0 | F53: 0 | H53: Cost Inflation Rate (percent/year)
C54: Scoping | E54: 0 | F54: 0 | H54: Preconstruction | J54: 3
C55: Prelim Design/Environmental Process | D55: 1.19 | E55: 1.1912 | F55: 1.20891395 | H55: ROW/Utility/RR | J55: 3
C56: Environmental Permits | E56: 0.0006 | F56: 0.0006225554099 | H56: Construction | J56: 3
C57: ROW/Util/RR | D57: 3 | E57: 3.0012 | F57: 3.137090525
C58: Procurement | E58: 0.0006 | F58: 0.0006225554099
C59: Final Design | E59: 0.0006 | F59: 0.0006318132302 | H59: Overhead Rate | I59: (CY $ M/month)
C60: Construction | D60: 11.85 | E60: 11.8536 | F60: 12.66771948 | H60: Preconstruction | J60: 0.1
C61: Total | D61: 16.04 | E61: 16.0478 | F61: 17.01560088 | H61: Construction | J61: 0.225
A64: , | C64: OPERATION, MAINTENANCE & REPLACEMENT
C65: Facility Performance Period | D65: 50 | E65: years
C66: Discount Rate to convert CY $ to YOE $ (Net Discount Rate) | D66: 5 | E66: %
E68: Operations & Maintenance | G68: Replacement
C69: Facility Asset Type | D69: Asset Life Expectancy (yr) | E69: Agency O&M Costs (CY $M/yr) | F69: Disruption (Million-Hr/yr) | G69: Agency Costs (CY $M/event) | H69: Disruption (Million-Hr/event)
C70: Asset 1 | D70: 50 | F70: 0.028
C71: Asset 2 | D71: 50 | H71: 0.7
C72: Asset 3
C73: Asset 4
C74: Asset 5
C75: Total YOE $M | E75: 0 | F75: 14 | G75: 0 | H75: 7
C76: Total CY $M | E76: 0 | F76: 5.1 | G76: 0 | H76: 6.6
C79: DISRUPTION
C80: Disruption Value | E80: 10 | F80: $M/M-hr
C81: Agency/User Cost Discount Factor | E81: 1
C83: Project Phase | E83: Disruption
D84: M Veh-Hours/Day | E84: No. of Days | F84: M-Hrs | G84: Cost ($M)
C85: Planning | F85: 0 | G85: 0
C86: Scoping | F86: 0 | G86: 0
C87: Prelim Design/Environmental Process | F87: 0 | G87: 0
C88: Environmental Permits | F88: 0 | G88: 0
C89: ROW/Util/RR | D89: 0.02 | E89: 10 | F89: 0.2 | G89: 2
C90: Procurement | F90: 0 | G90: 0
C91: Final Design | F91: 0 | G91: 0
C92: Construction | D92: 0.05 | E92: 10 | F92: 0.5 | G92: 5
C93: Operations & Maintenance | F93: 1.4 | G93: 14
C94: Replacement | F94: 0.7 | G94: 7
C95: Total Disruption through OMR | F95: 2.8 | G95: 28
C97: SUMMARY
C98: Project Phase | D98: Total CY Cost ($M) | E98: Total YOE Cost ($M) | F98: Duration (months) | G98: Early Start | H98: Early Finish
C99: Planning | E99: 0 | F99: 0 | G99: 40148 | H99: 40148
C100: Scoping | E100: 0 | F100: 0 | G100: 40148 | H100: 40148
C101: Prelim Design/Environmental Process | D101: 1.19 | E101: 1.20891395 | F101: 12 | G101: 40148 | H101: 40512.8
C102: Environmental Permits | E102: 0.0006225554099 | F102: 6 | G102: 40512.8 | H102: 40695.2
C103: ROW/Util/RR | D103: 3 | E103: 3.137090525 | F103: 12 | G103: 40512.8 | H103: 40877.6
C104: Final Design | E104: 0.0006225554099 | F104: 6 | G104: 40695.2 | H104: 40877.6
C105: Procurement | E105: 0.0006318132302 | F105: 6 | G105: 40512.8 | H105: 40695.2
C106: Construction | D106: 11.85 | E106: 12.66771948 | F106: 16 | G106: 40725.6 | H106: 41212
C107: Operations & Maintenance | D107: 0 | E107: 0 | F107: 600 | G107: 41212 | H107: 59474.5
C108: Replacement | D108: 0 | E108: 0 | F108: 0
C110: Base Cost (YOE $M) | D110: 17.01560088 | E110: (through Operations, Maintenance, & Replacement)
C111: Base Construction Completion Date | D111: 41212
C112: Months to Construction Completion | D112: 35
C113: Base Disruption ($M) | D113: 18.7 | E113: (through Operations, Maintenance, & Replacement)

Sheet 2 - Risk Identification
D1: SHRP2 Risk Management Template
B2: HELP | D2: Step 02 - Risk Identification
C7: Risk Label | D7: Description of Risk Table Below Fills by Selecting "Create List of Risks" Button Above | E7: Project Phase | F7: Retire Risk?
C8: PL-1 | D8: Project funding delayed or reduced. | E8: Planning | F8: No
C9: PL-2 | D9: Opposition to removing access to US-555 fro 12th St. | E9: Planning | F9: No
C10: PL-3 | D10: Opposition to "splitting" alignment of SH-111 in the interchange area. | E10: Planning | F10: No
C11: PL-4 | D11: Other stakeholder issues not captured separately. | E11: Planning | F11: No
C12: SC-1 | D12: Change in East-West project limits. | E12: Scoping | F12: No
C13: SC-2 | D13: Change in North-South project limits. | E13: Scoping | F13: No
C14: SC-3 | D14: Additional local improvements required. | E14: Scoping | F14: No
C15: SC-4 | D15: Increased aestethetics for US-555/SH-111 interchange. | E15: Scoping | F15: No
C16: SC-5 | D16: Replace culvert over Wandering Creek. | E16: Scoping | F16: No
C17: SC-6 | D17: Provide new lighting throughout project. | E17: Scoping | F17: No
C18: SC-7 | D18: ITS added to this project. | E18: Scoping | F18: No
C19: PD-1 | D19: Shift alignment of US 555 at east end of project | E19: Prelim Design/Environmental Process | F19: No
C20: PD-2 | D20: Split alignment of SH-111 at US-555 interchange. | E20: Prelim Design/Environmental Process | F20: No
C21: PD-3 | D21: Change in configuration of SH 111 / US 555 interchange. | E21: Prelim Design/Environmental Process | F21: No
C22: PD-4 | D22: Ground improvement required in interchange area. | E22: Prelim Design/Environmental Process | F22: No
C23: PD-5 | D23: Shoulders required on US-555. | E23: Prelim Design/Environmental Process | F23: No
C24: PD-6 | D24: Shoulders required on SH-111. | E24: Prelim Design/Environmental Process | F24: No
C25: PD-7 | D25: Additional cost for signalized intersections. | E25: Prelim Design/Environmental Process | F25: No
C26: PD-8 | D26: Change in pavement section and/or type. | E26: Prelim Design/Environmental Process | F26: No
C27: PD-9 | D27: Rehabilitate instead of reconstruct existing roadway (e.g., overlay instead). | E27: Prelim Design/Environmental Process | F27: No
C28: PD-10 | D28: Change in stormwater design standards. | E28: Prelim Design/Environmental Process | F28: No
C29: PD-11 | D29: Cannot use City sewer system for project runoff (or City charges for use). | E29: Prelim Design/Environmental Process | F29: No
C30: PD-12 | D30: Structures impacted by Main Street realignment are eligible for Historic Register. | E30: Prelim Design/Environmental Process | F30: No
C31: PD-13 | D31: Change in environmental documentation. | E31: Prelim Design/Environmental Process | F31: No
C32: PD-14 | D32: Delays completing environmental documentation. | E32: Prelim Design/Environmental Process | F32: No
C33: PD-15 | D33: Encounter unanticipated contamination in interchange area. | E33: Prelim Design/Environmental Process | F33: No
C34: PD-16 | D34: Additional wetland mitigation required for planned alignment. | E34: Prelim Design/Environmental Process | F34: No
C35: EP-1 | D35: Challenge to environmental determination or permits | E35: Environmental Permits | F35: No
C36: EP-2 | D36: Delay obtaining the 404 permit | E36: Environmental Permits | F36: No
C37: RR-1 | D37: Uncertainty in ROW inflation rate | E37: ROW/Util/RR | F37: No
C38: RR-2 | D38: Accelerating pace of development in interchange area | E38: ROW/Util/RR | F38: No
C39: RR-3 | D39: Unwilling sellers | E39: ROW/Util/RR | F39: No
C40: RR-4 | D40: Additional relocation or demolition required | E40: ROW/Util/RR | F40: No
C41: RR-5 | D41: Additional ROW required for planned project | E41: ROW/Util/RR | F41: No
C42: RR-6 | D42: Other delays to ROW planning | E42: ROW/Util/RR | F42: No
C43: RR-7 | D43: Telecom utility wants a cost-sharing agreement | E43: ROW/Util/RR | F43: No
C44: RR-8 | D44: QDOT helps City pay for water and sewer-line relocation | E44: ROW/Util/RR | F44: No
C45: RR-9 | D45: Other utility relocations not completed on time | E45: ROW/Util/RR | F45: No
C46: RR-10 | D46: Damage existing utility or encounter unanticipated utility during construction | E46: ROW/Util/RR | F46: No
C47: PR-1 | D47: Uncertainty in construction-cost inflation rate | E47: Procurement | F47: No
C48: PR-2 | D48: Uncertain Design/Build contracting market conditions at time of bid | E48: Procurement | F48: No
C49: PR-3 | D49: Material-supply issues | E49: Procurement | F49: No
C50: PR-4 | D50: Change in project delivery method | E50: Procurement | F50: No
C51: PR-5 | D51: Accelerate pre-construction activities to reach NTP sooner | E51: Procurement | F51: No
C52: PR-6 | D52: Use incentives to accelerate D/B construction | E52: Procurement | F52: No
C53: PR-7 | D53: Issues with D/B design or submittals | E53: Procurement | F53: No
C54: PR-8 | D54: Other problems with D/B contract procurement | E54: Procurement | F54: No
C55: CR-1 | D55: D/B construction phasing significantly different than assumed | E55: Construction | F55: No
C56: CR-2 | D56: Additional Maintenance of Traffic required | E56: Construction | F56: No
C57: CR-3 | D57: Problems with planned accelerated bridge construction (ABC) technique | E57: Construction | F57: No
C58: CR-4 | D58: Unable to construct interchange embankments as rapidly as assumed | E58: Construction | F58: No
C59: CR-5 | D59: Difficult foundation installation | E59: Construction | F59: No
C60: CR-6 | D60: Severe weather event significantly impacts construction | E60: Construction | F60: No
C61: CR-7 | D61: Colder-than-usual winter | E61: Construction | F61: No
C62: CR-8 | D62: Significant accident during construction | E62: Construction | F62: No
C63: CR-9 | D63: Limited construction staging area in vicinity of interchange | E63: Construction | F63: No
C64: CR-10 | D64: Fish window in Wandering Creek | E64: Construction | F64: No
C65: CR-11 | D65: Non-compliance with permits during construction | E65: Construction | F65: No
C66: CR-12 | D66: Extended overheads as a function of project delays | E66: Construction | F66: No

Sheet 3 - Rating Scale
E1: SHRP2 Risk Management Template
A2: HELP | E2: Step 03 - Rating Scale
C5: ="Base Cost through Construction" -> Base Cost through Construction | D5: =SUM('1 - Project Structuring'!D99:D108) -> 16.04 | E5: (CY $M)
C6: Base Schedule | D6: ='1 - Project Structuring'!D112 -> 35 | E6: Months
C7: Base Disruption through Construction | D7: =SUM('1 - Project Structuring'!F85:F92) -> 0.7 | E7: M-Hr
C9: Data Entry Type | D9: Absolute
C11: COST CHANGE
C12: Adjectival Rating | D12: Percent of Base Cost | F12: Absolute Value (CY $M) | H12: Expected Mean Value
D13: Low | E13: High | F13: Low | G13: High | H13: Percent | I13: Absolute
C14: VH | D14: 24.93765586 | E14: 49.87531172 | F14: 4 | G14: 8 | H14: 37.40648379 | I14: 6
C15: H | D15: 9.975062344 | E15: 24.93765586 | F15: 1.6 | G15: 4 | H15: 17.4563591 | I15: 2.8
C16: M | D16: 3.117206983 | E16: 9.975062344 | F16: 0.5 | G16: 1.6 | H16: 6.546134663 | I16: 1.05
C17: L | D17: 1.246882793 | E17: 3.117206983 | F17: 0.2 | G17: 0.5 | H17: 2.182044888 | I17: 0.35
C18: VL | D18: 0 | E18: 1.246882793 | F18: 0 | G18: 0.2 | H18: 0.6234413965 | I18: 0.1
C21: DURATION CHANGE
C22: Adjectival Rating | D22: Percent of Base Schedule | F22: Absolute Value (months) | H22: Expected Mean Value
D23: Low | E23: High | F23: Low | G23: High | H23: Percent | I23: Absolute
C24: VH | D24: 34.28571429 | E24: 68.57142857 | F24: 12 | G24: 24 | H24: 51.42857143 | I24: 18
C25: H | D25: 11.42857143 | E25: 34.28571429 | F25: 4 | G25: 12 | H25: 22.85714286 | I25: 8
C26: M | D26: 2.857142857 | E26: 11.42857143 | F26: 1 | G26: 4 | H26: 7.142857143 | I26: 2.5
C27: L | D27: 0.7142857143 | E27: 2.857142857 | F27: 0.25 | G27: 1 | H27: 1.785714286 | I27: 0.625
C28: VL | D28: 0 | E28: 0.7142857143 | F28: 0 | G28: 0.25 | H28: 0.3571428571 | I28: 0.125
C31: DISRUPTION CHANGE
C32: Adjectival Rating | D32: Percent of Base Disruption | F32: Absolute Value (M person-Hrs) | H32: Expected Mean Value
D33: Low | E33: High | F33: Low | G33: High | H33: Percent | I33: Absolute
C34: VH | D34: 28.57142857 | E34: 57.14285714 | F34: 0.2 | G34: 0.4 | H34: 42.85714286 | I34: 0.3
C35: H | D35: 14.28571429 | E35: 28.57142857 | F35: 0.1 | G35: 0.2 | H35: 21.42857143 | I35: 0.15
C36: M | D36: 0 | E36: 14.28571429 | F36: 0 | G36: 0.1 | H36: 7.142857143 | I36: 0.05
C37: L | D37: 0 | E37: 0 | F37: 0 | G37: 0 | H37: 0 | I37: 0
C38: VL | D38: 0 | E38: 0 | F38: 0 | G38: 0 | H38: 0 | I38: 0
C41: PROBABILITY OF OCCURRENCE
C42: Adjectival Rating | E42: Probability Range | F42: Mean Probability
D43: Low | E43: High
C44: VH | D44: 0.7 | E44: 1 | F44: 0.85
C45: H | D45: 0.4 | E45: 0.7 | F45: 0.55
C46: M | D46: 0.2 | E46: 0.4 | F46: 0.3
C47: L | D47: 0.05 | E47: 0.2 | F47: 0.125
C48: VL | D48: 0 | E48: 0.05 | F48: 0.025

Sheet 4 - Unmit. Risk Assessment
D1: SHRP2 Risk Management Template
A2: HELP | D2: Step 04 - Unmitigated Risk Assessment
A7: Risk | C7: Probability of Occurrence | G7: Mean Cost Change (CY $M) | M7: Mean Duration Change (months) | R7: Mean Disruption Change (M-Hr)
A8: Label | B8: Risk Description | C8: Adjectival | D8: Numerical | E8: Mean Value | F8: Risk Type | G8: Adjectival | H8: Numerical | I8: Mean Value | J8: Affected Phase | K8: Risk Type | L8: Adjectival | M8: Numerical | N8: Mean Value | O8: Affected Phase | P8: Risk Type | Q8: Adjectival | R8: Numerical | S8: Mean Value | T8: Affected Phase
A9: PL-1 | B9: Project funding delayed or reduced. | E9: 0 | I9: 0 | N9: 0 | S9: 0
A10: PL-2 | B10: Opposition to removing access to US-555 fro 12th St. | C10: L | E10: 0.125 | F10: Threat | G10: VL | I10: 0.1 | J10: Construction | M10: 0 | N10: 0 | R10: 0 | S10: 0
A11: PL-3 | B11: Opposition to "splitting" alignment of SH-111 in the interchange area. | E11: 0 | I11: 0 | N11: 0 | S11: 0
A12: PL-4 | B12: Other stakeholder issues not captured separately. | E12: 0 | I12: 0 | N12: 0 | S12: 0
A13: SC-1 | B13: Change in East-West project limits. | E13: 0 | I13: 0 | N13: 0 | S13: 0
A14: SC-2 | B14: Change in North-South project limits. | E14: 0 | I14: 0 | N14: 0 | S14: 0
A15: SC-3 | B15: Additional local improvements required. | C15: M | E15: 0.3 | F15: Threat | G15: L | I15: 0.35 | J15: Construction | K15: Threat | L15: L | N15: 0.625 | O15: Prelim Design/Environmental Process | R15: 0 | S15: 0
A16: SC-4 | B16: Increased aestethetics for US-555/SH-111 interchange. | E16: 0 | I16: 0 | N16: 0 | S16: 0
A17: SC-5 | B17: Replace culvert over Wandering Creek. | C17: M | E17: 0.3 | F17: Threat | G17: L | I17: 0.35 | J17: Construction | M17: 0 | N17: 0 | R17: 0 | S17: 0
A18: SC-6 | B18: Provide new lighting throughout project. | C18: H | E18: 0.55 | F18: Threat | G18: M | I18: 1.05 | J18: Construction | M18: 0 | N18: 0 | R18: 0 | S18: 0
A19: SC-7 | B19: ITS added to this project. | E19: 0 | I19: 0 | N19: 0 | S19: 0
A20: PD-1 | B20: Shift alignment of US 555 at east end of project | C20: VL | E20: 0.025 | F20: Threat | G20: M | I20: 1.05 | J20: ROW/Util/RR | K20: Threat | L20: M | N20: 2.5 | O20: ROW/Util/RR | R20: 0 | S20: 0
A21: PD-2 | B21: Split alignment of SH-111 at US-555 interchange. | E21: 0 | I21: 0 | N21: 0 | S21: 0
A22: PD-3 | B22: Change in configuration of SH 111 / US 555 interchange. | D22: 0 | E22: 0 | H22: 0 | I22: 0 | M22: 0 | N22: 0 | R22: 0 | S22: 0
A23: PD-4 | B23: Ground improvement required in interchange area. | C23: L | E23: 0.125 | F23: Threat | G23: M | I23: 1.05 | J23: Construction | K23: Threat | L23: L | N23: 0.625 | O23: Construction | R23: 0 | S23: 0
A24: PD-5 | B24: Shoulders required on US-555. | C24: VL | E24: 0.025 | F24: Threat | G24: H | I24: 2.8 | J24: Construction | K24: Threat | L24: M | N24: 2.5 | O24: Construction | R24: 0 | S24: 0
A25: PD-6 | B25: Shoulders required on SH-111. | C25: VL | E25: 0.025 | F25: Threat | G25: H | I25: 2.8 | J25: Construction | K25: Threat | L25: M | N25: 2.5 | O25: Construction | R25: 0 | S25: 0
A26: PD-7 | B26: Additional cost for signalized intersections. | E26: 0 | I26: 0 | N26: 0 | S26: 0
A27: PD-8 | B27: Change in pavement section and/or type. | C27: M | E27: 0.3 | F27: Opportunity | G27: M | I27: -1.05 | J27: Construction | M27: 0 | N27: 0 | R27: 0 | S27: 0
A28: PD-9 | B28: Rehabilitate instead of reconstruct existing roadway (e.g., overlay instead). | E28: 0 | I28: 0 | N28: 0 | S28: 0
A29: PD-10 | B29: Change in stormwater design standards. | E29: 0 | I29: 0 | N29: 0 | S29: 0
A30: PD-11 | B30: Cannot use City sewer system for project runoff (or City charges for use). | C30: M | E30: 0.3 | F30: Threat | G30: M | I30: 1.05 | J30: ROW/Util/RR | K30: Threat | L30: L | N30: 0.625 | O30: ROW/Util/RR | R30: 0 | S30: 0
A31: PD-12 | B31: Structures impacted by Main Street realignment are eligible for Historic Register. | C31: L | E31: 0.125 | F31: Threat | G31: M | I31: 1.05 | J31: ROW/Util/RR | K31: Threat | L31: M | N31: 2.5 | O31: ROW/Util/RR | R31: 0 | S31: 0
A32: PD-13 | B32: Change in environmental documentation. | C32: L | E32: 0.125 | F32: Threat | G32: M | I32: 1.05 | J32: Prelim Design/Environmental Process | K32: Threat | L32: H | N32: 8 | O32: Prelim Design/Environmental Process | R32: 0 | S32: 0
A33: PD-14 | B33: Delays completing environmental documentation. | C33: M | E33: 0.3 | I33: 0 | K33: Threat | L33: M | N33: 2.5 | O33: Prelim Design/Environmental Process | R33: 0 | S33: 0
A34: PD-15 | B34: Encounter unanticipated contamination in interchange area. | C34: M | E34: 0.3 | F34: Threat | G34: VL | I34: 0.1 | J34: Construction | M34: 0 | N34: 0 | R34: 0 | S34: 0
A35: PD-16 | B35: Additional wetland mitigation required for planned alignment. | C35: M | E35: 0.3 | F35: Threat | G35: L | I35: 0.35 | J35: Construction | M35: 0 | N35: 0 | R35: 0 | S35: 0
A36: EP-1 | B36: Challenge to environmental determination or permits | E36: 0 | I36: 0 | N36: 0 | S36: 0
A37: EP-2 | B37: Delay obtaining the 404 permit | C37: L | E37: 0.125 | I37: 0 | K37: Threat | L37: M | N37: 2.5 | O37: Environmental Permits | R37: 0 | S37: 0
A38: RR-1 | B38: Uncertainty in ROW inflation rate | C38: H | E38: 0.55 | F38: Threat | G38: M | I38: 1.05 | J38: ROW/Util/RR | M38: 0 | N38: 0 | R38: 0 | S38: 0
A39: RR-2 | B39: Accelerating pace of development in interchange area | C39: M | E39: 0.3 | F39: Threat | G39: M | I39: 1.05 | J39: ROW/Util/RR | K39: Threat | L39: M | N39: 2.5 | O39: ROW/Util/RR | R39: 0 | S39: 0
A40: RR-3 | B40: Unwilling sellers | C40: H | E40: 0.55 | F40: Threat | G40: M | I40: 1.05 | J40: ROW/Util/RR | M40: 0 | N40: 0 | R40: 0 | S40: 0
A41: RR-4 | B41: Additional relocation or demolition required | E41: 0 | I41: 0 | N41: 0 | S41: 0
A42: RR-5 | B42: Additional ROW required for planned project | E42: 0 | I42: 0 | N42: 0 | S42: 0
A43: RR-6 | B43: Other delays to ROW planning | C43: M | E43: 0.3 | I43: 0 | K43: Threat | L43: L | N43: 0.625 | O43: ROW/Util/RR | R43: 0 | S43: 0
A44: RR-7 | B44: Telecom utility wants a cost-sharing agreement | C44: M | E44: 0.3 | F44: Threat | G44: L | I44: 0.35 | J44: ROW/Util/RR | M44: 0 | N44: 0 | R44: 0 | S44: 0
A45: RR-8 | B45: QDOT helps City pay for water and sewer-line relocation | C45: H | E45: 0.55 | F45: Threat | G45: M | I45: 1.05 | J45: ROW/Util/RR | M45: 0 | N45: 0 | R45: 0 | S45: 0
A46: RR-9 | B46: Other utility relocations not completed on time | E46: 0 | I46: 0 | N46: 0 | S46: 0
A47: RR-10 | B47: Damage existing utility or encounter unanticipated utility during construction | E47: 0 | I47: 0 | N47: 0 | S47: 0
A48: PR-1 | B48: Uncertainty in construction-cost inflation rate | C48: H | E48: 0.55 | F48: Threat | G48: M | I48: 1.05 | J48: Construction | M48: 0 | N48: 0 | R48: 0 | S48: 0
A49: PR-2 | B49: Uncertain Design/Build contracting market conditions at time of bid | D49: 0.25 | E49: 0.25 | F49: Threat | H49: 1.185 | I49: 1.185 | J49: Construction | K49: Threat | M49: 1 | N49: 1 | O49: Procurement | R49: 0 | S49: 0
A50: PR-3 | B50: Material-supply issues | E50: 0 | I50: 0 | N50: 0 | S50: 0
A51: PR-4 | B51: Change in project delivery method | E51: 0 | I51: 0 | N51: 0 | S51: 0
A52: PR-5 | B52: Accelerate pre-construction activities to reach NTP sooner | E52: 0 | I52: 0 | N52: 0 | S52: 0
A53: PR-6 | B53: Use incentives to accelerate D/B construction | E53: 0 | I53: 0 | N53: 0 | S53: 0
A54: PR-7 | B54: Issues with D/B design or submittals | C54: M | E54: 0.3 | I54: 0 | K54: Threat | L54: M | N54: 2.5 | O54: Final Design | R54: 0 | S54: 0
A55: PR-8 | B55: Other problems with D/B contract procurement | C55: L | E55: 0.125 | I55: 0 | K55: Threat | L55: L | N55: 0.625 | O55: Procurement | R55: 0 | S55: 0
A56: CR-1 | B56: D/B construction phasing significantly different than assumed | D56: 0.25 | E56: 0.25 | I56: 0 | K56: Opportunity | M56: 2 | N56: -2 | O56: Construction | P56: Opportunity | R56: 0.1 | S56: -0.1 | T56: Construction
A57: CR-2 | B57: Additional Maintenance of Traffic required | C57: H | E57: 0.55 | F57: Threat | G57: L | I57: 0.35 | J57: Construction | K57: Threat | L57: VL | N57: 0.125 | O57: Construction | P57: Threat | Q57: M | S57: 0.05 | T57: Construction
A58: CR-3 | B58: Problems with planned accelerated bridge construction (ABC) technique | C58: H | E58: 0.55 | F58: Threat | G58: L | I58: 0.35 | J58: Construction | K58: Threat | L58: L | N58: 0.625 | O58: Construction | P58: Threat | Q58: L | S58: 0 | T58: Construction
A59: CR-4 | B59: Unable to construct interchange embankments as rapidly as assumed | C59: M | E59: 0.3 | F59: Threat | G59: L | I59: 0.35 | J59: Construction | K59: Threat | L59: M | N59: 2.5 | O59: Construction | Q59: L | S59: 0 | T59: Construction
A60: CR-5 | B60: Difficult foundation installation | C60: L | E60: 0.125 | F60: Threat | G60: L | I60: 0.35 | J60: Construction | K60: Threat | L60: L | N60: 0.625 | O60: Construction | P60: Threat | Q60: VL | S60: 0 | T60: Construction
A61: CR-6 | B61: Severe weather event significantly impacts construction | E61: 0 | I61: 0 | N61: 0 | S61: 0
A62: CR-7 | B62: Colder-than-usual winter | C62: L | E62: 0.125 | I62: 0 | K62: Threat | L62: VL | N62: 0.125 | O62: Construction | P62: Threat | Q62: VL | S62: 0 | T62: Construction
A63: CR-8 | B63: Significant accident during construction | E63: 0 | I63: 0 | N63: 0 | S63: 0
A64: CR-9 | B64: Limited construction staging area in vicinity of interchange | C64: M | E64: 0.3 | F64: Threat | G64: VL | I64: 0.1 | J64: Construction | M64: 0 | N64: 0 | R64: 0 | S64: 0
A65: CR-10 | B65: Fish window in Wandering Creek | E65: 0 | I65: 0 | N65: 0 | S65: 0
A66: CR-11 | B66: Non-compliance with permits during construction | E66: 0 | I66: 0 | N66: 0 | S66: 0
A67: CR-12 | B67: Extended overheads as a function of project delays | E67: 0 | I67: 0 | N67: 0 | S67: 0

Sheet 5 - Unmit. Risk Register
D1: SHRP2 Risk Management Template
A2: HELP | C2: Step 05 - Unmitigated Risk Register
B3: NOTE: Risks and opportunities are sorted by total severity, though the order should be identical whether using raw severity or percent of total severity
A4: Risk Label | B4: Risk Description | C4: Risk Type | D4: Mean Cost Impact (CY $M) | E4: Mean Duration Impact (months) | F4: Mean Disruption Impact (M-Hr) | G4: Mean Change to Critical Path Schedule | H4: Mean Severity (YOE $M) | I4: Percent of Total Severity | J4: Risk Ranking based on Mean Severity | K4: Select Risk for Mitigation
A5: SC-6 | B5: Provide new lighting throughout project. | C5: Threat | D5: 0.5775 | E5: 0 | F5: 0 | G5: 0 | H5: 0.6171633936 | I5: 0.08214469032 | J5: 1 | K5: Yes | U5: =ABS(Table2[[#This Row],[Mean Severity (YOE $M)]]) -> 0.6171633936 | V5: =LEFT(Table2[[#This Row],[Risk Label]],2) -> SC
A6: PR-1 | B6: Uncertainty in construction-cost inflation rate | C6: Threat | D6: 0.5775 | E6: 0 | F6: 0 | G6: 0 | H6: 0.6171633936 | I6: 0.08214469032 | J6: 2 | K6: Yes | U6: =ABS(Table2[[#This Row],[Mean Severity (YOE $M)]]) -> 0.6171633936 | V6: =LEFT(Table2[[#This Row],[Risk Label]],2) -> PR
A7: RR-1 | B7: Uncertainty in ROW inflation rate | C7: Threat | D7: 0.5775 | E7: 0 | F7: 0 | G7: 0 | H7: 0.6036484666 | I7: 0.08034584823 | J7: 3 | K7: No | U7: =ABS(Table2[[#This Row],[Mean Severity (YOE $M)]]) -> 0.6036484666 | V7: =LEFT(Table2[[#This Row],[Risk Label]],2) -> RR
A8: RR-3 | B8: Unwilling sellers | C8: Threat | D8: 0.5775 | E8: 0 | F8: 0 | G8: 0 | H8: 0.6036484666 | I8: 0.08034584823 | J8: 4 | K8: Yes | U8: =ABS(Table2[[#This Row],[Mean Severity (YOE $M)]]) -> 0.6036484666 | V8: =LEFT(Table2[[#This Row],[Risk Label]],2) -> RR
A9: RR-8 | B9: QDOT helps City pay for water and sewer-line relocation | C9: Threat | D9: 0.5775 | E9: 0 | F9: 0 | G9: 0 | H9: 0.6036484666 | I9: 0.08034584823 | J9: 5 | K9: Yes | U9: =ABS(Table2[[#This Row],[Mean Severity (YOE $M)]]) -> 0.6036484666 | V9: =LEFT(Table2[[#This Row],[Risk Label]],2) -> RR
A10: RR-2 | B10: Accelerating pace of development in interchange area | C10: Threat | D10: 0.315 | E10: 0.75 | F10: 0 | G10: 0.75 | H10: 0.5120507325 | I10: 0.0681541538 | J10: 6 | K10: Yes | U10: =ABS(Table2[[#This Row],[Mean Severity (YOE $M)]]) -> 0.5120507325 | V10: =LEFT(Table2[[#This Row],[Risk Label]],2) -> RR
A11: CR-2 | B11: Additional Maintenance of Traffic required | C11: Threat | D11: 0.1925 | E11: 0.06875 | F11: 0.0275 | G11: 0.06875 | H11: 0.5063097088 | I11: 0.06739002129 | J11: 7 | K11: Yes | U11: =ABS(Table2[[#This Row],[Mean Severity (YOE $M)]]) -> 0.5063097088 | V11: =LEFT(Table2[[#This Row],[Risk Label]],2) -> CR
A12: CR-4 | B12: Unable to construct interchange embankments as rapidly as assumed | C12: Threat | D12: 0.105 | E12: 0.75 | F12: 0 | G12: 0.75 | H12: 0.3915096253 | I12: 0.05211008504 | J12: 8 | K12: Yes | U12: =ABS(Table2[[#This Row],[Mean Severity (YOE $M)]]) -> 0.3915096253 | V12: =LEFT(Table2[[#This Row],[Risk Label]],2) -> CR
A13: PD-13 | B13: Change in environmental documentation. | C13: Threat | D13: 0.13125 | E13: 1 | F13: 0 | G13: 1 | H13: 0.3794902688 | I13: 0.05051030397 | J13: 9 | K13: No | U13: =ABS(Table2[[#This Row],[Mean Severity (YOE $M)]]) -> 0.3794902688 | V13: =LEFT(Table2[[#This Row],[Risk Label]],2) -> PD
A14: PR-2 | B14: Uncertain Design/Build contracting market conditions at time of bid | C14: Threat | D14: 0.29625 | E14: 0.25 | F14: 0 | G14: 0.25 | H14: 0.3753535137 | I14: 0.04995970025 | J14: 10 | K14: No | U14: =ABS(Table2[[#This Row],[Mean Severity (YOE $M)]]) -> 0.3753535137 | V14: =LEFT(Table2[[#This Row],[Risk Label]],2) -> PR
A15: PD-11 | B15: Cannot use City sewer system for project runoff (or City charges for use). | C15: Threat | D15: 0.315 | E15: 0.1875 | F15: 0 | G15: 0.1875 | H15: 0.3749276312 | I15: 0.04990301511 | J15: 11 | K15: Yes | U15: =ABS(Table2[[#This Row],[Mean Severity (YOE $M)]]) -> 0.3749276312 | V15: =LEFT(Table2[[#This Row],[Risk Label]],2) -> PD
A16: CR-3 | B16: Problems with planned accelerated bridge construction (ABC) technique | C16: Threat | D16: 0.1925 | E16: 0.34375 | F16: 0 | G16: 0.34375 | H16: 0.3337237297 | I16: 0.04441875962 | J16: 12 | K16: Yes | U16: =ABS(Table2[[#This Row],[Mean Severity (YOE $M)]]) -> 0.3337237297 | V16: =LEFT(Table2[[#This Row],[Risk Label]],2) -> CR
A17: PD-12 | B17: Structures impacted by Main Street realignment are eligible for Historic Register. | C17: Threat | D17: 0.13125 | E17: 0.3125 | F17: 0 | G17: 0.3125 | H17: 0.2131648826 | I17: 0.02837232968 | J17: 13 | K17: No | U17: =ABS(Table2[[#This Row],[Mean Severity (YOE $M)]]) -> 0.2131648826 | V17: =LEFT(Table2[[#This Row],[Risk Label]],2) -> PD
A18: PD-14 | B18: Delays completing environmental documentation. | C18: Threat | D18: 0 | E18: 0.75 | F18: 0 | G18: 0.75 | H18: 0.1844122722 | I18: 0.02454534593 | J18: 14 | K18: Yes | U18: =ABS(Table2[[#This Row],[Mean Severity (YOE $M)]]) -> 0.1844122722 | V18: =LEFT(Table2[[#This Row],[Risk Label]],2) -> PD
A19: PD-4 | B19: Ground improvement required in interchange area. | C19: Threat | D19: 0.13125 | E19: 0.078125 | F19: 0 | G19: 0.078125 | H19: 0.1693302015 | I19: 0.02253791639 | J19: 15 | K19: No | U19: =ABS(Table2[[#This Row],[Mean Severity (YOE $M)]]) -> 0.1693302015 | V19: =LEFT(Table2[[#This Row],[Risk Label]],2) -> PD
A20: SC-3 | B20: Additional local improvements required. | C20: Threat | D20: 0.105 | E20: 0.1875 | F20: 0 | G20: 0.1875 | H20: 0.158282161 | I20: 0.02106741785 | J20: 16 | K20: No | U20: =ABS(Table2[[#This Row],[Mean Severity (YOE $M)]]) -> 0.158282161 | V20: =LEFT(Table2[[#This Row],[Risk Label]],2) -> SC
A21: SC-5 | B21: Replace culvert over Wandering Creek. | C21: Threat | D21: 0.105 | E21: 0 | F21: 0 | G21: 0 | H21: 0.1122115261 | I21: 0.01493539824 | J21: 17 | K21: No | U21: =ABS(Table2[[#This Row],[Mean Severity (YOE $M)]]) -> 0.1122115261 | V21: =LEFT(Table2[[#This Row],[Risk Label]],2) -> SC
A22: PD-16 | B22: Additional wetland mitigation required for planned alignment. | C22: Threat | D22: 0.105 | E22: 0 | F22: 0 | G22: 0 | H22: 0.1122115261 | I22: 0.01493539824 | J22: 18 | K22: No | U22: =ABS(Table2[[#This Row],[Mean Severity (YOE $M)]]) -> 0.1122115261 | V22: =LEFT(Table2[[#This Row],[Risk Label]],2) -> PD
A23: RR-7 | B23: Telecom utility wants a cost-sharing agreement | C23: Threat | D23: 0.105 | E23: 0 | F23: 0 | G23: 0 | H23: 0.1097542667 | I23: 0.01460833604 | J23: 19 | K23: No | U23: =ABS(Table2[[#This Row],[Mean Severity (YOE $M)]]) -> 0.1097542667 | V23: =LEFT(Table2[[#This Row],[Risk Label]],2) -> RR
A24: PD-5 | B24: Shoulders required on US-555. | C24: Threat | D24: 0.07 | E24: 0.0625 | F24: 0 | G24: 0.0625 | H24: 0.09804962471 | I24: 0.0130504436 | J24: 20 | K24: No | U24: =ABS(Table2[[#This Row],[Mean Severity (YOE $M)]]) -> 0.09804962471 | V24: =LEFT(Table2[[#This Row],[Risk Label]],2) -> PD
A25: PD-6 | B25: Shoulders required on SH-111. | C25: Threat | D25: 0.07 | E25: 0.0625 | F25: 0 | G25: 0.0625 | H25: 0.09804962471 | I25: 0.0130504436 | J25: 21 | K25: No | U25: =ABS(Table2[[#This Row],[Mean Severity (YOE $M)]]) -> 0.09804962471 | V25: =LEFT(Table2[[#This Row],[Risk Label]],2) -> PD
A26: CR-5 | B26: Difficult foundation installation | C26: Threat | D26: 0.04375 | E26: 0.078125 | F26: 0 | G26: 0.078125 | H26: 0.07580259964 | I26: 0.01008935581 | J26: 22 | K26: No | U26: =ABS(Table2[[#This Row],[Mean Severity (YOE $M)]]) -> 0.07580259964 | V26: =LEFT(Table2[[#This Row],[Risk Label]],2) -> CR
A27: EP-2 | B27: Delay obtaining the 404 permit | C27: Threat | D27: 0 | E27: 0.3125 | F27: 0 | G27: 0.3125 | H27: 0.07345163098 | I27: 0.00977644096 | J27: 23 | K27: No | U27: =ABS(Table2[[#This Row],[Mean Severity (YOE $M)]]) -> 0.07345163098 | V27: =LEFT(Table2[[#This Row],[Risk Label]],2) -> EP
A28: RR-6 | B28: Other delays to ROW planning | C28: Threat | D28: 0 | E28: 0.1875 | F28: 0 | G28: 0.1875 | H28: 0.04551272401 | I28: 0.006057761458 | J28: 24 | K28: No | U28: =ABS(Table2[[#This Row],[Mean Severity (YOE $M)]]) -> 0.04551272401 | V28: =LEFT(Table2[[#This Row],[Risk Label]],2) -> RR
A29: PD-1 | B29: Shift alignment of US 555 at east end of project | C29: Threat | D29: 0.02625 | E29: 0.0625 | F29: 0 | G29: 0.0625 | H29: 0.04261132731 | I29: 0.005671584417 | J29: 25 | K29: No | U29: =ABS(Table2[[#This Row],[Mean Severity (YOE $M)]]) -> 0.04261132731 | V29: =LEFT(Table2[[#This Row],[Risk Label]],2) -> PD
A30: PD-15 | B30: Encounter unanticipated contamination in interchange area. | C30: Threat | D30: 0.03 | E30: 0 | F30: 0 | G30: 0 | H30: 0.03206043603 | I30: 0.00426725664 | J30: 26 | K30: No | U30: =ABS(Table2[[#This Row],[Mean Severity (YOE $M)]]) -> 0.03206043603 | V30: =LEFT(Table2[[#This Row],[Risk Label]],2) -> PD
A31: CR-9 | B31: Limited construction staging area in vicinity of interchange | C31: Threat | D31: 0.03 | E31: 0 | F31: 0 | G31: 0 | H31: 0.03206043603 | I31: 0.00426725664 | J31: 27 | K31: No | U31: =ABS(Table2[[#This Row],[Mean Severity (YOE $M)]]) -> 0.03206043603 | V31: =LEFT(Table2[[#This Row],[Risk Label]],2) -> CR
A32: PR-8 | B32: Other problems with D/B contract procurement | C32: Threat | D32: 0 | E32: 0.078125 | F32: 0 | G32: 0.078125 | H32: 0.01835752192 | I32: 0.002443393385 | J32: 28 | K32: No | U32: =ABS(Table2[[#This Row],[Mean Severity (YOE $M)]]) -> 0.01835752192 | V32: =LEFT(Table2[[#This Row],[Risk Label]],2) -> PR
A33: PL-2 | B33: Opposition to removing access to US-555 fro 12th St. | C33: Threat | D33: 0.0125 | E33: 0 | F33: 0 | G33: 0 | H33: 0.01335851501 | I33: 0.0017780236 | J33: 29 | K33: No | U33: =ABS(Table2[[#This Row],[Mean Severity (YOE $M)]]) -> 0.01335851501 | V33: =LEFT(Table2[[#This Row],[Risk Label]],2) -> PL
A34: CR-7 | B34: Colder-than-usual winter | C34: Threat | D34: 0 | E34: 0.015625 | F34: 0 | G34: 0.015625 | H34: 0.005807143748 | I34: 0.0007729331159 | J34: 30 | K34: No | U34: =ABS(Table2[[#This Row],[Mean Severity (YOE $M)]]) -> 0.005807143748 | V34: =LEFT(Table2[[#This Row],[Risk Label]],2) -> CR
A35: CR-1 | B35: D/B construction phasing significantly different than assumed | C35: Opportunity | D35: 0 | E35: -0.5 | F35: -0.025 | G35: -0.5 | H35: -0.4356660896 | I35: 0.5641146094 | J35: 1 | K35: No | U35: =ABS(Table2[[#This Row],[Mean Severity (YOE $M)]]) -> 0.4356660896 | V35: =LEFT(Table2[[#This Row],[Risk Label]],2) -> CR
A36: PD-8 | B36: Change in pavement section and/or type. | C36: Opportunity | D36: -0.315 | E36: 0 | F36: 0 | G36: 0 | H36: -0.3366345783 | I36: 0.4358853906 | J36: 2 | K36: No | U36: =ABS(Table2[[#This Row],[Mean Severity (YOE $M)]]) -> 0.3366345783 | V36: =LEFT(Table2[[#This Row],[Risk Label]],2) -> PD
A37: PL-1 | B37: Project funding delayed or reduced. | C37: No Impact | D37: 0 | E37: 0 | F37: 0 | G37: 0 | H37: 0 | I37: 0 | K37: No | U37: =ABS(Table2[[#This Row],[Mean Severity (YOE $M)]]) -> 0 | V37: =LEFT(Table2[[#This Row],[Risk Label]],2) -> PL
A38: PL-3 | B38: Opposition to "splitting" alignment of SH-111 in the interchange area. | C38: No Impact | D38: 0 | E38: 0 | F38: 0 | G38: 0 | H38: 0 | I38: 0 | K38: No | U38: =ABS(Table2[[#This Row],[Mean Severity (YOE $M)]]) -> 0 | V38: =LEFT(Table2[[#This Row],[Risk Label]],2) -> PL
A39: PL-4 | B39: Other stakeholder issues not captured separately. | C39: No Impact | D39: 0 | E39: 0 | F39: 0 | G39: 0 | H39: 0 | I39: 0 | K39: No | U39: =ABS(Table2[[#This Row],[Mean Severity (YOE $M)]]) -> 0 | V39: =LEFT(Table2[[#This Row],[Risk Label]],2) -> PL
A40: SC-1 | B40: Change in East-West project limits. | C40: No Impact | D40: 0 | E40: 0 | F40: 0 | G40: 0 | H40: 0 | I40: 0 | K40: No | U40: =ABS(Table2[[#This Row],[Mean Severity (YOE $M)]]) -> 0 | V40: =LEFT(Table2[[#This Row],[Risk Label]],2) -> SC
A41: SC-2 | B41: Change in North-South project limits. | C41: No Impact | D41: 0 | E41: 0 | F41: 0 | G41: 0 | H41: 0 | I41: 0 | K41: No | U41: =ABS(Table2[[#This Row],[Mean Severity (YOE $M)]]) -> 0 | V41: =LEFT(Table2[[#This Row],[Risk Label]],2) -> SC
A42: SC-4 | B42: Increased aestethetics for US-555/SH-111 interchange. | C42: No Impact | D42: 0 | E42: 0 | F42: 0 | G42: 0 | H42: 0 | I42: 0 | K42: No | U42: =ABS(Table2[[#This Row],[Mean Severity (YOE $M)]]) -> 0 | V42: =LEFT(Table2[[#This Row],[Risk Label]],2) -> SC
A43: SC-7 | B43: ITS added to this project. | C43: No Impact | D43: 0 | E43: 0 | F43: 0 | G43: 0 | H43: 0 | I43: 0 | K43: No | U43: =ABS(Table2[[#This Row],[Mean Severity (YOE $M)]]) -> 0 | V43: =LEFT(Table2[[#This Row],[Risk Label]],2) -> SC
A44: PD-2 | B44: Split alignment of SH-111 at US-555 interchange. | C44: No Impact | D44: 0 | E44: 0 | F44: 0 | G44: 0 | H44: 0 | I44: 0 | K44: No | U44: =ABS(Table2[[#This Row],[Mean Severity (YOE $M)]]) -> 0 | V44: =LEFT(Table2[[#This Row],[Risk Label]],2) -> PD
A45: PD-3 | B45: Change in configuration of SH 111 / US 555 interchange. | C45: No Impact | D45: 0 | E45: 0 | F45: 0 | G45: 0 | H45: 0 | I45: 0 | K45: No | U45: =ABS(Table2[[#This Row],[Mean Severity (YOE $M)]]) -> 0 | V45: =LEFT(Table2[[#This Row],[Risk Label]],2) -> PD
A46: PD-7 | B46: Additional cost for signalized intersections. | C46: No Impact | D46: 0 | E46: 0 | F46: 0 | G46: 0 | H46: 0 | I46: 0 | K46: No | U46: =ABS(Table2[[#This Row],[Mean Severity (YOE $M)]]) -> 0 | V46: =LEFT(Table2[[#This Row],[Risk Label]],2) -> PD
A47: PD-9 | B47: Rehabilitate instead of reconstruct existing roadway (e.g., overlay instead). | C47: No Impact | D47: 0 | E47: 0 | F47: 0 | G47: 0 | H47: 0 | I47: 0 | K47: No | U47: =ABS(Table2[[#This Row],[Mean Severity (YOE $M)]]) -> 0 | V47: =LEFT(Table2[[#This Row],[Risk Label]],2) -> PD
A48: PD-10 | B48: Change in stormwater design standards. | C48: No Impact | D48: 0 | E48: 0 | F48: 0 | G48: 0 | H48: 0 | I48: 0 | K48: No | U48: =ABS(Table2[[#This Row],[Mean Severity (YOE $M)]]) -> 0 | V48: =LEFT(Table2[[#This Row],[Risk Label]],2) -> PD
A49: EP-1 | B49: Challenge to environmental determination or permits | C49: No Impact | D49: 0 | E49: 0 | F49: 0 | G49: 0 | H49: 0 | I49: 0 | K49: No | U49: =ABS(Table2[[#This Row],[Mean Severity (YOE $M)]]) -> 0 | V49: =LEFT(Table2[[#This Row],[Risk Label]],2) -> EP
A50: RR-4 | B50: Additional relocation or demolition required | C50: No Impact | D50: 0 | E50: 0 | F50: 0 | G50: 0 | H50: 0 | I50: 0 | K50: No | U50: =ABS(Table2[[#This Row],[Mean Severity (YOE $M)]]) -> 0 | V50: =LEFT(Table2[[#This Row],[Risk Label]],2) -> RR
A51: RR-5 | B51: Additional ROW required for planned project | C51: No Impact | D51: 0 | E51: 0 | F51: 0 | G51: 0 | H51: 0 | I51: 0 | K51: No | U51: =ABS(Table2[[#This Row],[Mean Severity (YOE $M)]]) -> 0 | V51: =LEFT(Table2[[#This Row],[Risk Label]],2) -> RR
A52: RR-9 | B52: Other utility relocations not completed on time | C52: No Impact | D52: 0 | E52: 0 | F52: 0 | G52: 0 | H52: 0 | I52: 0 | K52: No | U52: =ABS(Table2[[#This Row],[Mean Severity (YOE $M)]]) -> 0 | V52: =LEFT(Table2[[#This Row],[Risk Label]],2) -> RR
A53: RR-10 | B53: Damage existing utility or encounter unanticipated utility during construction | C53: No Impact | D53: 0 | E53: 0 | F53: 0 | G53: 0 | H53: 0 | I53: 0 | K53: No | U53: =ABS(Table2[[#This Row],[Mean Severity (YOE $M)]]) -> 0 | V53: =LEFT(Table2[[#This Row],[Risk Label]],2) -> RR
A54: PR-3 | B54: Material-supply issues | C54: No Impact | D54: 0 | E54: 0 | F54: 0 | G54: 0 | H54: 0 | I54: 0 | K54: No | U54: =ABS(Table2[[#This Row],[Mean Severity (YOE $M)]]) -> 0 | V54: =LEFT(Table2[[#This Row],[Risk Label]],2) -> PR
A55: PR-4 | B55: Change in project delivery method | C55: No Impact | D55: 0 | E55: 0 | F55: 0 | G55: 0 | H55: 0 | I55: 0 | K55: No | U55: =ABS(Table2[[#This Row],[Mean Severity (YOE $M)]]) -> 0 | V55: =LEFT(Table2[[#This Row],[Risk Label]],2) -> PR
A56: PR-5 | B56: Accelerate pre-construction activities to reach NTP sooner | C56: No Impact | D56: 0 | E56: 0 | F56: 0 | G56: 0 | H56: 0 | I56: 0 | K56: No | U56: =ABS(Table2[[#This Row],[Mean Severity (YOE $M)]]) -> 0 | V56: =LEFT(Table2[[#This Row],[Risk Label]],2) -> PR
A57: PR-6 | B57: Use incentives to accelerate D/B construction | C57: No Impact | D57: 0 | E57: 0 | F57: 0 | G57: 0 | H57: 0 | I57: 0 | K57: No | U57: =ABS(Table2[[#This Row],[Mean Severity (YOE $M)]]) -> 0 | V57: =LEFT(Table2[[#This Row],[Risk Label]],2) -> PR
A58: PR-7 | B58: Issues with D/B design or submittals | C58: No Impact | D58: 0 | E58: 0.75 | F58: 0 | G58: 0 | H58: 0 | I58: 0 | K58: No | U58: =ABS(Table2[[#This Row],[Mean Severity (YOE $M)]]) -> 0 | V58: =LEFT(Table2[[#This Row],[Risk Label]],2) -> PR
A59: CR-6 | B59: Severe weather event significantly impacts construction | C59: No Impact | D59: 0 | E59: 0 | F59: 0 | G59: 0 | H59: 0 | I59: 0 | K59: No | U59: =ABS(Table2[[#This Row],[Mean Severity (YOE $M)]]) -> 0 | V59: =LEFT(Table2[[#This Row],[Risk Label]],2) -> CR
A60: CR-8 | B60: Significant accident during construction | C60: No Impact | D60: 0 | E60: 0 | F60: 0 | G60: 0 | H60: 0 | I60: 0 | K60: No | U60: =ABS(Table2[[#This Row],[Mean Severity (YOE $M)]]) -> 0 | V60: =LEFT(Table2[[#This Row],[Risk Label]],2) -> CR
A61: CR-10 | B61: Fish window in Wandering Creek | C61: No Impact | D61: 0 | E61: 0 | F61: 0 | G61: 0 | H61: 0 | I61: 0 | K61: No | U61: =ABS(Table2[[#This Row],[Mean Severity (YOE $M)]]) -> 0 | V61: =LEFT(Table2[[#This Row],[Risk Label]],2) -> CR
A62: CR-11 | B62: Non-compliance with permits during construction | C62: No Impact | D62: 0 | E62: 0 | F62: 0 | G62: 0 | H62: 0 | I62: 0 | K62: No | U62: =ABS(Table2[[#This Row],[Mean Severity (YOE $M)]]) -> 0 | V62: =LEFT(Table2[[#This Row],[Risk Label]],2) -> CR
A63: CR-12 | B63: Extended overheads as a function of project delays | C63: No Impact | D63: 0 | E63: 0 | F63: 0 | G63: 0 | H63: 0 | I63: 0 | K63: No | U63: =ABS(Table2[[#This Row],[Mean Severity (YOE $M)]]) -> 0 | V63: =LEFT(Table2[[#This Row],[Risk Label]],2) -> CR
U64: =ABS(Table2[[#This Row],[Mean Severity (YOE $M)]]) -> 0 | V64: =LEFT(Table2[[#This Row],[Risk Label]],2) -> 
U65: =ABS(Table2[[#This Row],[Mean Severity (YOE $M)]]) -> 0 | V65: =LEFT(Table2[[#This Row],[Risk Label]],2) -> 
U66: =ABS(Table2[[#This Row],[Mean Severity (YOE $M)]]) -> 0 | V66: =LEFT(Table2[[#This Row],[Risk Label]],2) -> 
U67: =ABS(Table2[[#This Row],[Mean Severity (YOE $M)]]) -> 0 | V67: =LEFT(Table2[[#This Row],[Risk Label]],2) -> 
U68: =ABS(Table2[[#This Row],[Mean Severity (YOE $M)]]) -> 0 | V68: =LEFT(Table2[[#This Row],[Risk Label]],2) -> 
U69: =ABS(Table2[[#This Row],[Mean Severity (YOE $M)]]) -> 0 | V69: =LEFT(Table2[[#This Row],[Risk Label]],2) -> 
U70: =ABS(Table2[[#This Row],[Mean Severity (YOE $M)]]) -> 0 | V70: =LEFT(Table2[[#This Row],[Risk Label]],2) -> 
U71: =ABS(Table2[[#This Row],[Mean Severity (YOE $M)]]) -> 0 | V71: =LEFT(Table2[[#This Row],[Risk Label]],2) -> 
U72: =ABS(Table2[[#This Row],[Mean Severity (YOE $M)]]) -> 0 | V72: =LEFT(Table2[[#This Row],[Risk Label]],2) -> 
U73: =ABS(Table2[[#This Row],[Mean Severity (YOE $M)]]) -> 0 | V73: =LEFT(Table2[[#This Row],[Risk Label]],2) -> 
U74: =ABS(Table2[[#This Row],[Mean Severity (YOE $M)]]) -> 0 | V74: =LEFT(Table2[[#This Row],[Risk Label]],2) -> 
U75: =ABS(Table2[[#This Row],[Mean Severity (YOE $M)]]) -> 0 | V75: =LEFT(Table2[[#This Row],[Risk Label]],2) -> 
U76: =ABS(Table2[[#This Row],[Mean Severity (YOE $M)]]) -> 0 | V76: =LEFT(Table2[[#This Row],[Risk Label]],2) -> 
U77: =ABS(Table2[[#This Row],[Mean Severity (YOE $M)]]) -> 0 | V77: =LEFT(Table2[[#This Row],[Risk Label]],2) -> 
U78: =ABS(Table2[[#This Row],[Mean Severity (YOE $M)]]) -> 0 | V78: =LEFT(Table2[[#This Row],[Risk Label]],2) -> 
U79: =ABS(Table2[[#This Row],[Mean Severity (YOE $M)]]) -> 0 | V79: =LEFT(Table2[[#This Row],[Risk Label]],2) -> 
U80: =ABS(Table2[[#This Row],[Mean Severity (YOE $M)]]) -> 0 | V80: =LEFT(Table2[[#This Row],[Risk Label]],2) -> 
U81: =ABS(Table2[[#This Row],[Mean Severity (YOE $M)]]) -> 0 | V81: =LEFT(Table2[[#This Row],[Risk Label]],2) -> 
U82: =ABS(Table2[[#This Row],[Mean Severity (YOE $M)]]) -> 0 | V82: =LEFT(Table2[[#This Row],[Risk Label]],2) -> 
U83: =ABS(Table2[[#This Row],[Mean Severity (YOE $M)]]) -> 0 | V83: =LEFT(Table2[[#This Row],[Risk Label]],2) -> 
U84: =ABS(Table2[[#This Row],[Mean Severity (YOE $M)]]) -> 0 | V84: =LEFT(Table2[[#This Row],[Risk Label]],2) -> 
U85: =ABS(Table2[[#This Row],[Mean Severity (YOE $M)]]) -> 0 | V85: =LEFT(Table2[[#This Row],[Risk Label]],2) -> 
U86: =ABS(Table2[[#This Row],[Mean Severity (YOE $M)]]) -> 0 | V86: =LEFT(Table2[[#This Row],[Risk Label]],2) -> 
U87: =ABS(Table2[[#This Row],[Mean Severity (YOE $M)]]) -> 0 | V87: =LEFT(Table2[[#This Row],[Risk Label]],2) -> 
U88: =ABS(Table2[[#This Row],[Mean Severity (YOE $M)]]) -> 0 | V88: =LEFT(Table2[[#This Row],[Risk Label]],2) -> 
U89: =ABS(Table2[[#This Row],[Mean Severity (YOE $M)]]) -> 0 | V89: =LEFT(Table2[[#This Row],[Risk Label]],2) -> 
U90: =ABS(Table2[[#This Row],[Mean Severity (YOE $M)]]) -> 0 | V90: =LEFT(Table2[[#This Row],[Risk Label]],2) -> 
U91: =ABS(Table2[[#This Row],[Mean Severity (YOE $M)]]) -> 0 | V91: =LEFT(Table2[[#This Row],[Risk Label]],2) -> 
U92: =ABS(Table2[[#This Row],[Mean Severity (YOE $M)]]) -> 0 | V92: =LEFT(Table2[[#This Row],[Risk Label]],2) -> 
U93: =ABS(Table2[[#This Row],[Mean Severity (YOE $M)]]) -> 0 | V93: =LEFT(Table2[[#This Row],[Risk Label]],2) -> 
U94: =ABS(Table2[[#This Row],[Mean Severity (YOE $M)]]) -> 0 | V94: =LEFT(Table2[[#This Row],[Risk Label]],2) -> 
U95: =ABS(Table2[[#This Row],[Mean Severity (YOE $M)]]) -> 0 | V95: =LEFT(Table2[[#This Row],[Risk Label]],2) -> 
U96: =ABS(Table2[[#This Row],[Mean Severity (YOE $M)]]) -> 0 | V96: =LEFT(Table2[[#This Row],[Risk Label]],2) -> 
U97: =ABS(Table2[[#This Row],[Mean Severity (YOE $M)]]) -> 0 | V97: =LEFT(Table2[[#This Row],[Risk Label]],2) -> 
U98: =ABS(Table2[[#This Row],[Mean Severity (YOE $M)]]) -> 0 | V98: =LEFT(Table2[[#This Row],[Risk Label]],2) -> 
U99: =ABS(Table2[[#This Row],[Mean Severity (YOE $M)]]) -> 0 | V99: =LEFT(Table2[[#This Row],[Risk Label]],2) -> 
U100: =ABS(Table2[[#This Row],[Mean Severity (YOE $M)]]) -> 0 | V100: =LEFT(Table2[[#This Row],[Risk Label]],2) -> 
U101: =ABS(Table2[[#This Row],[Mean Severity (YOE $M)]]) -> 0 | V101: =LEFT(Table2[[#This Row],[Risk Label]],2) -> 
U102: =ABS(Table2[[#This Row],[Mean Severity (YOE $M)]]) -> 0 | V102: =LEFT(Table2[[#This Row],[Risk Label]],2) -> 
U103: =ABS(Table2[[#This Row],[Mean Severity (YOE $M)]]) -> 0 | V103: =LEFT(Table2[[#This Row],[Risk Label]],2) -> 
U104: =ABS(Table2[[#This Row],[Mean Severity (YOE $M)]]) -> 0 | V104: =LEFT(Table2[[#This Row],[Risk Label]],2) -> 

Sheet 6 - Unmit. Project Performance
D1: SHRP2 Risk Management Template
A2: HELP | D2: Step 06 - Unmitigated Project Performance
B3: Schedule Duration Assumption:
B4: Some risks in a phase will occur concurrently, while others will occur sequentially.
A6: Unmitigated Project Cost, Duration, and Disruption Performance
A7: Project Phase | B7: Base | F7: Risk | I7: Total (Base + Risk)
B8: Cost (CY $M) | C8: Duration (months) | D8: Disruption (M-hrs) | E8: Cost (CY $M) | F8: Duration (months) | G8: Disruption (M-hrs) | H8: Cost (CY $M) | I8: Duration (months) | J8: Disruption (M-hrs) | K8: Cost (YOE $M)
A9: Planning | C9: 0 | D9: 0 | E9: 0 | F9: 0 | G9: 0 | H9: 0 | I9: 0 | J9: 0
A10: Scoping | C10: 0 | D10: 0 | E10: 0 | F10: 0 | G10: 0 | H10: 0 | I10: 0 | J10: 0 | K10: 0
A11: Prelim Design/Environmental Process | B11: 1.19 | C11: 12 | D11: 0 | E11: 0.13125 | F11: 1.46875 | G11: 0 | H11: 1.32125 | I11: 13.46875 | J11: 0 | K11: 1.343322683
A12: Environmental Permits | C12: 6 | D12: 0 | E12: 0 | F12: 0.3125 | G12: 0 | H12: 0 | I12: 6.3125 | J12: 0 | K12: 0
A13: ROW/Util/RR | B13: 3 | C13: 12 | D13: 0.2 | E13: 2.625 | F13: 1.125 | G13: 0 | H13: 5.625 | I13: 13.125 | J13: 0.2 | K13: 5.909148859
A14: Final Design | C14: 6 | D14: 0 | E14: 0 | F14: 0.75 | G14: 0 | H14: 0 | I14: 6.75 | J14: 0 | K14: 0
A15: Procurement | C15: 6 | D15: 0 | E15: 0.259375 | F15: 0.2890625 | G15: 0 | H15: 0.259375 | I15: 6.2890625 | J15: 0 | K15: 0.2704737769
A16: Construction | B16: 11.85 | C16: 16 | D16: 0.5 | E16: 2.521054687 | F16: 0.8546875 | G16: 0.0025 | H16: 14.37105469 | I16: 16.8546875 | J16: 0.5025 | K16: 15.47265
A17: Operations & Maintenance | B17: 0 | C17: 600 | D17: 1.4 | E17: 0 | F17: 0 | G17: 0 | H17: 0 | I17: 600 | J17: 1.4 | K17: 0
A18: Replacement | B18: 0 | C18: 0 | D18: 0.7 | E18: 0 | G18: 0 | H18: 0 | I18: 0 | J18: 0.7
A19: Total | B19: 16.04 | D19: 2.8 | E19: 5.536679687 | G19: 0.0025 | H19: 21.57667969 | J19: 2.8025 | K19: 22.99559532
A22: Project Schedule Performance (Base vs. Unmitigated)
A23: Project Phase | D23: Base Project Schedule Performance | J23: Unmitigated Project Schedule Performance | N23: Mean
B24: Duration (Months/Date) | C24: Early Start | D24: Early Finish | E24: Late Start | F24: Late Finish | G24: Float (months) | H24: Duration (Months / Date) | I24: Early Start | J24: Early Finish | K24: Late Start | L24: Late Finish | M24: Float (months) | N24: Severity YOE ($M)
A25: Planning | B25: 0 | C25: ='1 - Project Structuring'!$E$15 -> 40148 | D25: =IF(OR(C25="",B25=""),"",C25+(B25*30.4)) -> 40148 | E25: =IF(OR(F25="",B25=""),"",F25-(B25*30.4)) -> 40148 | F25: =IF(E26 = "", "",E26) -> 40148 | G25: =IF(OR(F25 ="",D25 =""),"",(F25-D25)/30.4) -> 0 | H25: 0 | I25: ='1 - Project Structuring'!$E$15 -> 40148 | J25: =IF(OR(I25="",H25=""),"",I25+(H25*30.4)) -> 40148 | K25: =IF(OR(L25="",H25=""),"",L25-(H25*30.4)) -> 40148 | L25: =IF(K26 = "", "",K26) -> 40148 | M25: =IF(OR(L25 ="",J25 =""),"",(L25-J25)/30.4) -> 0 | N25: =SUMIFS('5 - Unmit. Risk Register'!$H$5:$H$104,'5 - Unmit. Risk Register'!$V$5:$V$104,"PL") -> 0.01335851501
A26: Scoping | B26: 0 | C26: =IF(D25="","",D25) -> 40148 | D26: =IF(OR(C26="",B26=""),"",C26+(B26*30.4)) -> 40148 | E26: =IF(OR(F26="",B26=""),"",F26-(B26*30.4)) -> 40148 | F26: =IF(E28 = "", "",E28) -> 40148 | G26: =IF(OR(F26 ="",D26 =""),"",(F26-D26)/30.4) -> 0 | H26: 0 | I26: =IF(J25="","",J25) -> 40148 | J26: =IF(OR(I26="",H26=""),"",I26+(H26*30.4)) -> 40148 | K26: =IF(OR(L26="",H26=""),"",L26-(H26*30.4)) -> 40148 | L26: =IF(K28 = "", "",K28) -> 40148 | M26: =IF(OR(L26 ="",J26 =""),"",(L26-J26)/30.4) -> 0 | N26: =SUMIFS('5 - Unmit. Risk Register'!$H$5:$H$104,'5 - Unmit. Risk Register'!$V$5:$V$104,"SC") -> 0.8876570807
A27: Design Funding Date | B27: 40148 | D27: =IF(B27 ="", "",B27) -> 40148 | F27: =IF(E28 = "", "",E28) -> 40148 | G27: 0 | H27: 40148 | J27: =IF(H27 ="", "",H27) -> 40148 | L27: =IF(K28 = "", "",K28) -> 40148 | M27: 0 | N27: =SUMIFS('5 - Unmit. Risk Register'!$H$5:$H$104,'5 - Unmit. Risk Register'!$V$5:$V$104,"F1") -> 0
A28: Prelim Design/Environmental Process | B28: 12 | C28: =IF(OR(D27="",D26=""),"",MAX(D27,D26)) -> 40148 | D28: =IF(OR(C28="",B28=""),"",C28+(B28*30.4)) -> 40512.8 | E28: =IF(OR(F28="",B28=""),"",F28-(B28*30.4)) -> 40148 | F28: =IF(OR(E29="",E31="",E33=""),"",MIN(E29,E31,E33)) -> 40512.8 | G28: 0 | H28: 13.46875 | I28: =IF(OR(J27="",J26=""),"",MAX(J27,J26)) -> 40148 | J28: =IF(OR(I28="",H28=""),"",I28+(H28*30.4)) -> 40557.45 | K28: =IF(OR(L28="",H28=""),"",L28-(H28*30.4)) -> 40148 | L28: =IF(OR(K29="",K31="",K33=""),"",MIN(K29,K31,K33)) -> 40557.45 | M28: 0 | N28: =SUMIFS('5 - Unmit. Risk Register'!$H$5:$H$104,'5 - Unmit. Risk Register'!$V$5:$V$104,"PD") -> 1.367673217
A29: Environmental Permits | B29: 6 | C29: =IF(D28="","",D28) -> 40512.8 | D29: =IF(OR(C29="",B29=""),"",C29+(B29*30.4)) -> 40695.2 | E29: =IF(OR(F29="",B29=""),"",F29-(B29*30.4)) -> 40512.8 | F29: =IF(OR(E35="",F33="",F31=""),"",MIN(E35,F33-('1 - Project Structuring'!$J$39*30.4)+('1 - Project Structuring'!$J$38*30.4),F31-('1 - Project Structuring'!$J$41*30.4)+('1 - Project Structuring'!$J$40*30.4))) -> 40695.2 | G29: 0 | H29: 6.3125 | I29: =IF(J28="","",J28) -> 40557.45 | J29: =IF(OR(I29="",H29=""),"",I29+(H29*30.4)) -> 40749.35 | K29: =IF(OR(L29="",H29=""),"",L29-(H29*30.4)) -> 40582.15 | L29: =IF(OR(K35="",L33="",L31=""),"",MIN(K35,L33-('1 - Project Structuring'!$J$39*30.4)+('1 - Project Structuring'!$J$38*30.4),L31-('1 - Project Structuring'!$J$41*30.4)+('1 - Project Structuring'!$J$40*30.4))) -> 40774.05 | M29: 0.8125 | N29: =SUMIFS('5 - Unmit. Risk Register'!$H$5:$H$104,'5 - Unmit. Risk Register'!$V$5:$V$104,"EP") -> 0.07345163098
A30: ROW/Util/RR Funding Date | B30: 40148 | D30: =IF(B30="","",B30) -> 40148 | F30: =IF(OR(F31=""),"",F31-('1 - Project Structuring'!$J$42*30.4)) -> 40877.6 | G30: 24 | H30: 40148 | J30: =IF(H30="","",H30) -> 40148 | L30: =IF(OR(L31=""),"",L31-('1 - Project Structuring'!$J$42*30.4)) -> 40956.45 | M30: 26.59375 | N30: =SUMIFS('5 - Unmit. Risk Register'!$H$5:$H$104,'5 - Unmit. Risk Register'!$V$5:$V$104,"F2") -> 0
A31: ROW/Util/RR | B31: 12 | C31: =IF(D28="","",D28) -> 40512.8 | D31: =IF(OR(C31="",B31="",D30=""),"",MAX(C31+(B31*30.4),D30+('1 - Project Structuring'!$J$42*30.4),D29-('1 - Project Structuring'!$J$40*30.4)+('1 - Project Structuring'!$J$41*30.4))) -> 40877.6 | E31: =IF(OR(F31="",B31=""),"",F31-(B31*30.4)) -> 40512.8 | F31: =IF(OR(E35="",F35=""),"",MIN(E35+('1 - Project Structuring'!$J$43*30.4),F35-('1 - Project Structuring'!$J$46*30.4),F33-('1 - Project Structuring'!$J$48*30.4)+('1 - Project Structuring'!$J$47*30.4))) -> 40877.6 | G31: 0 | H31: 13.125 | I31: =IF(J28="","",J28) -> 40557.45 | J31: =IF(OR(I31="",H31="",J30=""),"",MAX(I31+(H31*30.4),J30+('1 - Project Structuring'!$J$42*30.4),J29-('1 - Project Structuring'!$J$40*30.4)+('1 - Project Structuring'!$J$41*30.4))) -> 40956.45 | K31: =IF(OR(L31="",H31=""),"",L31-(H31*30.4)) -> 40557.45 | L31: =IF(OR(K35="",L35=""),"",MIN(K35+('1 - Project Structuring'!$J$43*30.4),L35-('1 - Project Structuring'!$J$46*30.4),L33-('1 - Project Structuring'!$J$48*30.4)+('1 - Project Structuring'!$J$47*30.4))) -> 40956.45 | M31: 0 | N31: =SUMIFS('5 - Unmit. Risk Register'!$H$5:$H$104,'5 - Unmit. Risk Register'!$V$5:$V$104,"RR") -> 2.478263123
A32: Construction Funding Date | B32: 40148 | D32: =IF(B32="","",B32) -> 40148 | F32: =IF(E33="","",E33) -> 40512.8 | G32: 12 | H32: 40148 | J32: =IF(H32="","",H32) -> 40148 | L32: =IF(K33="","",K33) -> 40582.8625 | M32: 14.3046875 | N32: =SUMIFS('5 - Unmit. Risk Register'!$H$5:$H$104,'5 - Unmit. Risk Register'!$V$5:$V$104,"F3") -> 0
A33: Procurement | B33: 6 | C33: =IF(OR(D32="",D28=""),"",MAX(D32,D28)) -> 40512.8 | D33: =IF(OR(C33="",B33="",D29="",D31=""),"",MAX(C33+(B33*30.4),D29-('1 - Project Structuring'!$J$38*30.4)+('1 - Project Structuring'!$J$39*30.4),D31-('1 - Project Structuring'!$J$47*30.4)+('1 - Project Structuring'!$J$48*30.4))) -> 40695.2 | E33: =IF(OR(F33="",B33=""),"",F33-(B33*30.4)) -> 40512.8 | F33: =IF(E34="","",E34) -> 40695.2 | G33: 0 | H33: 6.2890625 | I33: =IF(OR(J32="",J28=""),"",MAX(J32,J28)) -> 40557.45 | J33: =IF(OR(I33="",H33="",J29="",J31=""),"",MAX(I33+(H33*30.4),J29-('1 - Project Structuring'!$J$38*30.4)+('1 - Project Structuring'!$J$39*30.4),J31-('1 - Project Structuring'!$J$47*30.4)+('1 - Project Structuring'!$J$48*30.4))) -> 40774.05 | K33: =IF(OR(L33="",H33=""),"",L33-(H33*30.4)) -> 40582.8625 | L33: =IF(K34="","",K34) -> 40774.05 | M33: 0 | N33: =SUMIFS('5 - Unmit. Risk Register'!$H$5:$H$104,'5 - Unmit. Risk Register'!$V$5:$V$104,"PR") -> 1.010874429
A34: Final Design | B34: 6 | C34: =IF(D33="","",D33) -> 40695.2 | D34: =IF(OR(C34="",B34=""),"",C34+(B34*30.4)) -> 40877.6 | E34: =IF(OR(F34="",B34="",E35=""),"",MIN(F34-(B34*30.4),E35-('1 - Project Structuring'!$J$44*30.4))) -> 40695.2 | F34: =IF(OR(F35=""),"",F35-('1 - Project Structuring'!$J$45*30.4)) -> 41029.6 | G34: 5 | H34: 6.75 | I34: =IF(J33="","",J33) -> 40774.05 | J34: =IF(OR(I34="",H34=""),"",I34+(H34*30.4)) -> 40979.25 | K34: =IF(OR(L34="",H34="",K35=""),"",MIN(L34-(H34*30.4),K35-('1 - Project Structuring'!$J$44*30.4))) -> 40774.05 | L34: =IF(OR(L35=""),"",L35-('1 - Project Structuring'!$J$45*30.4)) -> 41134.4325 | M34: 5.1046875 | N34: =SUMIFS('5 - Unmit. Risk Register'!$H$5:$H$104,'5 - Unmit. Risk Register'!$V$5:$V$104,"FD") -> 0
A35: Construction | B35: 16 | C35: =IF(OR(D29="",C34="",,D31=""),"",MAX(D29,C34+('1 - Project Structuring'!$J$44*30.4),D31-('1 - Project Structuring'!$J$43*30.4))) -> 40725.6 | D35: =IF(OR(C35="",B35="",D34="",D31=""),"",MAX(C35+(B35*30.4),D34+('1 - Project Structuring'!$J$45*30.4),D31+('1 - Project Structuring'!$J$46*30.4))) -> 41212 | E35: =IF(OR(F35="",B35=""),"",F35-(B35*30.4)) -> 40725.6 | F35: =IF(D35="","",D35) -> 41212 | G35: 0 | H35: 16.8546875 | I35: =IF(OR(J29="",I34="",,J31=""),"",MAX(J29,I34+('1 - Project Structuring'!$J$44*30.4),J31-('1 - Project Structuring'!$J$43*30.4))) -> 40804.45 | J35: =IF(OR(I35="",H35="",J34="",J31=""),"",MAX(I35+(H35*30.4),J34+('1 - Project Structuring'!$J$45*30.4),J31+('1 - Project Structuring'!$J$46*30.4))) -> 41316.8325 | K35: =IF(OR(L35="",H35=""),"",L35-(H35*30.4)) -> 40804.45 | L35: =IF(J35="","",J35) -> 41316.8325 | M35: 0 | N35: =SUMIFS('5 - Unmit. Risk Register'!$H$5:$H$104,'5 - Unmit. Risk Register'!$V$5:$V$104,"CR") -> 0.9095471536
A36: Operations & Maintenance | B36: 600 | C36: =IF(OR(C35="",B35=""),"",C35+(B35*30.4)) -> 41212 | D36: =IF(OR(C36="",B36=""),"",C36+(B36*30.4)) -> 59452 | E36: =IF(OR(F36="",B36=""),"",F36-(B36*30.4)) -> 41212 | F36: =IF(E37="","",E37) -> 59452 | H36: 600 | I36: =IF(OR(I35="",H35=""),"",I35+(H35*30.4)) -> 41316.8325 | J36: =IF(OR(I36="",H36=""),"",I36+(H36*30.4)) -> 59556.8325 | K36: =IF(OR(L36="",H36=""),"",L36-(H36*30.4)) -> 41316.8325 | L36: =IF(K37="","",K37) -> 59556.8325
A37: Replacement | B37: 0 | C37: =IF(D36="","",D36) -> 59452 | D37: =IF(OR(C37="",B37=""),"",C37+(B37*30.4)) -> 59452 | E37: =IF(OR(F37="",B37=""),"",F37-(B37*30.4)) -> 59452 | F37: =IF(D37="","",D37) -> 59452 | H37: 0 | I37: =IF(J36="","",J36) -> 59556.8325 | J37: =IF(OR(I37="",H37=""),"",I37+(H37*30.4)) -> 59556.8325 | K37: =IF(OR(L37="",H37=""),"",L37-(H37*30.4)) -> 59556.8325 | L37: =IF(J37="","",J37) -> 59556.8325
A38: Project Start Date | B38: 40148 | H38: 40148 | M38: Total | N38: =SUM('6 - Unmit. Project Performance'!$N$25:$N$37) -> 6.740825149
A39: Construction Finish Date | B39: 41212 | H39: 41316.8325
A40: Project Duration (months) | B40: 35 | H40: 38.4484375

Sheet 7 - Unmit. Risk Ranking Plots
M1: SHRP2 Risk Management Template
A2: HELP | M2: Step 07 - Unmitigated Risk Ranking Plots

Sheet 8 - Risk Mitigation Strategies
F1: SHRP2 Risk Management Template
A2: HELP | F2: Step 08 - Risk Mitigation Strategies
A6: Risk Mitigation Label | B6: Risk Mitigation Actions | D6: Implementation Needs of Risk Mitigation Actions | M6: Consequences of Risk Mitigation Actions | Q6: Effectiveness of Risk Mitigation Actions | W6: Mitigated Severity | AA6: Risk Mitigation Consequences Performance | AG6: Unmitigated Severity
C7: Cost | E7: Schedule | G7: Disruption | I7: New | J7: Probability | M7: Percentage Mitigated, if implemented
C8: Mean Cost (CY $M) | D8: Affected Phase | E8: Mean Duration (months) | F8: Affected Phase | G8: Mean Disruption (M-Hr) | H8: Affected Phase | I8: Adjectival (VL, L, M, H, VH) | J8: Numerical | K8: Cost (%) | L8: Mean Cost (CY $M) | M8: Duration (%) | N8: Mean Duration (months) | O8: Disruption (%) | P8: Mean Disruption (M-Hr) | Q8: Mitigated Severity (%) | R8: Benefit/Cost Ratio | S8: Action Selected | U8: Mean Cost Change (YOE $M) | V8: Mean Duration Change (YOE $M) | W8: Mean Disruption Change (YOE $M) | X8: Mean Change to Crit. Path (YOE $M) | Y8: Mean Severity (YOE $M) | Z8: Cost (CY $M) | AA8: Duration (Months) | AB8: Disruption (M-Hr) | AC8: Mean change to critical path | AD8: Mean Severity (YOE $M) | AE8: Mean Cost Change (YOE $M) | AF8: Mean Duration Change (YOE $M) | AG8: Mean Disruption Change (YOE $M) | AH8: Mean Change to Crit. Path (YOE $M) | AI8: Mean Severity (YOE $M)
A11: SC-6 | B11: Provide new lighting throughout project.
A12: SC-6_1 | B12: Do Nothing | J12: 0.55 | K12: 0 | L12: 1.05 | M12: 0 | N12: 0 | O12: 0 | P12: 0 | S12: No | AI12: 0.6171633936
A13: SC-6_2 | B13: Negotiate cost sharing agreement with the city | C13: 0 | D13: Construction | E13: 0 | F13: Construction | G13: 0 | H13: Construction | J13: 0.55 | K13: 50 | L13: 0.28875 | N13: 0 | P13: 0 | Q13: 50 | R13: No Cost | S13: Yes | U13: 0 | V13: 0 | W13: 0 | X13: 0 | Y13: 0 | AE13: 0.3085816968 | AF13: 0 | AG13: 0 | AH13: 0 | AI13: 0.3085816968 | AJ13: 0 | AK13: 0 | AL13: 0 | AM13: 0 | AN13: 0 | AO13: 0.28875 | AP13: 0 | AQ13: 0 | AR13: 0 | AS13: 0.3085816968
A14: SC-6_3 | S14: No
A15: SC-6_4 | S15: No
A16: SC-6_5 | S16: No
A18: RR-3 | B18: Unwilling sellers
A19: RR-3_1 | B19: Do Nothing | J19: 0.55 | K19: 0 | L19: 1.05 | M19: 0 | N19: 0 | O19: 0 | P19: 0 | S19: No | AI19: 0.6036484666
A20: RR-3_2 | B20: Make reasonable early offer | C20: 0.05 | D20: ROW/Util/RR | E20: 0 | F20: ROW/Util/RR | G20: 0 | H20: ROW/Util/RR | J20: 0.275 | L20: 0.28875 | N20: 0 | P20: 0 | Q20: 50 | R20: 5.775 | S20: Yes | U20: 0.05226393651 | V20: 0 | W20: 0 | X20: 0 | Y20: 0.05226393651 | AE20: 0.3018242333 | AF20: 0 | AG20: 0 | AH20: 0 | AI20: 0.3018242333 | AJ20: 0.05 | AK20: 0 | AL20: 0 | AM20: 0 | AN20: 0.05226393651 | AO20: 0.28875 | AP20: 0 | AQ20: 0 | AR20: 0 | AS20: 0.3018242333
A21: RR-3_3 | S21: No
A22: RR-3_4 | S22: No
A23: RR-3_5 | S23: No
A25: CR-2 | B25: Additional Maintenance of Traffic required
A26: CR-2_1 | B26: Do Nothing | J26: 0.55 | K26: 0 | L26: 0.35 | M26: 0 | N26: 0.125 | O26: 0 | P26: 0.05 | S26: No | AI26: 0.5063097088
A27: CR-2_2 | B27: Reduce traffic demand during closures | C27: 0.05 | D27: Final Design | E27: 0 | F27: Final Design | G27: 0 | H27: Construction | J27: 0.275 | L27: 0.09625 | N27: 0.034375 | O27: 67 | P27: 0.0045375 | Q27: 68.19725248 | R27: 6.558064198 | S27: Yes | U27: 0.05265110252 | V27: 0 | W27: 0 | X27: 0 | Y27: 0.05265110252 | AE27: 0.1028605656 | AF27: 0.001081051661 | AG27: 0.045375 | AH27: 0.008266281071 | AI27: 0.1610203983 | AJ27: 0.05 | AK27: 0 | AL27: 0 | AM27: 0 | AN27: 0.05265110252 | AO27: 0.09625 | AP27: 0.034375 | AQ27: 0.0045375 | AR27: 0.034375 | AS27: 0.1610203983
A28: CR-2_3 | S28: No
A29: CR-2_4 | S29: No
A30: CR-2_5 | S30: No
A32: RR-2 | B32: Accelerating pace of development in interchange area
A33: RR-2_1 | B33: Do Nothing | J33: 0.3 | K33: 0 | L33: 1.05 | M33: 0 | N33: 2.5 | O33: 0 | P33: 0 | S33: No | AI33: 0.5120507325
A34: RR-2_2 | B34: Coordinate with City - stop issuing permits for new develoipments | C34: 0 | D34: ROW/Util/RR | E34: 0 | F34: ROW/Util/RR | G34: 0 | H34: ROW/Util/RR | J34: 0.15 | L34: 0.1575 | N34: 0.375 | P34: 0 | Q34: 50.03808625 | R34: No Cost | S34: Yes | U34: 0 | V34: 0 | W34: 0 | X34: 0 | Y34: 0 | AE34: 0.1646314 | AF34: 0.003050091887 | AG34: 0 | AH34: 0.05064885344 | AI34: 0.2558303453 | AJ34: 0 | AK34: 0 | AL34: 0 | AM34: 0 | AN34: 0 | AO34: 0.1575 | AP34: 0.375 | AQ34: 0 | AR34: 0.375 | AS34: 0.2558303453
A35: RR-2_3 | S35: No
A36: RR-2_4 | S36: No
A37: RR-2_5 | S37: No
A39: PD-11 | B39: Cannot use City sewer system for project runoff (or City charges for use).
A40: PD-11_1 | B40: Do Nothing | J40: 0.3 | K40: 0 | L40: 1.05 | M40: 0 | N40: 0.625 | O40: 0 | P40: 0 | S40: No | AI40: 0.3749276312
A41: PD-11_2 | B41: Same action as RR8 (affects RR8 and PD11) | C41: 0 | D41: Final Design | E41: 0 | F41: Final Design | G41: 0 | H41: Final Design | J41: 0.15 | L41: 0.1575 | N41: 0.09375 | P41: 0 | Q41: 50.01085535 | R41: No Cost | S41: Yes | U41: 0 | V41: 0 | W41: 0 | X41: 0 | Y41: 0 | AE41: 0.1646314 | AF41: 0.0007622588602 | AG41: 0 | AH41: 0.01265445706 | AI41: 0.1874231159 | AJ41: 0 | AK41: 0 | AL41: 0 | AM41: 0 | AN41: 0 | AO41: 0.1575 | AP41: 0.09375 | AQ41: 0 | AR41: 0.09375 | AS41: 0.1874231159
A42: PD-11_3 | S42: No
A43: PD-11_4 | S43: No
A44: PD-11_5 | S44: No
A46: RR-8 | B46: QDOT helps City pay for water and sewer-line relocation
A47: RR-8_1 | B47: Do Nothing | J47: 0.55 | K47: 0 | L47: 1.05 | M47: 0 | N47: 0 | O47: 0 | P47: 0 | S47: No | AI47: 0.6036484666
A48: RR-8_2 | B48: Decide to help City pay for water and sewer line relocation | C48: 0 | D48: Construction | E48: 0 | F48: Construction | G48: 0 | H48: Construction | J48: 0.865 | L48: 0.90825 | N48: 0 | P48: 0 | Q48: -57.27272727 | R48: No Cost | S48: Yes | U48: 0 | V48: 0 | W48: 0 | X48: 0 | Y48: 0 | AE48: 0.9493744066 | AF48: 0 | AG48: 0 | AH48: 0 | AI48: 0.9493744066 | AJ48: 0 | AK48: 0 | AL48: 0 | AM48: 0 | AN48: 0 | AO48: 0.90825 | AP48: 0 | AQ48: 0 | AR48: 0 | AS48: 0.9493744066
A49: RR-8_3 | S49: No
A50: RR-8_4 | S50: No
A51: RR-8_5 | S51: No
A53: CR-4 | B53: Unable to construct interchange embankments as rapidly as assumed
A54: CR-4_1 | B54: Do Nothing | J54: 0.3 | K54: 0 | L54: 0.35 | M54: 0 | N54: 2.5 | O54: 0 | P54: 0 | S54: No | AI54: 0.3915096253
A55: CR-4_2 | B55: Conduct additional investigations and analysis to ddevelop alt techniques | C55: 0.1 | D55: Final Design | E55: 0 | F55: Final Design | G55: 0 | H55: Construction | J55: 0.15 | L55: 0.0525 | N55: 0.375 | P55: 0 | Q55: 50.03594082 | R55: 1.860317401 | S55: Yes | U55: 0.105302205 | V55: 0 | W55: 0 | X55: 0 | Y55: 0.105302205 | AE55: 0.05610576305 | AF55: 0.01175503186 | AG55: 0 | AH55: 0.09025330595 | AI55: 0.1956141009 | AJ55: 0.1 | AK55: 0 | AL55: 0 | AM55: 0 | AN55: 0.105302205 | AO55: 0.0525 | AP55: 0.375 | AQ55: 0 | AR55: 0.375 | AS55: 0.1956141009
A56: CR-4_3 | S56: No
A57: CR-4_4 | S57: No
A58: CR-4_5 | S58: No
A60: CR-3 | B60: Problems with planned accelerated bridge construction (ABC) technique
A61: CR-3_1 | B61: Do Nothing | J61: 0.55 | K61: 0 | L61: 0.35 | M61: 0 | N61: 0.625 | O61: 0 | P61: 0 | S61: No | AI61: 0.3337237297
A62: CR-3_2 | B62: Pre-qualify contractors + require development of ABC technique | C62: 0.05 | D62: Final Design | E62: 0 | F62: Final Design | G62: 0 | H62: Construction | J62: 0.275 | L62: 0.09625 | N62: 0.171875 | P62: 0 | Q62: 50.01864387 | R62: 3.170381547 | S62: Yes | U62: 0.05265110252 | V62: 0 | W62: 0 | X62: 0 | Y62: 0.05265110252 | AE62: 0.1028605656 | AF62: 0.005406173787 | AG62: 0 | AH62: 0.04134540645 | AI62: 0.1667996458 | AJ62: 0.05 | AK62: 0 | AL62: 0 | AM62: 0 | AN62: 0.05265110252 | AO62: 0.09625 | AP62: 0.171875 | AQ62: 0 | AR62: 0.171875 | AS62: 0.1667996458
A63: CR-3_3 | S63: No | AJ63: 0.05 | AK63: 0 | AL63: 0 | AM63: 0 | AN63: 0.05343406005 | AO63: 0.1925 | AP63: 0.34375 | AQ63: 0 | AR63: 0.34375 | AS63: 0.3355620815
A64: CR-3_4 | S64: No
A65: CR-3_5 | S65: No
U70: =IF(K70, K70,"") ->  | V70: =IF(M70, M70,"") ->  | W70: =IF(O70, O70,"") -> 
U134: =IF(K134, K134,"") ->  | V134: =IF(M134, M134,"") ->  | W134: =IF(O134, O134,"") -> 
U198: =IF(K198, K198,"") ->  | V198: =IF(M198, M198,"") ->  | W198: =IF(O198, O198,"") -> 
U262: =IF(K262, K262,"") ->  | V262: =IF(M262, M262,"") ->  | W262: =IF(O262, O262,"") -> 
U326: =IF(K326, K326,"") ->  | V326: =IF(M326, M326,"") ->  | W326: =IF(O326, O326,"") -> 
U390: =IF(K390, K390,"") ->  | V390: =IF(M390, M390,"") ->  | W390: =IF(O390, O390,"") -> 
U454: =IF(K454, K454,"") ->  | V454: =IF(M454, M454,"") ->  | W454: =IF(O454, O454,"") -> 
U518: =IF(K518, K518,"") ->  | V518: =IF(M518, M518,"") ->  | W518: =IF(O518, O518,"") -> 
U582: =IF(K582, K582,"") ->  | V582: =IF(M582, M582,"") ->  | W582: =IF(O582, O582,"") -> 
U646: =IF(K646, K646,"") ->  | V646: =IF(M646, M646,"") ->  | W646: =IF(O646, O646,"") -> 
U710: =IF(K710, K710,"") ->  | V710: =IF(M710, M710,"") ->  | W710: =IF(O710, O710,"") -> 
U774: =IF(K774, K774,"") ->  | V774: =IF(M774, M774,"") ->  | W774: =IF(O774, O774,"") -> 
U838: =IF(K838, K838,"") ->  | V838: =IF(M838, M838,"") ->  | W838: =IF(O838, O838,"") -> 
U854: =IF(K854, K854,"") ->  | V854: =IF(M854, M854,"") ->  | W854: =IF(O854, O854,"") -> 
U855: =IF(K855, K855,"") ->  | V855: =IF(M855, M855,"") ->  | W855: =IF(O855, O855,"") -> 
U919: =IF(K919, K919,"") ->  | V919: =IF(M919, M919,"") ->  | W919: =IF(O919, O919,"") -> 

Sheet 9 - Mit. Strategies Register
E1: SHRP2 Risk Management Template
A2: HELP | E2: Step 09 - Mitigation Strategies Register
C3: NOTE: The order of the risks here is similar to the order of the
C4: risks selected for mitigation in Step 05- Unmitigated Risk Register
C5: Risk | D5: Risk Mitigation | G5: Implementation Effort | L5: Mitigated Risk Effort | O5: Effectiveness of Mitigation Actions
A6: Risk | B6: Risk Description | C6: Mitigation | D6: Action Description
A7: Label | C7: Label | E7: Mean Cost Change (YOE $M) | F7: Mean Duration Change (YOE $M) | G7: Mean Disruption Change (YOE $M) | H7: Mean Change to Crit. Path (YOE $M) | I7: Mean Severity (YOE $M) | J7: Mean Cost Change (YOE $M) | K7: Mean Duration Change (YOE $M) | L7: Mean Disruption Change (YOE $M) | M7: Mean Change to Crit. Path (YOE $M) | N7: Mean Severity (YOE $M) | O7: Mitigated Severity % | P7: Benefit/Cost Ratio | Q7: Responsibility | R7: Schedule /Milestone | S7: Comments
A9: SC-6 | B9: Provide new lighting throughout project. | C9: SC-6_2 | D9: Negotiate cost sharing agreement with the city | E9: 0 | F9: 0 | G9: 0 | H9: 0 | I9: 0 | J9: 0.28875 | K9: 0 | L9: 0 | M9: 0 | N9: 0.3085816968 | O9: 50 | P9: No Cost | Q9: Project Director | R9: Midway thru prelim design
A10: RR-3 | B10: Unwilling sellers | C10: RR-3_2 | D10: Make reasonable early offer | E10: 0.05 | F10: 0 | G10: 0 | H10: 0 | I10: 0.05226393651 | J10: 0.28875 | K10: 0 | L10: 0 | M10: 0 | N10: 0.3018242333 | O10: 50 | P10: 5.775 | Q10: Project Engineer | R10: Midway thru ROW/Util/RR
A11: CR-2 | B11: Additional Maintenance of Traffic required | C11: CR-2_2 | D11: Reduce traffic demand during closures | E11: 0.05 | F11: 0 | G11: 0 | H11: 0 | I11: 0.05265110252 | J11: 0.09625 | K11: 0.034375 | L11: 0.0045375 | M11: 0.034375 | N11: 0.1610203983 | O11: 68.19725248 | P11: 6.558064198 | Q11: Project Engineer | R11: Midway thru final design
A12: RR-2 | B12: Accelerating pace of development in interchange area | C12: RR-2_2 | D12: Coordinate with City - stop issuing permits for new develoipments | E12: 0 | F12: 0 | G12: 0 | H12: 0 | I12: 0 | J12: 0.1575 | K12: 0.375 | L12: 0 | M12: 0.375 | N12: 0.2558303453 | O12: 50.03808625 | P12: No Cost | Q12: Project Engineer | R12: Midway thru prelim design
A13: PD-11 | B13: Cannot use City sewer system for project runoff (or City charges for use). | C13: PD-11_2 | D13: Same action as RR8 (affects RR8 and PD11) | E13: 0 | F13: 0 | G13: 0 | H13: 0 | I13: 0 | J13: 0.1575 | K13: 0.09375 | L13: 0 | M13: 0.09375 | N13: 0.1874231159 | O13: 50.01085535 | P13: No Cost | Q13: Project Engineer | R13: Midway thru prelim design
A14: RR-8 | B14: QDOT helps City pay for water and sewer-line relocation | C14: RR-8_2 | D14: Decide to help City pay for water and sewer line relocation | E14: 0 | F14: 0 | G14: 0 | H14: 0 | I14: 0 | J14: 0.90825 | K14: 0 | L14: 0 | M14: 0 | N14: 0.9493744066 | O14: -57.27272727 | P14: No Cost
A15: CR-4 | B15: Unable to construct interchange embankments as rapidly as assumed | C15: CR-4_2 | D15: Conduct additional investigations and analysis to ddevelop alt techniques | E15: 0.1 | F15: 0 | G15: 0 | H15: 0 | I15: 0.105302205 | J15: 0.0525 | K15: 0.375 | L15: 0 | M15: 0.375 | N15: 0.1956141009 | O15: 50.03594082 | P15: 1.860317401 | Q15: Project Engineer | R15: Midway thru final design
A16: CR-3 | B16: Problems with planned accelerated bridge construction (ABC) technique | C16: CR-3_2 | D16: Pre-qualify contractors + require development of ABC technique | E16: 0.05 | F16: 0 | G16: 0 | H16: 0 | I16: 0.05265110252 | J16: 0.09625 | K16: 0.171875 | L16: 0 | M16: 0.171875 | N16: 0.1667996458 | O16: 50.01864387 | P16: 3.170381547 | Q16: Project Engineer | R16: Midway thru final design

Sheet 10 - Mit. Risk Register
D1: SHRP2 Risk Management Template
A2: HELP | D2: Step 10 - Mitigated Risk Register
B3: NOTE: Risks and opportunities are sorted by total severity, though the order should be identical whether using raw severity or percent of total severity
A4: Risk Label | B4: Risk Description | C4: Risk Type | D4: Mean Cost Impact (CY $M) | E4: Mean Duration Impact (months) | F4: Mean Disruption Impact (M-Hr) | G4: Mean Change to Critical Path Schedule | H4: Mean Severity (YOE $M) | I4: Percent of Total Mean Severity | J4: Risk Ranking based on Mean Severity | K4: Retire Risk ?
A5: RR-8 | B5: QDOT helps City pay for water and sewer-line relocation | C5: Threat | D5: 0.90825 | E5: 0 | F5: 0 | G5: 0 | H5: 0.9493744066 | I5: 0.1557216378 | J5: 1 | K5: No | U5: =ABS(Table245[[#This Row],[Mean Severity (YOE $M)]]) -> 0.9493744066 | V5: =LEFT(Table245[[#This Row],[Risk Label]],2) -> RR
A6: PR-1 | B6: Uncertainty in construction-cost inflation rate | C6: Threat | D6: 0.5775 | E6: 0 | F6: 0 | G6: 0 | H6: 0.6171633936 | I6: 0.1012305512 | J6: 2 | K6: No | U6: =ABS(Table245[[#This Row],[Mean Severity (YOE $M)]]) -> 0.6171633936 | V6: =LEFT(Table245[[#This Row],[Risk Label]],2) -> PR
A7: RR-1 | B7: Uncertainty in ROW inflation rate | C7: Threat | D7: 0.5775 | E7: 0 | F7: 0 | G7: 0 | H7: 0.6036484666 | I7: 0.09901375814 | J7: 3 | K7: No | U7: =ABS(Table245[[#This Row],[Mean Severity (YOE $M)]]) -> 0.6036484666 | V7: =LEFT(Table245[[#This Row],[Risk Label]],2) -> RR
A8: PD-13 | B8: Change in environmental documentation. | C8: Threat | D8: 0.13125 | E8: 1 | F8: 0 | G8: 1 | H8: 0.3794902688 | I8: 0.0622460915 | J8: 4 | K8: No | U8: =ABS(Table245[[#This Row],[Mean Severity (YOE $M)]]) -> 0.3794902688 | V8: =LEFT(Table245[[#This Row],[Risk Label]],2) -> PD
A9: PR-2 | B9: Uncertain Design/Build contracting market conditions at time of bid | C9: Threat | D9: 0.29625 | E9: 0.25 | F9: 0 | G9: 0.25 | H9: 0.3753535137 | I9: 0.06156755808 | J9: 5 | K9: No | U9: =ABS(Table245[[#This Row],[Mean Severity (YOE $M)]]) -> 0.3753535137 | V9: =LEFT(Table245[[#This Row],[Risk Label]],2) -> PR
A10: SC-6 | B10: Provide new lighting throughout project. | C10: Threat | D10: 0.28875 | E10: 0 | F10: 0 | G10: 0 | H10: 0.3085816968 | I10: 0.05061527558 | J10: 6 | K10: No | U10: =ABS(Table245[[#This Row],[Mean Severity (YOE $M)]]) -> 0.3085816968 | V10: =LEFT(Table245[[#This Row],[Risk Label]],2) -> SC
A11: RR-3 | B11: Unwilling sellers | C11: Threat | D11: 0.28875 | E11: 0 | F11: 0 | G11: 0 | H11: 0.3018242333 | I11: 0.04950687907 | J11: 7 | K11: No | U11: =ABS(Table245[[#This Row],[Mean Severity (YOE $M)]]) -> 0.3018242333 | V11: =LEFT(Table245[[#This Row],[Risk Label]],2) -> RR
A12: RR-2 | B12: Accelerating pace of development in interchange area | C12: Threat | D12: 0.1575 | E12: 0.375 | F12: 0 | G12: 0.375 | H12: 0.2558303453 | I12: 0.04196270733 | J12: 8 | K12: No | U12: =ABS(Table245[[#This Row],[Mean Severity (YOE $M)]]) -> 0.2558303453 | V12: =LEFT(Table245[[#This Row],[Risk Label]],2) -> RR
A13: PD-12 | B13: Structures impacted by Main Street realignment are eligible for Historic Register. | C13: Threat | D13: 0.13125 | E13: 0.3125 | F13: 0 | G13: 0.3125 | H13: 0.2131648826 | I13: 0.03496448231 | J13: 9 | K13: No | U13: =ABS(Table245[[#This Row],[Mean Severity (YOE $M)]]) -> 0.2131648826 | V13: =LEFT(Table245[[#This Row],[Risk Label]],2) -> PD
A14: CR-4 | B14: Unable to construct interchange embankments as rapidly as assumed | C14: Threat | D14: 0.0525 | E14: 0.375 | F14: 0 | G14: 0.375 | H14: 0.1956141009 | I14: 0.03208570607 | J14: 10 | K14: No | U14: =ABS(Table245[[#This Row],[Mean Severity (YOE $M)]]) -> 0.1956141009 | V14: =LEFT(Table245[[#This Row],[Risk Label]],2) -> CR
A15: PD-11 | B15: Cannot use City sewer system for project runoff (or City charges for use). | C15: Threat | D15: 0.1575 | E15: 0.09375 | F15: 0 | G15: 0.09375 | H15: 0.1874231159 | I15: 0.03074217545 | J15: 11 | K15: No | U15: =ABS(Table245[[#This Row],[Mean Severity (YOE $M)]]) -> 0.1874231159 | V15: =LEFT(Table245[[#This Row],[Risk Label]],2) -> PD
A16: PD-14 | B16: Delays completing environmental documentation. | C16: Threat | D16: 0 | E16: 0.75 | F16: 0 | G16: 0.75 | H16: 0.1844122722 | I16: 0.03024832022 | J16: 12 | K16: No | U16: =ABS(Table245[[#This Row],[Mean Severity (YOE $M)]]) -> 0.1844122722 | V16: =LEFT(Table245[[#This Row],[Risk Label]],2) -> PD
A17: PD-4 | B17: Ground improvement required in interchange area. | C17: Threat | D17: 0.13125 | E17: 0.078125 | F17: 0 | G17: 0.078125 | H17: 0.1693302015 | I17: 0.02777447561 | J17: 13 | K17: No | U17: =ABS(Table245[[#This Row],[Mean Severity (YOE $M)]]) -> 0.1693302015 | V17: =LEFT(Table245[[#This Row],[Risk Label]],2) -> PD
A18: CR-3 | B18: Problems with planned accelerated bridge construction (ABC) technique | C18: Threat | D18: 0.09625 | E18: 0.171875 | F18: 0 | G18: 0.171875 | H18: 0.1667996458 | I18: 0.02735939989 | J18: 14 | K18: No | U18: =ABS(Table245[[#This Row],[Mean Severity (YOE $M)]]) -> 0.1667996458 | V18: =LEFT(Table245[[#This Row],[Risk Label]],2) -> CR
A19: CR-2 | B19: Additional Maintenance of Traffic required | C19: Threat | D19: 0.09625 | E19: 0.034375 | F19: 0.0045375 | G19: 0.034375 | H19: 0.1610203983 | I19: 0.02641145577 | J19: 15 | K19: No | U19: =ABS(Table245[[#This Row],[Mean Severity (YOE $M)]]) -> 0.1610203983 | V19: =LEFT(Table245[[#This Row],[Risk Label]],2) -> CR
A20: SC-3 | B20: Additional local improvements required. | C20: Threat | D20: 0.105 | E20: 0.1875 | F20: 0 | G20: 0.1875 | H20: 0.158282161 | I20: 0.02596231494 | J20: 16 | K20: No | U20: =ABS(Table245[[#This Row],[Mean Severity (YOE $M)]]) -> 0.158282161 | V20: =LEFT(Table245[[#This Row],[Risk Label]],2) -> SC
A21: SC-5 | B21: Replace culvert over Wandering Creek. | C21: Threat | D21: 0.105 | E21: 0 | F21: 0 | G21: 0 | H21: 0.1122115261 | I21: 0.01840555476 | J21: 17 | K21: No | U21: =ABS(Table245[[#This Row],[Mean Severity (YOE $M)]]) -> 0.1122115261 | V21: =LEFT(Table245[[#This Row],[Risk Label]],2) -> SC
A22: PD-16 | B22: Additional wetland mitigation required for planned alignment. | C22: Threat | D22: 0.105 | E22: 0 | F22: 0 | G22: 0 | H22: 0.1122115261 | I22: 0.01840555476 | J22: 18 | K22: No | U22: =ABS(Table245[[#This Row],[Mean Severity (YOE $M)]]) -> 0.1122115261 | V22: =LEFT(Table245[[#This Row],[Risk Label]],2) -> PD
A23: RR-7 | B23: Telecom utility wants a cost-sharing agreement | C23: Threat | D23: 0.105 | E23: 0 | F23: 0 | G23: 0 | H23: 0.1097542667 | I23: 0.01800250148 | J23: 19 | K23: No | U23: =ABS(Table245[[#This Row],[Mean Severity (YOE $M)]]) -> 0.1097542667 | V23: =LEFT(Table245[[#This Row],[Risk Label]],2) -> RR
A24: PD-5 | B24: Shoulders required on US-555. | C24: Threat | D24: 0.07 | E24: 0.0625 | F24: 0 | G24: 0.0625 | H24: 0.09804962471 | I24: 0.01608264141 | J24: 20 | K24: No | U24: =ABS(Table245[[#This Row],[Mean Severity (YOE $M)]]) -> 0.09804962471 | V24: =LEFT(Table245[[#This Row],[Risk Label]],2) -> PD
A25: PD-6 | B25: Shoulders required on SH-111. | C25: Threat | D25: 0.07 | E25: 0.0625 | F25: 0 | G25: 0.0625 | H25: 0.09804962471 | I25: 0.01608264141 | J25: 21 | K25: No | U25: =ABS(Table245[[#This Row],[Mean Severity (YOE $M)]]) -> 0.09804962471 | V25: =LEFT(Table245[[#This Row],[Risk Label]],2) -> PD
A26: CR-5 | B26: Difficult foundation installation | C26: Threat | D26: 0.04375 | E26: 0.078125 | F26: 0 | G26: 0.078125 | H26: 0.07580259964 | I26: 0.01243356139 | J26: 22 | K26: No | U26: =ABS(Table245[[#This Row],[Mean Severity (YOE $M)]]) -> 0.07580259964 | V26: =LEFT(Table245[[#This Row],[Risk Label]],2) -> CR
A27: EP-2 | B27: Delay obtaining the 404 permit | C27: Threat | D27: 0 | E27: 0.3125 | F27: 0 | G27: 0.3125 | H27: 0.07345163098 | I27: 0.01204794251 | J27: 23 | K27: No | U27: =ABS(Table245[[#This Row],[Mean Severity (YOE $M)]]) -> 0.07345163098 | V27: =LEFT(Table245[[#This Row],[Risk Label]],2) -> EP
A28: RR-6 | B28: Other delays to ROW planning | C28: Threat | D28: 0 | E28: 0.1875 | F28: 0 | G28: 0.1875 | H28: 0.04551272401 | I28: 0.007465248561 | J28: 24 | K28: No | U28: =ABS(Table245[[#This Row],[Mean Severity (YOE $M)]]) -> 0.04551272401 | V28: =LEFT(Table245[[#This Row],[Risk Label]],2) -> RR
A29: PD-1 | B29: Shift alignment of US 555 at east end of project | C29: Threat | D29: 0.02625 | E29: 0.0625 | F29: 0 | G29: 0.0625 | H29: 0.04261132731 | I29: 0.006989345438 | J29: 25 | K29: No | U29: =ABS(Table245[[#This Row],[Mean Severity (YOE $M)]]) -> 0.04261132731 | V29: =LEFT(Table245[[#This Row],[Risk Label]],2) -> PD
A30: PD-15 | B30: Encounter unanticipated contamination in interchange area. | C30: Threat | D30: 0.03 | E30: 0 | F30: 0 | G30: 0 | H30: 0.03206043603 | I30: 0.00525872993 | J30: 26 | K30: No | U30: =ABS(Table245[[#This Row],[Mean Severity (YOE $M)]]) -> 0.03206043603 | V30: =LEFT(Table245[[#This Row],[Risk Label]],2) -> PD
A31: CR-9 | B31: Limited construction staging area in vicinity of interchange | C31: Threat | D31: 0.03 | E31: 0 | F31: 0 | G31: 0 | H31: 0.03206043603 | I31: 0.00525872993 | J31: 27 | K31: No | U31: =ABS(Table245[[#This Row],[Mean Severity (YOE $M)]]) -> 0.03206043603 | V31: =LEFT(Table245[[#This Row],[Risk Label]],2) -> CR
A32: PR-8 | B32: Other problems with D/B contract procurement | C32: Threat | D32: 0 | E32: 0.078125 | F32: 0 | G32: 0.078125 | H32: 0.01835752192 | I32: 0.003011102216 | J32: 28 | K32: No | U32: =ABS(Table245[[#This Row],[Mean Severity (YOE $M)]]) -> 0.01835752192 | V32: =LEFT(Table245[[#This Row],[Risk Label]],2) -> PR
A33: PL-2 | B33: Opposition to removing access to US-555 fro 12th St. | C33: Threat | D33: 0.0125 | E33: 0 | F33: 0 | G33: 0 | H33: 0.01335851501 | I33: 0.002191137471 | J33: 29 | K33: No | U33: =ABS(Table245[[#This Row],[Mean Severity (YOE $M)]]) -> 0.01335851501 | V33: =LEFT(Table245[[#This Row],[Risk Label]],2) -> PL
A34: CR-7 | B34: Colder-than-usual winter | C34: Threat | D34: 0 | E34: 0.015625 | F34: 0 | G34: 0.015625 | H34: 0.005807143748 | I34: 0.0009525198163 | J34: 30 | K34: No | U34: =ABS(Table245[[#This Row],[Mean Severity (YOE $M)]]) -> 0.005807143748 | V34: =LEFT(Table245[[#This Row],[Risk Label]],2) -> CR
A35: CR-1 | B35: D/B construction phasing significantly different than assumed | C35: Opportunity | D35: 0 | E35: -0.5 | F35: -0.025 | G35: -0.5 | H35: -0.4356660896 | I35: 0.5641146094 | J35: 1 | K35: No | U35: =ABS(Table245[[#This Row],[Mean Severity (YOE $M)]]) -> 0.4356660896 | V35: =LEFT(Table245[[#This Row],[Risk Label]],2) -> CR
A36: PD-8 | B36: Change in pavement section and/or type. | C36: Opportunity | D36: -0.315 | E36: 0 | F36: 0 | G36: 0 | H36: -0.3366345783 | I36: 0.4358853906 | J36: 2 | K36: No | U36: =ABS(Table245[[#This Row],[Mean Severity (YOE $M)]]) -> 0.3366345783 | V36: =LEFT(Table245[[#This Row],[Risk Label]],2) -> PD
A37: PL-1 | B37: Project funding delayed or reduced. | C37: No Impact | D37: 0 | E37: 0 | F37: 0 | G37: 0 | H37: 0 | I37: 0 | K37: No | U37: =ABS(Table245[[#This Row],[Mean Severity (YOE $M)]]) -> 0 | V37: =LEFT(Table245[[#This Row],[Risk Label]],2) -> PL
A38: PL-3 | B38: Opposition to "splitting" alignment of SH-111 in the interchange area. | C38: No Impact | D38: 0 | E38: 0 | F38: 0 | G38: 0 | H38: 0 | I38: 0 | K38: No | U38: =ABS(Table245[[#This Row],[Mean Severity (YOE $M)]]) -> 0 | V38: =LEFT(Table245[[#This Row],[Risk Label]],2) -> PL
A39: PL-4 | B39: Other stakeholder issues not captured separately. | C39: No Impact | D39: 0 | E39: 0 | F39: 0 | G39: 0 | H39: 0 | I39: 0 | K39: No | U39: =ABS(Table245[[#This Row],[Mean Severity (YOE $M)]]) -> 0 | V39: =LEFT(Table245[[#This Row],[Risk Label]],2) -> PL
A40: SC-1 | B40: Change in East-West project limits. | C40: No Impact | D40: 0 | E40: 0 | F40: 0 | G40: 0 | H40: 0 | I40: 0 | K40: No | U40: =ABS(Table245[[#This Row],[Mean Severity (YOE $M)]]) -> 0 | V40: =LEFT(Table245[[#This Row],[Risk Label]],2) -> SC
A41: SC-2 | B41: Change in North-South project limits. | C41: No Impact | D41: 0 | E41: 0 | F41: 0 | G41: 0 | H41: 0 | I41: 0 | K41: No | U41: =ABS(Table245[[#This Row],[Mean Severity (YOE $M)]]) -> 0 | V41: =LEFT(Table245[[#This Row],[Risk Label]],2) -> SC
A42: SC-4 | B42: Increased aestethetics for US-555/SH-111 interchange. | C42: No Impact | D42: 0 | E42: 0 | F42: 0 | G42: 0 | H42: 0 | I42: 0 | K42: No | U42: =ABS(Table245[[#This Row],[Mean Severity (YOE $M)]]) -> 0 | V42: =LEFT(Table245[[#This Row],[Risk Label]],2) -> SC
A43: SC-7 | B43: ITS added to this project. | C43: No Impact | D43: 0 | E43: 0 | F43: 0 | G43: 0 | H43: 0 | I43: 0 | K43: No | U43: =ABS(Table245[[#This Row],[Mean Severity (YOE $M)]]) -> 0 | V43: =LEFT(Table245[[#This Row],[Risk Label]],2) -> SC
A44: PD-2 | B44: Split alignment of SH-111 at US-555 interchange. | C44: No Impact | D44: 0 | E44: 0 | F44: 0 | G44: 0 | H44: 0 | I44: 0 | K44: No | U44: =ABS(Table245[[#This Row],[Mean Severity (YOE $M)]]) -> 0 | V44: =LEFT(Table245[[#This Row],[Risk Label]],2) -> PD
A45: PD-3 | B45: Change in configuration of SH 111 / US 555 interchange. | C45: No Impact | D45: 0 | E45: 0 | F45: 0 | G45: 0 | H45: 0 | I45: 0 | K45: No | U45: =ABS(Table245[[#This Row],[Mean Severity (YOE $M)]]) -> 0 | V45: =LEFT(Table245[[#This Row],[Risk Label]],2) -> PD
A46: PD-7 | B46: Additional cost for signalized intersections. | C46: No Impact | D46: 0 | E46: 0 | F46: 0 | G46: 0 | H46: 0 | I46: 0 | K46: No | U46: =ABS(Table245[[#This Row],[Mean Severity (YOE $M)]]) -> 0 | V46: =LEFT(Table245[[#This Row],[Risk Label]],2) -> PD
A47: PD-9 | B47: Rehabilitate instead of reconstruct existing roadway (e.g., overlay instead). | C47: No Impact | D47: 0 | E47: 0 | F47: 0 | G47: 0 | H47: 0 | I47: 0 | K47: No | U47: =ABS(Table245[[#This Row],[Mean Severity (YOE $M)]]) -> 0 | V47: =LEFT(Table245[[#This Row],[Risk Label]],2) -> PD
A48: PD-10 | B48: Change in stormwater design standards. | C48: No Impact | D48: 0 | E48: 0 | F48: 0 | G48: 0 | H48: 0 | I48: 0 | K48: No | U48: =ABS(Table245[[#This Row],[Mean Severity (YOE $M)]]) -> 0 | V48: =LEFT(Table245[[#This Row],[Risk Label]],2) -> PD
A49: EP-1 | B49: Challenge to environmental determination or permits | C49: No Impact | D49: 0 | E49: 0 | F49: 0 | G49: 0 | H49: 0 | I49: 0 | K49: No | U49: =ABS(Table245[[#This Row],[Mean Severity (YOE $M)]]) -> 0 | V49: =LEFT(Table245[[#This Row],[Risk Label]],2) -> EP
A50: RR-4 | B50: Additional relocation or demolition required | C50: No Impact | D50: 0 | E50: 0 | F50: 0 | G50: 0 | H50: 0 | I50: 0 | K50: No | U50: =ABS(Table245[[#This Row],[Mean Severity (YOE $M)]]) -> 0 | V50: =LEFT(Table245[[#This Row],[Risk Label]],2) -> RR
A51: RR-5 | B51: Additional ROW required for planned project | C51: No Impact | D51: 0 | E51: 0 | F51: 0 | G51: 0 | H51: 0 | I51: 0 | K51: No | U51: =ABS(Table245[[#This Row],[Mean Severity (YOE $M)]]) -> 0 | V51: =LEFT(Table245[[#This Row],[Risk Label]],2) -> RR
A52: RR-9 | B52: Other utility relocations not completed on time | C52: No Impact | D52: 0 | E52: 0 | F52: 0 | G52: 0 | H52: 0 | I52: 0 | K52: No | U52: =ABS(Table245[[#This Row],[Mean Severity (YOE $M)]]) -> 0 | V52: =LEFT(Table245[[#This Row],[Risk Label]],2) -> RR
A53: RR-10 | B53: Damage existing utility or encounter unanticipated utility during construction | C53: No Impact | D53: 0 | E53: 0 | F53: 0 | G53: 0 | H53: 0 | I53: 0 | K53: No | U53: =ABS(Table245[[#This Row],[Mean Severity (YOE $M)]]) -> 0 | V53: =LEFT(Table245[[#This Row],[Risk Label]],2) -> RR
A54: PR-3 | B54: Material-supply issues | C54: No Impact | D54: 0 | E54: 0 | F54: 0 | G54: 0 | H54: 0 | I54: 0 | K54: No | U54: =ABS(Table245[[#This Row],[Mean Severity (YOE $M)]]) -> 0 | V54: =LEFT(Table245[[#This Row],[Risk Label]],2) -> PR
A55: PR-4 | B55: Change in project delivery method | C55: No Impact | D55: 0 | E55: 0 | F55: 0 | G55: 0 | H55: 0 | I55: 0 | K55: No | U55: =ABS(Table245[[#This Row],[Mean Severity (YOE $M)]]) -> 0 | V55: =LEFT(Table245[[#This Row],[Risk Label]],2) -> PR
A56: PR-5 | B56: Accelerate pre-construction activities to reach NTP sooner | C56: No Impact | D56: 0 | E56: 0 | F56: 0 | G56: 0 | H56: 0 | I56: 0 | K56: No | U56: =ABS(Table245[[#This Row],[Mean Severity (YOE $M)]]) -> 0 | V56: =LEFT(Table245[[#This Row],[Risk Label]],2) -> PR
A57: PR-6 | B57: Use incentives to accelerate D/B construction | C57: No Impact | D57: 0 | E57: 0 | F57: 0 | G57: 0 | H57: 0 | I57: 0 | K57: No | U57: =ABS(Table245[[#This Row],[Mean Severity (YOE $M)]]) -> 0 | V57: =LEFT(Table245[[#This Row],[Risk Label]],2) -> PR
A58: PR-7 | B58: Issues with D/B design or submittals | C58: No Impact | D58: 0 | E58: 0.75 | F58: 0 | G58: 0 | H58: 0 | I58: 0 | K58: No | U58: =ABS(Table245[[#This Row],[Mean Severity (YOE $M)]]) -> 0 | V58: =LEFT(Table245[[#This Row],[Risk Label]],2) -> PR
A59: CR-6 | B59: Severe weather event significantly impacts construction | C59: No Impact | D59: 0 | E59: 0 | F59: 0 | G59: 0 | H59: 0 | I59: 0 | K59: No | U59: =ABS(Table245[[#This Row],[Mean Severity (YOE $M)]]) -> 0 | V59: =LEFT(Table245[[#This Row],[Risk Label]],2) -> CR
A60: CR-8 | B60: Significant accident during construction | C60: No Impact | D60: 0 | E60: 0 | F60: 0 | G60: 0 | H60: 0 | I60: 0 | K60: No | U60: =ABS(Table245[[#This Row],[Mean Severity (YOE $M)]]) -> 0 | V60: =LEFT(Table245[[#This Row],[Risk Label]],2) -> CR
A61: CR-10 | B61: Fish window in Wandering Creek | C61: No Impact | D61: 0 | E61: 0 | F61: 0 | G61: 0 | H61: 0 | I61: 0 | K61: No | U61: =ABS(Table245[[#This Row],[Mean Severity (YOE $M)]]) -> 0 | V61: =LEFT(Table245[[#This Row],[Risk Label]],2) -> CR
A62: CR-11 | B62: Non-compliance with permits during construction | C62: No Impact | D62: 0 | E62: 0 | F62: 0 | G62: 0 | H62: 0 | I62: 0 | K62: No | U62: =ABS(Table245[[#This Row],[Mean Severity (YOE $M)]]) -> 0 | V62: =LEFT(Table245[[#This Row],[Risk Label]],2) -> CR
A63: CR-12 | B63: Extended overheads as a function of project delays | C63: No Impact | D63: 0 | E63: 0 | F63: 0 | G63: 0 | H63: 0 | I63: 0 | K63: No | U63: =ABS(Table245[[#This Row],[Mean Severity (YOE $M)]]) -> 0 | V63: =LEFT(Table245[[#This Row],[Risk Label]],2) -> CR
U64: =ABS(Table245[[#This Row],[Mean Severity (YOE $M)]]) -> 0 | V64: =LEFT(Table245[[#This Row],[Risk Label]],2) -> 
U65: =ABS(Table245[[#This Row],[Mean Severity (YOE $M)]]) -> 0 | V65: =LEFT(Table245[[#This Row],[Risk Label]],2) -> 
U66: =ABS(Table245[[#This Row],[Mean Severity (YOE $M)]]) -> 0 | V66: =LEFT(Table245[[#This Row],[Risk Label]],2) -> 
U67: =ABS(Table245[[#This Row],[Mean Severity (YOE $M)]]) -> 0 | V67: =LEFT(Table245[[#This Row],[Risk Label]],2) -> 
U68: =ABS(Table245[[#This Row],[Mean Severity (YOE $M)]]) -> 0 | V68: =LEFT(Table245[[#This Row],[Risk Label]],2) -> 
U69: =ABS(Table245[[#This Row],[Mean Severity (YOE $M)]]) -> 0 | V69: =LEFT(Table245[[#This Row],[Risk Label]],2) -> 
U70: =ABS(Table245[[#This Row],[Mean Severity (YOE $M)]]) -> 0 | V70: =LEFT(Table245[[#This Row],[Risk Label]],2) -> 
U71: =ABS(Table245[[#This Row],[Mean Severity (YOE $M)]]) -> 0 | V71: =LEFT(Table245[[#This Row],[Risk Label]],2) -> 
U72: =ABS(Table245[[#This Row],[Mean Severity (YOE $M)]]) -> 0 | V72: =LEFT(Table245[[#This Row],[Risk Label]],2) -> 
U73: =ABS(Table245[[#This Row],[Mean Severity (YOE $M)]]) -> 0 | V73: =LEFT(Table245[[#This Row],[Risk Label]],2) -> 
U74: =ABS(Table245[[#This Row],[Mean Severity (YOE $M)]]) -> 0 | V74: =LEFT(Table245[[#This Row],[Risk Label]],2) -> 
U75: =ABS(Table245[[#This Row],[Mean Severity (YOE $M)]]) -> 0 | V75: =LEFT(Table245[[#This Row],[Risk Label]],2) -> 
U76: =ABS(Table245[[#This Row],[Mean Severity (YOE $M)]]) -> 0 | V76: =LEFT(Table245[[#This Row],[Risk Label]],2) -> 
U77: =ABS(Table245[[#This Row],[Mean Severity (YOE $M)]]) -> 0 | V77: =LEFT(Table245[[#This Row],[Risk Label]],2) -> 
U78: =ABS(Table245[[#This Row],[Mean Severity (YOE $M)]]) -> 0 | V78: =LEFT(Table245[[#This Row],[Risk Label]],2) -> 
U79: =ABS(Table245[[#This Row],[Mean Severity (YOE $M)]]) -> 0 | V79: =LEFT(Table245[[#This Row],[Risk Label]],2) -> 
U80: =ABS(Table245[[#This Row],[Mean Severity (YOE $M)]]) -> 0 | V80: =LEFT(Table245[[#This Row],[Risk Label]],2) -> 
U81: =ABS(Table245[[#This Row],[Mean Severity (YOE $M)]]) -> 0 | V81: =LEFT(Table245[[#This Row],[Risk Label]],2) -> 
U82: =ABS(Table245[[#This Row],[Mean Severity (YOE $M)]]) -> 0 | V82: =LEFT(Table245[[#This Row],[Risk Label]],2) -> 
U83: =ABS(Table245[[#This Row],[Mean Severity (YOE $M)]]) -> 0 | V83: =LEFT(Table245[[#This Row],[Risk Label]],2) -> 
U84: =ABS(Table245[[#This Row],[Mean Severity (YOE $M)]]) -> 0 | V84: =LEFT(Table245[[#This Row],[Risk Label]],2) -> 
U85: =ABS(Table245[[#This Row],[Mean Severity (YOE $M)]]) -> 0 | V85: =LEFT(Table245[[#This Row],[Risk Label]],2) -> 
U86: =ABS(Table245[[#This Row],[Mean Severity (YOE $M)]]) -> 0 | V86: =LEFT(Table245[[#This Row],[Risk Label]],2) -> 
U87: =ABS(Table245[[#This Row],[Mean Severity (YOE $M)]]) -> 0 | V87: =LEFT(Table245[[#This Row],[Risk Label]],2) -> 
U88: =ABS(Table245[[#This Row],[Mean Severity (YOE $M)]]) -> 0 | V88: =LEFT(Table245[[#This Row],[Risk Label]],2) -> 
U89: =ABS(Table245[[#This Row],[Mean Severity (YOE $M)]]) -> 0 | V89: =LEFT(Table245[[#This Row],[Risk Label]],2) -> 
U90: =ABS(Table245[[#This Row],[Mean Severity (YOE $M)]]) -> 0 | V90: =LEFT(Table245[[#This Row],[Risk Label]],2) -> 
U91: =ABS(Table245[[#This Row],[Mean Severity (YOE $M)]]) -> 0 | V91: =LEFT(Table245[[#This Row],[Risk Label]],2) -> 
U92: =ABS(Table245[[#This Row],[Mean Severity (YOE $M)]]) -> 0 | V92: =LEFT(Table245[[#This Row],[Risk Label]],2) -> 
U93: =ABS(Table245[[#This Row],[Mean Severity (YOE $M)]]) -> 0 | V93: =LEFT(Table245[[#This Row],[Risk Label]],2) -> 
U94: =ABS(Table245[[#This Row],[Mean Severity (YOE $M)]]) -> 0 | V94: =LEFT(Table245[[#This Row],[Risk Label]],2) -> 
U95: =ABS(Table245[[#This Row],[Mean Severity (YOE $M)]]) -> 0 | V95: =LEFT(Table245[[#This Row],[Risk Label]],2) -> 
U96: =ABS(Table245[[#This Row],[Mean Severity (YOE $M)]]) -> 0 | V96: =LEFT(Table245[[#This Row],[Risk Label]],2) -> 
U97: =ABS(Table245[[#This Row],[Mean Severity (YOE $M)]]) -> 0 | V97: =LEFT(Table245[[#This Row],[Risk Label]],2) -> 
U98: =ABS(Table245[[#This Row],[Mean Severity (YOE $M)]]) -> 0 | V98: =LEFT(Table245[[#This Row],[Risk Label]],2) -> 
U99: =ABS(Table245[[#This Row],[Mean Severity (YOE $M)]]) -> 0 | V99: =LEFT(Table245[[#This Row],[Risk Label]],2) -> 
U100: =ABS(Table245[[#This Row],[Mean Severity (YOE $M)]]) -> 0 | V100: =LEFT(Table245[[#This Row],[Risk Label]],2) -> 
U101: =ABS(Table245[[#This Row],[Mean Severity (YOE $M)]]) -> 0 | V101: =LEFT(Table245[[#This Row],[Risk Label]],2) -> 
U102: =ABS(Table245[[#This Row],[Mean Severity (YOE $M)]]) -> 0 | V102: =LEFT(Table245[[#This Row],[Risk Label]],2) -> 
U103: =ABS(Table245[[#This Row],[Mean Severity (YOE $M)]]) -> 0 | V103: =LEFT(Table245[[#This Row],[Risk Label]],2) -> 
U104: =ABS(Table245[[#This Row],[Mean Severity (YOE $M)]]) -> 0 | V104: =LEFT(Table245[[#This Row],[Risk Label]],2) -> 

Sheet 11 - Mit. Project Performance
F1: SHRP2 Risk Management Template
A2: HELP | F2: Step 11 - Mitigated Project Performance
B3: Schedule Duration Assumption:
B4: Some risks in a phase will occur concurrently, while others will occur sequentially.
A7: Mitigated Project Cost, Duration, and Disruption Performance
A8: Project Phase | C8: Base + Implementation | F8: Residual Risk | I8: Total (Base + Implementation + Residual Risk)
B9: Cost (CY $M) | C9: Duration (months) | D9: Disruption (M-hrs) | E9: Cost (CY $M) | F9: Duration (months) | G9: Disruption (M-hrs) | H9: Cost (CY $M) | I9: Duration (months) | J9: Disruption (M-hrs) | K9: Cost (YOE $M)
A10: Planning | B10: 0 | C10: 0 | D10: 0 | E10: 0 | F10: 0 | G10: 0 | H10: 0 | I10: 0 | J10: 0 | K10: 0
A11: Scoping | B11: 0 | C11: 0 | D11: 0 | E11: 0 | F11: 0 | G11: 0 | H11: 0 | I11: 0 | J11: 0 | K11: 0
A12: Prelim Design/Environmental Process | B12: 1.19 | C12: 12 | D12: 0 | E12: 0.13125 | F12: 1.46875 | G12: 0 | H12: 1.32125 | I12: 13.46875 | J12: 0 | K12: 1.343322683
A13: Environmental Permits | B13: 0 | C13: 6 | D13: 0 | E13: 0 | F13: 0.3125 | G13: 0 | H13: 0 | I13: 6.3125 | J13: 0 | K13: 0
A14: ROW/Util/RR | B14: 3.05 | C14: 12 | D14: 0.2 | E14: 2.352 | F14: 0.703125 | G14: 0 | H14: 5.402 | I14: 12.703125 | J14: 0.2 | K14: 5.671939729
A15: Final Design | B15: 0.2 | C15: 6 | D15: 0 | E15: 0 | F15: 0.75 | G15: 0 | H15: 0.2 | I15: 6.75 | J15: 0 | K15: 0.211928162
A16: Procurement | B16: 0 | C16: 6 | D16: 0 | E16: 0.2171875 | F16: 0.2890625 | G16: 0 | H16: 0.2171875 | I16: 6.2890625 | J16: 0 | K16: 0.2263635528
A17: Construction | B17: 11.85 | C17: 16 | D17: 0.5 | E17: 1.879726563 | F17: 0.3765625 | G17: -0.0204625 | H17: 13.72972656 | I17: 16.3765625 | J17: 0.4795375 | K17: 14.75814485
A18: Operations & Maintenance | B18: 0 | C18: 600 | D18: 1.4 | E18: 0 | F18: 0 | G18: 0 | H18: 0 | I18: 600 | J18: 1.4
A19: Replacement | B19: 0 | C19: 0 | D19: 0.7 | E19: 0 | F19: 0 | G19: 0 | H19: 0 | I19: 0 | J19: 0.7
A20: Total (through Construction) | B20: 16.29 | D20: 0.7 | E20: 4.580164062 | G20: -0.0204625 | H20: 20.87016406 | J20: 0.6795375 | K20: 22.21169898
A21: Total (through Replacement) | B21: 16.29 | D21: 2.8 | E21: 4.580164062 | G21: -0.0204625 | H21: 20.87016406 | J21: 2.7795375 | K21: 22.21169898
A23: Project Schedule Performance (Unmitigated vs. Mitigated)
A24: Project Phase | D24: Unmitigated Project Schedule Performance (from step 6) | J24: Mitigated Project Schedule Performance | N24: Mean
B25: Duration (Months/ Date) | C25: Early Start | D25: Early Finish | E25: Late Start | F25: Late Finish | G25: Float (months) | H25: Duration (Months/ Date) | I25: Early Start | J25: Early Finish | K25: Late Start | L25: Late Finish | M25: Float (months) | N25: Severity YOE($M)
A26: Planning | B26: 0 | C26: ='1 - Project Structuring'!$E$15 -> 40148 | D26: =IF(OR(C26="",B26=""),"",C26+(B26*30.4)) -> 40148 | E26: =IF(OR(F26="",B26=""),"",F26-(B26*30.4)) -> 40148 | F26: =IF(E27 = "", "",E27) -> 40148 | G26: =IF(OR(F26 ="",D26 =""),"",(F26-D26)/30.4) -> 0 | H26: 0 | I26: ='1 - Project Structuring'!$E$15 -> 40148 | J26: =IF(OR(I26="",H26=""),"",I26+(H26*30.4)) -> 40148 | K26: =IF(OR(L26="",H26=""),"",L26-(H26*30.4)) -> 40148 | L26: =IF(K27 = "", "",K27) -> 40148 | M26: =IF(OR(L26 ="",J26 =""),"",(L26-J26)/30.4) -> 0 | N26: =SUMIFS('10 - Mit. Risk Register'!$H$5:$H$104,'10 - Mit. Risk Register'!$V$5:$V$104,"PL") -> 0.01335851501
A27: Scoping | B27: 0 | C27: =IF(D26="","",D26) -> 40148 | D27: =IF(OR(C27="",B27=""),"",C27+(B27*30.4)) -> 40148 | E27: =IF(OR(F27="",B27=""),"",F27-(B27*30.4)) -> 40148 | F27: =IF(E29 = "", "",E29) -> 40148 | G27: =IF(OR(F27 ="",D27 =""),"",(F27-D27)/30.4) -> 0 | H27: 0 | I27: =IF(J26="","",J26) -> 40148 | J27: =IF(OR(I27="",H27=""),"",I27+(H27*30.4)) -> 40148 | K27: =IF(OR(L27="",H27=""),"",L27-(H27*30.4)) -> 40148 | L27: =IF(K29 = "", "",K29) -> 40148 | M27: =IF(OR(L27 ="",J27 =""),"",(L27-J27)/30.4) -> 0 | N27: =SUMIFS('10 - Mit. Risk Register'!$H$5:$H$104,'10 - Mit. Risk Register'!$V$5:$V$104,"SC") -> 0.5790753839
A28: Design Funding Date | B28: 40148 | D28: =IF(B28 ="", "",B28) -> 40148 | F28: =IF(E29 = "", "",E29) -> 40148 | G28: 0 | H28: 40148 | J28: =IF(H28 ="", "",H28) -> 40148 | L28: =IF(K29 = "", "",K29) -> 40148 | M28: 0 | N28: =SUMIFS('10 - Mit. Risk Register'!$H$5:$H$104,'10 - Mit. Risk Register'!$V$5:$V$104,"F1") -> 0
A29: Prelim Design/Environmental Process | B29: 13.46875 | C29: =IF(OR(D28="",D27=""),"",MAX(D28,D27)) -> 40148 | D29: =IF(OR(C29="",B29=""),"",C29+(B29*30.4)) -> 40557.45 | E29: =IF(OR(F29="",B29=""),"",F29-(B29*30.4)) -> 40148 | F29: =IF(OR(E30="",E32="",E34=""),"",MIN(E30,E32,E34)) -> 40557.45 | G29: 0 | H29: 13.46875 | I29: =IF(OR(J28="",J27=""),"",MAX(J28,J27)) -> 40148 | J29: =IF(OR(I29="",H29=""),"",I29+(H29*30.4)) -> 40557.45 | K29: =IF(OR(L29="",H29=""),"",L29-(H29*30.4)) -> 40148 | L29: =IF(OR(K30="",K32="",K34=""),"",MIN(K30,K32,K34)) -> 40557.45 | M29: 0 | N29: =SUMIFS('10 - Mit. Risk Register'!$H$5:$H$104,'10 - Mit. Risk Register'!$V$5:$V$104,"PD") -> 1.180168702
A30: Environmental Permits | B30: 6.3125 | C30: =IF(D29="","",D29) -> 40557.45 | D30: =IF(OR(C30="",B30=""),"",C30+(B30*30.4)) -> 40749.35 | E30: =IF(OR(F30="",B30=""),"",F30-(B30*30.4)) -> 40582.15 | F30: =IF(OR(E36="",F34="",F32=""),"",MIN(E36,F34-('1 - Project Structuring'!$J$39*30.4)+('1 - Project Structuring'!$J$38*30.4),F32-('1 - Project Structuring'!$J$41*30.4)+('1 - Project Structuring'!$J$40*30.4))) -> 40774.05 | G30: 0.8125 | H30: 6.3125 | I30: =IF(J29="","",J29) -> 40557.45 | J30: =IF(OR(I30="",H30=""),"",I30+(H30*30.4)) -> 40749.35 | K30: =IF(OR(L30="",H30=""),"",L30-(H30*30.4)) -> 40569.325 | L30: =IF(OR(K36="",L34="",L32=""),"",MIN(K36,L34-('1 - Project Structuring'!$J$39*30.4)+('1 - Project Structuring'!$J$38*30.4),L32-('1 - Project Structuring'!$J$41*30.4)+('1 - Project Structuring'!$J$40*30.4))) -> 40761.225 | M30: 0.390625 | N30: =SUMIFS('10 - Mit. Risk Register'!$H$5:$H$104,'10 - Mit. Risk Register'!$V$5:$V$104,"EP") -> 0.07345163098
A31: ROW/Util/RR Funding Date | B31: 40148 | D31: =IF(B31="","",B31) -> 40148 | F31: =IF(OR(F32=""),"",F32-('1 - Project Structuring'!$J$42*30.4)) -> 40956.45 | G31: 26.59375 | H31: 40148 | J31: =IF(H31="","",H31) -> 40148 | L31: =IF(OR(L32=""),"",L32-('1 - Project Structuring'!$J$42*30.4)) -> 40943.625 | M31: 26.171875 | N31: =SUMIFS('10 - Mit. Risk Register'!$H$5:$H$104,'10 - Mit. Risk Register'!$V$5:$V$104,"F2") -> 0
A32: ROW/Util/RR | B32: 13.125 | C32: =IF(D29="","",D29) -> 40557.45 | D32: =IF(OR(C32="",B32="",D31=""),"",MAX(C32+(B32*30.4),D31+('1 - Project Structuring'!$J$42*30.4),D30-('1 - Project Structuring'!$J$40*30.4)+('1 - Project Structuring'!$J$41*30.4))) -> 40956.45 | E32: =IF(OR(F32="",B32=""),"",F32-(B32*30.4)) -> 40557.45 | F32: =IF(OR(E36="",F36=""),"",MIN(E36+('1 - Project Structuring'!$J$43*30.4),F36-('1 - Project Structuring'!$J$46*30.4),F34-('1 - Project Structuring'!$J$48*30.4)+('1 - Project Structuring'!$J$47*30.4))) -> 40956.45 | G32: 0 | H32: 12.703125 | I32: =IF(J29="","",J29) -> 40557.45 | J32: =IF(OR(I32="",H32="",J31=""),"",MAX(I32+(H32*30.4),J31+('1 - Project Structuring'!$J$42*30.4),J30-('1 - Project Structuring'!$J$40*30.4)+('1 - Project Structuring'!$J$41*30.4))) -> 40943.625 | K32: =IF(OR(L32="",H32=""),"",L32-(H32*30.4)) -> 40557.45 | L32: =IF(OR(K36="",L36=""),"",MIN(K36+('1 - Project Structuring'!$J$43*30.4),L36-('1 - Project Structuring'!$J$46*30.4),L34-('1 - Project Structuring'!$J$48*30.4)+('1 - Project Structuring'!$J$47*30.4))) -> 40943.625 | M32: 0 | N32: =SUMIFS('10 - Mit. Risk Register'!$H$5:$H$104,'10 - Mit. Risk Register'!$V$5:$V$104,"RR") -> 2.265944443
A33: Construction Funding Date | B33: 40148 | D33: =IF(B33="","",B33) -> 40148 | F33: =IF(E34="","",E34) -> 40582.8625 | G33: 14.3046875 | H33: 40148 | J33: =IF(H33="","",H33) -> 40148 | L33: =IF(K34="","",K34) -> 40570.0375 | M33: 13.8828125 | N33: =SUMIFS('10 - Mit. Risk Register'!$H$5:$H$104,'10 - Mit. Risk Register'!$V$5:$V$104,"F3") -> 0
A34: Procurement | B34: 6.2890625 | C34: =IF(OR(D33="",D29=""),"",MAX(D33,D29)) -> 40557.45 | D34: =IF(OR(C34="",B34="",D30="",D32=""),"",MAX(C34+(B34*30.4),D30-('1 - Project Structuring'!$J$38*30.4)+('1 - Project Structuring'!$J$39*30.4),D32-('1 - Project Structuring'!$J$47*30.4)+('1 - Project Structuring'!$J$48*30.4))) -> 40774.05 | E34: =IF(OR(F34="",B34=""),"",F34-(B34*30.4)) -> 40582.8625 | F34: =IF(E35="","",E35) -> 40774.05 | G34: 0 | H34: 6.2890625 | I34: =IF(OR(J33="",J29=""),"",MAX(J33,J29)) -> 40557.45 | J34: =IF(OR(I34="",H34="",J30="",J32=""),"",MAX(I34+(H34*30.4),J30-('1 - Project Structuring'!$J$38*30.4)+('1 - Project Structuring'!$J$39*30.4),J32-('1 - Project Structuring'!$J$47*30.4)+('1 - Project Structuring'!$J$48*30.4))) -> 40761.225 | K34: =IF(OR(L34="",H34=""),"",L34-(H34*30.4)) -> 40570.0375 | L34: =IF(K35="","",K35) -> 40761.225 | M34: 0 | N34: =SUMIFS('10 - Mit. Risk Register'!$H$5:$H$104,'10 - Mit. Risk Register'!$V$5:$V$104,"PR") -> 1.010874429
A35: Final Design | B35: 6.75 | C35: =IF(D34="","",D34) -> 40774.05 | D35: =IF(OR(C35="",B35=""),"",C35+(B35*30.4)) -> 40979.25 | E35: =IF(OR(F35="",B35="",E36=""),"",MIN(F35-(B35*30.4),E36-('1 - Project Structuring'!$J$44*30.4))) -> 40774.05 | F35: =IF(OR(F36=""),"",F36-('1 - Project Structuring'!$J$45*30.4)) -> 41134.4325 | G35: 5.1046875 | H35: 6.75 | I35: =IF(J34="","",J34) -> 40761.225 | J35: =IF(OR(I35="",H35=""),"",I35+(H35*30.4)) -> 40966.425 | K35: =IF(OR(L35="",H35="",K36=""),"",MIN(L35-(H35*30.4),K36-('1 - Project Structuring'!$J$44*30.4))) -> 40761.225 | L35: =IF(OR(L36=""),"",L36-('1 - Project Structuring'!$J$45*30.4)) -> 41107.0725 | M35: 4.6265625 | N35: =SUMIFS('10 - Mit. Risk Register'!$H$5:$H$104,'10 - Mit. Risk Register'!$V$5:$V$104,"FD") -> 0
A36: Construction | B36: 16.8546875 | C36: =IF(OR(D30="",C35="",,D32=""),"",MAX(D30,C35+('1 - Project Structuring'!$J$44*30.4),D32-('1 - Project Structuring'!$J$43*30.4))) -> 40804.45 | D36: =IF(OR(C36="",B36="",D35="",D32=""),"",MAX(C36+(B36*30.4),D35+('1 - Project Structuring'!$J$45*30.4),D32+('1 - Project Structuring'!$J$46*30.4))) -> 41316.8325 | E36: =IF(OR(F36="",B36=""),"",F36-(B36*30.4)) -> 40804.45 | F36: =IF(D36="","",D36) -> 41316.8325 | G36: 0 | H36: 16.3765625 | I36: =IF(OR(J30="",I35="",,J32=""),"",MAX(J30,I35+('1 - Project Structuring'!$J$44*30.4),J32-('1 - Project Structuring'!$J$43*30.4))) -> 40791.625 | J36: =IF(OR(I36="",H36="",J35="",J32=""),"",MAX(I36+(H36*30.4),J35+('1 - Project Structuring'!$J$45*30.4),J32+('1 - Project Structuring'!$J$46*30.4))) -> 41289.4725 | K36: =IF(OR(L36="",H36=""),"",L36-(H36*30.4)) -> 40791.625 | L36: =IF(J36="","",J36) -> 41289.4725 | M36: 0 | N36: =SUMIFS('10 - Mit. Risk Register'!$H$5:$H$104,'10 - Mit. Risk Register'!$V$5:$V$104,"CR") -> 0.2014382349
A37: Operations & Maintenance | B37: 600 | C37: =IF(OR(C36="",B36=""),"",C36+(B36*30.4)) -> 41316.8325 | D37: =IF(OR(C37="",B37=""),"",C37+(B37*30.4)) -> 59556.8325 | E37: =IF(OR(F37="",B37=""),"",F37-(B37*30.4)) -> 41316.8325 | F37: =IF(E38="","",E38) -> 59556.8325 | H37: 600 | I37: =IF(OR(I36="",H36=""),"",I36+(H36*30.4)) -> 41289.4725 | J37: =IF(OR(I37="",H37=""),"",I37+(H37*30.4)) -> 59529.4725 | K37: =IF(OR(L37="",H37=""),"",L37-(H37*30.4)) -> 41289.4725 | L37: =IF(K38="","",K38) -> 59529.4725
A38: Replacement | B38: 0 | C38: =IF(D37="","",D37) -> 59556.8325 | D38: =IF(OR(C38="",B38=""),"",C38+(B38*30.4)) -> 59556.8325 | E38: =IF(OR(F38="",B38=""),"",F38-(B38*30.4)) -> 59556.8325 | F38: =IF(D38="","",D38) -> 59556.8325 | H38: 0 | I38: =IF(J37="","",J37) -> 59529.4725 | J38: =IF(OR(I38="",H38=""),"",I38+(H38*30.4)) -> 59529.4725 | K38: =IF(OR(L38="",H38=""),"",L38-(H38*30.4)) -> 59529.4725 | L38: =IF(J38="","",J38) -> 59529.4725
A39: Project Start Date | B39: 40148 | H39: 40148 | M39: Total | N39: =SUM('11 - Mit. Project Performance'!$N$26:$N$38) -> 5.324311338
A40: Construction Finish Date | B40: 41316.8325 | H40: 41289.4725
A41: Project Duration (months) | B41: 38.4484375 | H41: 37.5484375

Sheet 12 - Mit. Risk Ranking Plots
M1: SHRP2 Risk Management Template
A2: HELP | M2: Step 12 - Mitigated Risk Ranking Plots

Sheet 13 - Summary Report
G1: SHRP2 Risk Management Template | BB1: UNMITIGATED PERFORMANCE RESULTS | CX1: MITIGATED PERFORMANCE RESULTS
A2: HELP | G2: Summary Report | BH2: Project Performance | DB2: Project Performance
S3: PROJECT INFORMATION | BB3: Project Phase | BD3: Base | BG3: Risk | BJ3: Total (Base + Risk) | CX3: Project Phase | CZ3: Base + Implementation | DC3: Residual Risk | DG3: Total
Q4: Information Type | S4: Value | BC4: Cost (CY $M) | BD4: Duration (months) | BE4: Disruption (M-hrs) | BF4: Cost (CY $M) | BG4: Duration (months) | BH4: Disruption (M-hrs) | BI4: Cost (CY $M) | BJ4: Duration (months) | BK4: Disruption (M-hrs) | BL4: Cost (YOE $M) | CY4: Cost (CY $M) | CZ4: Duration (months) | DA4: Disruption (M-hrs) | DB4: Cost (CY $M) | DC4: Duration (months) | DD4: Disruption (M-hrs) | DE4: Cost (CY $M) | DF4: Duration (months) | DG4: Disruption (M-hrs) | DH4: Cost (YOE $M)
D5: Note: Click on "Update Report" to ensure that this | Q5: Agency | S5: =IF(HOME!F10 = "","",HOME!F10) -> Federal Highway Administration | AA5: PROJECT STRUCTURING
D6: summary is populated with the latest data and charts | Q6: District Region | S6: =IF(HOME!F12 = "","",HOME!F12) -> QDOT District 1 | AB6: Base Cost
Q7: Project Name | S7: =IF(HOME!F14 = "","",HOME!F14) -> QDOT Example | AB7: Total Unesc | AC7: Total Esc | AD7: Duration | BB7: =IF('6 - Unmit. Project Performance'!A9="","",'6 - Unmit. Project Performance'!A9) -> Planning | BC7: =IF('6 - Unmit. Project Performance'!B9="","",'6 - Unmit. Project Performance'!B9) ->  | BD7: =IF('6 - Unmit. Project Performance'!C9="","",'6 - Unmit. Project Performance'!C9) -> 0 | BE7: =IF('6 - Unmit. Project Performance'!D9="","",'6 - Unmit. Project Performance'!D9) -> 0 | BF7: =IF('6 - Unmit. Project Performance'!E9="","",'6 - Unmit. Project Performance'!E9) -> 0 | BG7: =IF('6 - Unmit. Project Performance'!F9="","",'6 - Unmit. Project Performance'!F9) -> 0 | BH7: =IF('6 - Unmit. Project Performance'!G9="","",'6 - Unmit. Project Performance'!G9) -> 0 | BI7: =IF('6 - Unmit. Project Performance'!H9="","",'6 - Unmit. Project Performance'!H9) -> 0 | BJ7: =IF('6 - Unmit. Project Performance'!I9="","",'6 - Unmit. Project Performance'!I9) -> 0 | BK7: =IF('6 - Unmit. Project Performance'!J9="","",'6 - Unmit. Project Performance'!J9) -> 0 | BL7: =IF('6 - Unmit. Project Performance'!K9="","",'6 - Unmit. Project Performance'!K9) ->  | CX7: =IF('11 - Mit. Project Performance'!A10="","",'11 - Mit. Project Performance'!A10) -> Planning | CY7: =IF('11 - Mit. Project Performance'!B10="","",'11 - Mit. Project Performance'!B10) -> 0 | CZ7: =IF('11 - Mit. Project Performance'!C10="","",'11 - Mit. Project Performance'!C10) -> 0 | DA7: =IF('11 - Mit. Project Performance'!D10="","",'11 - Mit. Project Performance'!D10) -> 0 | DB7: =IF('11 - Mit. Project Performance'!E10="","",'11 - Mit. Project Performance'!E10) -> 0 | DC7: =IF('11 - Mit. Project Performance'!F10="","",'11 - Mit. Project Performance'!F10) -> 0 | DD7: =IF('11 - Mit. Project Performance'!G10="","",'11 - Mit. Project Performance'!G10) -> 0 | DE7: =IF('11 - Mit. Project Performance'!H10="","",'11 - Mit. Project Performance'!H10) -> 0 | DF7: =IF('11 - Mit. Project Performance'!I10="","",'11 - Mit. Project Performance'!I10) -> 0 | DG7: =IF('11 - Mit. Project Performance'!J10="","",'11 - Mit. Project Performance'!J10) -> 0 | DH7: =IF('11 - Mit. Project Performance'!K10="","",'11 - Mit. Project Performance'!K10) -> 0
G8: REPORT SUMMARY | Q8: Project Description | S8: =IF(HOME!F16 = "","",HOME!F16) -> QDOT Example R09 Guidebook | AA8: Project Phase | AB8: Cost ($M) | AC8: Cost ($M) | AD8: (months) | BB8: =IF('6 - Unmit. Project Performance'!A10="","",'6 - Unmit. Project Performance'!A10) -> Scoping | BC8: =IF('6 - Unmit. Project Performance'!B10="","",'6 - Unmit. Project Performance'!B10) ->  | BD8: =IF('6 - Unmit. Project Performance'!C10="","",'6 - Unmit. Project Performance'!C10) -> 0 | BE8: =IF('6 - Unmit. Project Performance'!D10="","",'6 - Unmit. Project Performance'!D10) -> 0 | BF8: =IF('6 - Unmit. Project Performance'!E10="","",'6 - Unmit. Project Performance'!E10) -> 0 | BG8: =IF('6 - Unmit. Project Performance'!F10="","",'6 - Unmit. Project Performance'!F10) -> 0 | BH8: =IF('6 - Unmit. Project Performance'!G10="","",'6 - Unmit. Project Performance'!G10) -> 0 | BI8: =IF('6 - Unmit. Project Performance'!H10="","",'6 - Unmit. Project Performance'!H10) -> 0 | BJ8: =IF('6 - Unmit. Project Performance'!I10="","",'6 - Unmit. Project Performance'!I10) -> 0 | BK8: =IF('6 - Unmit. Project Performance'!J10="","",'6 - Unmit. Project Performance'!J10) -> 0 | BL8: =IF('6 - Unmit. Project Performance'!K10="","",'6 - Unmit. Project Performance'!K10) -> 0 | CX8: =IF('11 - Mit. Project Performance'!A11="","",'11 - Mit. Project Performance'!A11) -> Scoping | CY8: =IF('11 - Mit. Project Performance'!B11="","",'11 - Mit. Project Performance'!B11) -> 0 | CZ8: =IF('11 - Mit. Project Performance'!C11="","",'11 - Mit. Project Performance'!C11) -> 0 | DA8: =IF('11 - Mit. Project Performance'!D11="","",'11 - Mit. Project Performance'!D11) -> 0 | DB8: =IF('11 - Mit. Project Performance'!E11="","",'11 - Mit. Project Performance'!E11) -> 0 | DC8: =IF('11 - Mit. Project Performance'!F11="","",'11 - Mit. Project Performance'!F11) -> 0 | DD8: =IF('11 - Mit. Project Performance'!G11="","",'11 - Mit. Project Performance'!G11) -> 0 | DE8: =IF('11 - Mit. Project Performance'!H11="","",'11 - Mit. Project Performance'!H11) -> 0 | DF8: =IF('11 - Mit. Project Performance'!I11="","",'11 - Mit. Project Performance'!I11) -> 0 | DG8: =IF('11 - Mit. Project Performance'!J11="","",'11 - Mit. Project Performance'!J11) -> 0 | DH8: =IF('11 - Mit. Project Performance'!K11="","",'11 - Mit. Project Performance'!K11) -> 0
Q9: Facilitator | S9: =IF(HOME!Q10 = "","",HOME!Q10) -> Carlos F Figueroa | AA9: =IF('1 - Project Structuring'!C99="","",'1 - Project Structuring'!C99) -> Planning | AB9: =IF('1 - Project Structuring'!D99="","",'1 - Project Structuring'!D99) ->  | AC9: =IF('1 - Project Structuring'!E99="","",'1 - Project Structuring'!E99) -> 0 | AD9: =IF('1 - Project Structuring'!F99="","",'1 - Project Structuring'!F99) -> 0 | AN9: SUMMARY OF RISK IDENTIFICATION | BB9: =IF('6 - Unmit. Project Performance'!A11="","",'6 - Unmit. Project Performance'!A11) -> Prelim Design/Environmental Process | BC9: =IF('6 - Unmit. Project Performance'!B11="","",'6 - Unmit. Project Performance'!B11) -> 1.19 | BD9: =IF('6 - Unmit. Project Performance'!C11="","",'6 - Unmit. Project Performance'!C11) -> 12 | BE9: =IF('6 - Unmit. Project Performance'!D11="","",'6 - Unmit. Project Performance'!D11) -> 0 | BF9: =IF('6 - Unmit. Project Performance'!E11="","",'6 - Unmit. Project Performance'!E11) -> 0.13125 | BG9: =IF('6 - Unmit. Project Performance'!F11="","",'6 - Unmit. Project Performance'!F11) -> 1.46875 | BH9: =IF('6 - Unmit. Project Performance'!G11="","",'6 - Unmit. Project Performance'!G11) -> 0 | BI9: =IF('6 - Unmit. Project Performance'!H11="","",'6 - Unmit. Project Performance'!H11) -> 1.32125 | BJ9: =IF('6 - Unmit. Project Performance'!I11="","",'6 - Unmit. Project Performance'!I11) -> 13.46875 | BK9: =IF('6 - Unmit. Project Performance'!J11="","",'6 - Unmit. Project Performance'!J11) -> 0 | BL9: =IF('6 - Unmit. Project Performance'!K11="","",'6 - Unmit. Project Performance'!K11) -> 1.343322683 | CX9: =IF('11 - Mit. Project Performance'!A12="","",'11 - Mit. Project Performance'!A12) -> Prelim Design/Environmental Process | CY9: =IF('11 - Mit. Project Performance'!B12="","",'11 - Mit. Project Performance'!B12) -> 1.19 | CZ9: =IF('11 - Mit. Project Performance'!C12="","",'11 - Mit. Project Performance'!C12) -> 12 | DA9: =IF('11 - Mit. Project Performance'!D12="","",'11 - Mit. Project Performance'!D12) -> 0 | DB9: =IF('11 - Mit. Project Performance'!E12="","",'11 - Mit. Project Performance'!E12) -> 0.13125 | DC9: =IF('11 - Mit. Project Performance'!F12="","",'11 - Mit. Project Performance'!F12) -> 1.46875 | DD9: =IF('11 - Mit. Project Performance'!G12="","",'11 - Mit. Project Performance'!G12) -> 0 | DE9: =IF('11 - Mit. Project Performance'!H12="","",'11 - Mit. Project Performance'!H12) -> 1.32125 | DF9: =IF('11 - Mit. Project Performance'!I12="","",'11 - Mit. Project Performance'!I12) -> 13.46875 | DG9: =IF('11 - Mit. Project Performance'!J12="","",'11 - Mit. Project Performance'!J12) -> 0 | DH9: =IF('11 - Mit. Project Performance'!K12="","",'11 - Mit. Project Performance'!K12) -> 1.343322683
Q10: Project Manager | S10: =IF(HOME!Q12 = "","",HOME!Q12) -> Luis Millan | AA10: =IF('1 - Project Structuring'!C100="","",'1 - Project Structuring'!C100) -> Scoping | AB10: =IF('1 - Project Structuring'!D100="","",'1 - Project Structuring'!D100) ->  | AC10: =IF('1 - Project Structuring'!E100="","",'1 - Project Structuring'!E100) -> 0 | AD10: =IF('1 - Project Structuring'!F100="","",'1 - Project Structuring'!F100) -> 0
Q11: Date | S11: =IF(HOME!Q14 = "","",HOME!Q14) -> 42247 | AA11: =IF('1 - Project Structuring'!C101="","",'1 - Project Structuring'!C101) -> Prelim Design/Environmental Process | AB11: =IF('1 - Project Structuring'!D101="","",'1 - Project Structuring'!D101) -> 1.19 | AC11: =IF('1 - Project Structuring'!E101="","",'1 - Project Structuring'!E101) -> 1.20891395 | AD11: =IF('1 - Project Structuring'!F101="","",'1 - Project Structuring'!F101) -> 12 | AN11: Project Phase | AO11: Number of Risks Identified in Each Phase
Q12: Version | S12: =IF(HOME!Q16 = "","",HOME!Q16) -> 1 | AA12: =IF('1 - Project Structuring'!C102="","",'1 - Project Structuring'!C102) -> Environmental Permits | AB12: =IF('1 - Project Structuring'!D102="","",'1 - Project Structuring'!D102) ->  | AC12: =IF('1 - Project Structuring'!E102="","",'1 - Project Structuring'!E102) -> 0.0006225554099 | AD12: =IF('1 - Project Structuring'!F102="","",'1 - Project Structuring'!F102) -> 6 | BB12: =IF('6 - Unmit. Project Performance'!A12="","",'6 - Unmit. Project Performance'!A12) -> Environmental Permits | BC12: =IF('6 - Unmit. Project Performance'!B12="","",'6 - Unmit. Project Performance'!B12) ->  | BD12: =IF('6 - Unmit. Project Performance'!C12="","",'6 - Unmit. Project Performance'!C12) -> 6 | BE12: =IF('6 - Unmit. Project Performance'!D12="","",'6 - Unmit. Project Performance'!D12) -> 0 | BF12: =IF('6 - Unmit. Project Performance'!E12="","",'6 - Unmit. Project Performance'!E12) -> 0 | BG12: =IF('6 - Unmit. Project Performance'!F12="","",'6 - Unmit. Project Performance'!F12) -> 0.3125 | BH12: =IF('6 - Unmit. Project Performance'!G12="","",'6 - Unmit. Project Performance'!G12) -> 0 | BI12: =IF('6 - Unmit. Project Performance'!H12="","",'6 - Unmit. Project Performance'!H12) -> 0 | BJ12: =IF('6 - Unmit. Project Performance'!I12="","",'6 - Unmit. Project Performance'!I12) -> 6.3125 | BK12: =IF('6 - Unmit. Project Performance'!J12="","",'6 - Unmit. Project Performance'!J12) -> 0 | BL12: =IF('6 - Unmit. Project Performance'!K12="","",'6 - Unmit. Project Performance'!K12) -> 0 | CX12: =IF('11 - Mit. Project Performance'!A13="","",'11 - Mit. Project Performance'!A13) -> Environmental Permits | CY12: =IF('11 - Mit. Project Performance'!B13="","",'11 - Mit. Project Performance'!B13) -> 0 | CZ12: =IF('11 - Mit. Project Performance'!C13="","",'11 - Mit. Project Performance'!C13) -> 6 | DA12: =IF('11 - Mit. Project Performance'!D13="","",'11 - Mit. Project Performance'!D13) -> 0 | DB12: =IF('11 - Mit. Project Performance'!E13="","",'11 - Mit. Project Performance'!E13) -> 0 | DC12: =IF('11 - Mit. Project Performance'!F13="","",'11 - Mit. Project Performance'!F13) -> 0.3125 | DD12: =IF('11 - Mit. Project Performance'!G13="","",'11 - Mit. Project Performance'!G13) -> 0 | DE12: =IF('11 - Mit. Project Performance'!H13="","",'11 - Mit. Project Performance'!H13) -> 0 | DF12: =IF('11 - Mit. Project Performance'!I13="","",'11 - Mit. Project Performance'!I13) -> 6.3125 | DG12: =IF('11 - Mit. Project Performance'!J13="","",'11 - Mit. Project Performance'!J13) -> 0 | DH12: =IF('11 - Mit. Project Performance'!K13="","",'11 - Mit. Project Performance'!K13) -> 0
AA13: =IF('1 - Project Structuring'!C103="","",'1 - Project Structuring'!C103) -> ROW/Util/RR | AB13: =IF('1 - Project Structuring'!D103="","",'1 - Project Structuring'!D103) -> 3 | AC13: =IF('1 - Project Structuring'!E103="","",'1 - Project Structuring'!E103) -> 3.137090525 | AD13: =IF('1 - Project Structuring'!F103="","",'1 - Project Structuring'!F103) -> 12 | AN13: =IF('1 - Project Structuring'!C20="","",'1 - Project Structuring'!C20) -> Planning | AO13: =COUNTIF(Table1[Project Phase],'13 - Summary Report'!AN13) -> 4 | BB13: =IF('6 - Unmit. Project Performance'!A13="","",'6 - Unmit. Project Performance'!A13) -> ROW/Util/RR | BC13: =IF('6 - Unmit. Project Performance'!B13="","",'6 - Unmit. Project Performance'!B13) -> 3 | BD13: =IF('6 - Unmit. Project Performance'!C13="","",'6 - Unmit. Project Performance'!C13) -> 12 | BE13: =IF('6 - Unmit. Project Performance'!D13="","",'6 - Unmit. Project Performance'!D13) -> 0.2 | BF13: =IF('6 - Unmit. Project Performance'!E13="","",'6 - Unmit. Project Performance'!E13) -> 2.625 | BG13: =IF('6 - Unmit. Project Performance'!F13="","",'6 - Unmit. Project Performance'!F13) -> 1.125 | BH13: =IF('6 - Unmit. Project Performance'!G13="","",'6 - Unmit. Project Performance'!G13) -> 0 | BI13: =IF('6 - Unmit. Project Performance'!H13="","",'6 - Unmit. Project Performance'!H13) -> 5.625 | BJ13: =IF('6 - Unmit. Project Performance'!I13="","",'6 - Unmit. Project Performance'!I13) -> 13.125 | BK13: =IF('6 - Unmit. Project Performance'!J13="","",'6 - Unmit. Project Performance'!J13) -> 0.2 | BL13: =IF('6 - Unmit. Project Performance'!K13="","",'6 - Unmit. Project Performance'!K13) -> 5.909148859 | CX13: =IF('11 - Mit. Project Performance'!A14="","",'11 - Mit. Project Performance'!A14) -> ROW/Util/RR | CY13: =IF('11 - Mit. Project Performance'!B14="","",'11 - Mit. Project Performance'!B14) -> 3.05 | CZ13: =IF('11 - Mit. Project Performance'!C14="","",'11 - Mit. Project Performance'!C14) -> 12 | DA13: =IF('11 - Mit. Project Performance'!D14="","",'11 - Mit. Project Performance'!D14) -> 0.2 | DB13: =IF('11 - Mit. Project Performance'!E14="","",'11 - Mit. Project Performance'!E14) -> 2.352 | DC13: =IF('11 - Mit. Project Performance'!F14="","",'11 - Mit. Project Performance'!F14) -> 0.703125 | DD13: =IF('11 - Mit. Project Performance'!G14="","",'11 - Mit. Project Performance'!G14) -> 0 | DE13: =IF('11 - Mit. Project Performance'!H14="","",'11 - Mit. Project Performance'!H14) -> 5.402 | DF13: =IF('11 - Mit. Project Performance'!I14="","",'11 - Mit. Project Performance'!I14) -> 12.703125 | DG13: =IF('11 - Mit. Project Performance'!J14="","",'11 - Mit. Project Performance'!J14) -> 0.2 | DH13: =IF('11 - Mit. Project Performance'!K14="","",'11 - Mit. Project Performance'!K14) -> 5.671939729
AA14: =IF('1 - Project Structuring'!C104="","",'1 - Project Structuring'!C104) -> Final Design | AB14: =IF('1 - Project Structuring'!D104="","",'1 - Project Structuring'!D104) ->  | AC14: =IF('1 - Project Structuring'!E104="","",'1 - Project Structuring'!E104) -> 0.0006225554099 | AD14: =IF('1 - Project Structuring'!F104="","",'1 - Project Structuring'!F104) -> 6 | AN14: =IF('1 - Project Structuring'!C21="","",'1 - Project Structuring'!C21) -> Scoping | AO14: =COUNTIF(Table1[Project Phase],'13 - Summary Report'!AN14) -> 7 | BB14: =IF('6 - Unmit. Project Performance'!A14="","",'6 - Unmit. Project Performance'!A14) -> Final Design | BC14: =IF('6 - Unmit. Project Performance'!B14="","",'6 - Unmit. Project Performance'!B14) ->  | BD14: =IF('6 - Unmit. Project Performance'!C14="","",'6 - Unmit. Project Performance'!C14) -> 6 | BE14: =IF('6 - Unmit. Project Performance'!D14="","",'6 - Unmit. Project Performance'!D14) -> 0 | BF14: =IF('6 - Unmit. Project Performance'!E14="","",'6 - Unmit. Project Performance'!E14) -> 0 | BG14: =IF('6 - Unmit. Project Performance'!F14="","",'6 - Unmit. Project Performance'!F14) -> 0.75 | BH14: =IF('6 - Unmit. Project Performance'!G14="","",'6 - Unmit. Project Performance'!G14) -> 0 | BI14: =IF('6 - Unmit. Project Performance'!H14="","",'6 - Unmit. Project Performance'!H14) -> 0 | BJ14: =IF('6 - Unmit. Project Performance'!I14="","",'6 - Unmit. Project Performance'!I14) -> 6.75 | BK14: =IF('6 - Unmit. Project Performance'!J14="","",'6 - Unmit. Project Performance'!J14) -> 0 | BL14: =IF('6 - Unmit. Project Performance'!K14="","",'6 - Unmit. Project Performance'!K14) -> 0 | CX14: =IF('11 - Mit. Project Performance'!A15="","",'11 - Mit. Project Performance'!A15) -> Final Design | CY14: =IF('11 - Mit. Project Performance'!B15="","",'11 - Mit. Project Performance'!B15) -> 0.2 | CZ14: =IF('11 - Mit. Project Performance'!C15="","",'11 - Mit. Project Performance'!C15) -> 6 | DA14: =IF('11 - Mit. Project Performance'!D15="","",'11 - Mit. Project Performance'!D15) -> 0 | DB14: =IF('11 - Mit. Project Performance'!E15="","",'11 - Mit. Project Performance'!E15) -> 0 | DC14: =IF('11 - Mit. Project Performance'!F15="","",'11 - Mit. Project Performance'!F15) -> 0.75 | DD14: =IF('11 - Mit. Project Performance'!G15="","",'11 - Mit. Project Performance'!G15) -> 0 | DE14: =IF('11 - Mit. Project Performance'!H15="","",'11 - Mit. Project Performance'!H15) -> 0.2 | DF14: =IF('11 - Mit. Project Performance'!I15="","",'11 - Mit. Project Performance'!I15) -> 6.75 | DG14: =IF('11 - Mit. Project Performance'!J15="","",'11 - Mit. Project Performance'!J15) -> 0 | DH14: =IF('11 - Mit. Project Performance'!K15="","",'11 - Mit. Project Performance'!K15) -> 0.211928162
S15: PROJECT STRUCTURING | AA15: =IF('1 - Project Structuring'!C105="","",'1 - Project Structuring'!C105) -> Procurement | AB15: =IF('1 - Project Structuring'!D105="","",'1 - Project Structuring'!D105) ->  | AC15: =IF('1 - Project Structuring'!E105="","",'1 - Project Structuring'!E105) -> 0.0006318132302 | AD15: =IF('1 - Project Structuring'!F105="","",'1 - Project Structuring'!F105) -> 6 | AN15: =IF('1 - Project Structuring'!C22="","",'1 - Project Structuring'!C22) -> Design Funding Date | AO15: =COUNTIF(Table1[Project Phase],'13 - Summary Report'!AN15) -> 0 | BB15: =IF('6 - Unmit. Project Performance'!A15="","",'6 - Unmit. Project Performance'!A15) -> Procurement | BC15: =IF('6 - Unmit. Project Performance'!B15="","",'6 - Unmit. Project Performance'!B15) ->  | BD15: =IF('6 - Unmit. Project Performance'!C15="","",'6 - Unmit. Project Performance'!C15) -> 6 | BE15: =IF('6 - Unmit. Project Performance'!D15="","",'6 - Unmit. Project Performance'!D15) -> 0 | BF15: =IF('6 - Unmit. Project Performance'!E15="","",'6 - Unmit. Project Performance'!E15) -> 0.259375 | BG15: =IF('6 - Unmit. Project Performance'!F15="","",'6 - Unmit. Project Performance'!F15) -> 0.2890625 | BH15: =IF('6 - Unmit. Project Performance'!G15="","",'6 - Unmit. Project Performance'!G15) -> 0 | BI15: =IF('6 - Unmit. Project Performance'!H15="","",'6 - Unmit. Project Performance'!H15) -> 0.259375 | BJ15: =IF('6 - Unmit. Project Performance'!I15="","",'6 - Unmit. Project Performance'!I15) -> 6.2890625 | BK15: =IF('6 - Unmit. Project Performance'!J15="","",'6 - Unmit. Project Performance'!J15) -> 0 | BL15: =IF('6 - Unmit. Project Performance'!K15="","",'6 - Unmit. Project Performance'!K15) -> 0.2704737769 | CX15: =IF('11 - Mit. Project Performance'!A16="","",'11 - Mit. Project Performance'!A16) -> Procurement | CY15: =IF('11 - Mit. Project Performance'!B16="","",'11 - Mit. Project Performance'!B16) -> 0 | CZ15: =IF('11 - Mit. Project Performance'!C16="","",'11 - Mit. Project Performance'!C16) -> 6 | DA15: =IF('11 - Mit. Project Performance'!D16="","",'11 - Mit. Project Performance'!D16) -> 0 | DB15: =IF('11 - Mit. Project Performance'!E16="","",'11 - Mit. Project Performance'!E16) -> 0.2171875 | DC15: =IF('11 - Mit. Project Performance'!F16="","",'11 - Mit. Project Performance'!F16) -> 0.2890625 | DD15: =IF('11 - Mit. Project Performance'!G16="","",'11 - Mit. Project Performance'!G16) -> 0 | DE15: =IF('11 - Mit. Project Performance'!H16="","",'11 - Mit. Project Performance'!H16) -> 0.2171875 | DF15: =IF('11 - Mit. Project Performance'!I16="","",'11 - Mit. Project Performance'!I16) -> 6.2890625 | DG15: =IF('11 - Mit. Project Performance'!J16="","",'11 - Mit. Project Performance'!J16) -> 0 | DH15: =IF('11 - Mit. Project Performance'!K16="","",'11 - Mit. Project Performance'!K16) -> 0.2263635528
S16: Summary | U16: Units | AA16: =IF('1 - Project Structuring'!C106="","",'1 - Project Structuring'!C106) -> Construction | AB16: =IF('1 - Project Structuring'!D106="","",'1 - Project Structuring'!D106) -> 11.85 | AC16: =IF('1 - Project Structuring'!E106="","",'1 - Project Structuring'!E106) -> 12.66771948 | AD16: =IF('1 - Project Structuring'!F106="","",'1 - Project Structuring'!F106) -> 16 | AN16: =IF('1 - Project Structuring'!C23="","",'1 - Project Structuring'!C23) -> Prelim Design/Environmental Process | AO16: =COUNTIF(Table1[Project Phase],'13 - Summary Report'!AN16) -> 16 | BB16: =IF('6 - Unmit. Project Performance'!A16="","",'6 - Unmit. Project Performance'!A16) -> Construction | BC16: =IF('6 - Unmit. Project Performance'!B16="","",'6 - Unmit. Project Performance'!B16) -> 11.85 | BD16: =IF('6 - Unmit. Project Performance'!C16="","",'6 - Unmit. Project Performance'!C16) -> 16 | BE16: =IF('6 - Unmit. Project Performance'!D16="","",'6 - Unmit. Project Performance'!D16) -> 0.5 | BF16: =IF('6 - Unmit. Project Performance'!E16="","",'6 - Unmit. Project Performance'!E16) -> 2.521054687 | BG16: =IF('6 - Unmit. Project Performance'!F16="","",'6 - Unmit. Project Performance'!F16) -> 0.8546875 | BH16: =IF('6 - Unmit. Project Performance'!G16="","",'6 - Unmit. Project Performance'!G16) -> 0.0025 | BI16: =IF('6 - Unmit. Project Performance'!H16="","",'6 - Unmit. Project Performance'!H16) -> 14.37105469 | BJ16: =IF('6 - Unmit. Project Performance'!I16="","",'6 - Unmit. Project Performance'!I16) -> 16.8546875 | BK16: =IF('6 - Unmit. Project Performance'!J16="","",'6 - Unmit. Project Performance'!J16) -> 0.5025 | BL16: =IF('6 - Unmit. Project Performance'!K16="","",'6 - Unmit. Project Performance'!K16) -> 15.47265 | CX16: =IF('11 - Mit. Project Performance'!A17="","",'11 - Mit. Project Performance'!A17) -> Construction | CY16: =IF('11 - Mit. Project Performance'!B17="","",'11 - Mit. Project Performance'!B17) -> 11.85 | CZ16: =IF('11 - Mit. Project Performance'!C17="","",'11 - Mit. Project Performance'!C17) -> 16 | DA16: =IF('11 - Mit. Project Performance'!D17="","",'11 - Mit. Project Performance'!D17) -> 0.5 | DB16: =IF('11 - Mit. Project Performance'!E17="","",'11 - Mit. Project Performance'!E17) -> 1.879726563 | DC16: =IF('11 - Mit. Project Performance'!F17="","",'11 - Mit. Project Performance'!F17) -> 0.3765625 | DD16: =IF('11 - Mit. Project Performance'!G17="","",'11 - Mit. Project Performance'!G17) -> -0.0204625 | DE16: =IF('11 - Mit. Project Performance'!H17="","",'11 - Mit. Project Performance'!H17) -> 13.72972656 | DF16: =IF('11 - Mit. Project Performance'!I17="","",'11 - Mit. Project Performance'!I17) -> 16.3765625 | DG16: =IF('11 - Mit. Project Performance'!J17="","",'11 - Mit. Project Performance'!J17) -> 0.4795375 | DH16: =IF('11 - Mit. Project Performance'!K17="","",'11 - Mit. Project Performance'!K17) -> 14.75814485
S17: Project Delivery Method | T17: =IF('1 - Project Structuring'!D7="","",'1 - Project Structuring'!D7) -> Design-Build | AA17: =IF('1 - Project Structuring'!C107="","",'1 - Project Structuring'!C107) -> Operations & Maintenance | AB17: =IF('1 - Project Structuring'!D107="","",'1 - Project Structuring'!D107) -> 0 | AC17: =IF('1 - Project Structuring'!E107="","",'1 - Project Structuring'!E107) -> 0 | AD17: =IF('1 - Project Structuring'!F107="","",'1 - Project Structuring'!F107) -> 600 | AN17: =IF('1 - Project Structuring'!C24="","",'1 - Project Structuring'!C24) -> Environmental Permits | AO17: =COUNTIF(Table1[Project Phase],'13 - Summary Report'!AN17) -> 2 | BB17: =IF('6 - Unmit. Project Performance'!A17="","",'6 - Unmit. Project Performance'!A17) -> Operations & Maintenance | BC17: =IF('6 - Unmit. Project Performance'!B17="","",'6 - Unmit. Project Performance'!B17) -> 0 | BD17: =IF('6 - Unmit. Project Performance'!C17="","",'6 - Unmit. Project Performance'!C17) -> 600 | BE17: =IF('6 - Unmit. Project Performance'!D17="","",'6 - Unmit. Project Performance'!D17) -> 1.4 | BF17: =IF('6 - Unmit. Project Performance'!E17="","",'6 - Unmit. Project Performance'!E17) -> 0 | BG17: =IF('6 - Unmit. Project Performance'!F17="","",'6 - Unmit. Project Performance'!F17) -> 0 | BH17: =IF('6 - Unmit. Project Performance'!G17="","",'6 - Unmit. Project Performance'!G17) -> 0 | BI17: =IF('6 - Unmit. Project Performance'!H17="","",'6 - Unmit. Project Performance'!H17) -> 0 | BJ17: =IF('6 - Unmit. Project Performance'!I17="","",'6 - Unmit. Project Performance'!I17) -> 600 | BK17: =IF('6 - Unmit. Project Performance'!J17="","",'6 - Unmit. Project Performance'!J17) -> 1.4 | BL17: =IF('6 - Unmit. Project Performance'!K17="","",'6 - Unmit. Project Performance'!K17) -> 0 | CX17: Op. & Maint. | CY17: =IF('11 - Mit. Project Performance'!B18="","",'11 - Mit. Project Performance'!B18) -> 0 | CZ17: =IF('11 - Mit. Project Performance'!C18="","",'11 - Mit. Project Performance'!C18) -> 600 | DA17: =IF('11 - Mit. Project Performance'!D18="","",'11 - Mit. Project Performance'!D18) -> 1.4 | DB17: =IF('11 - Mit. Project Performance'!E18="","",'11 - Mit. Project Performance'!E18) -> 0 | DC17: =IF('11 - Mit. Project Performance'!F18="","",'11 - Mit. Project Performance'!F18) -> 0 | DD17: =IF('11 - Mit. Project Performance'!G18="","",'11 - Mit. Project Performance'!G18) -> 0 | DE17: =IF('11 - Mit. Project Performance'!H18="","",'11 - Mit. Project Performance'!H18) -> 0 | DF17: =IF('11 - Mit. Project Performance'!I18="","",'11 - Mit. Project Performance'!I18) -> 600 | DG17: =IF('11 - Mit. Project Performance'!J18="","",'11 - Mit. Project Performance'!J18) -> 1.4 | DH17: =IF('11 - Mit. Project Performance'!K18="","",'11 - Mit. Project Performance'!K18) -> 
T18: =IF('1 - Project Structuring'!D9="","",'1 - Project Structuring'!D9) -> Schedule | AA18: =IF('1 - Project Structuring'!C108="","",'1 - Project Structuring'!C108) -> Replacement | AB18: =IF('1 - Project Structuring'!D108="","",'1 - Project Structuring'!D108) -> 0 | AC18: =IF('1 - Project Structuring'!E108="","",'1 - Project Structuring'!E108) -> 0 | AD18: =IF('1 - Project Structuring'!F108="","",'1 - Project Structuring'!F108) -> 0 | AN18: =IF('1 - Project Structuring'!C25="","",'1 - Project Structuring'!C25) -> ROW/Util/RR Funding Date | AO18: =COUNTIF(Table1[Project Phase],'13 - Summary Report'!AN18) -> 0 | BB18: =IF('6 - Unmit. Project Performance'!A18="","",'6 - Unmit. Project Performance'!A18) -> Replacement | BC18: =IF('6 - Unmit. Project Performance'!B18="","",'6 - Unmit. Project Performance'!B18) -> 0 | BD18: =IF('6 - Unmit. Project Performance'!C18="","",'6 - Unmit. Project Performance'!C18) -> 0 | BE18: =IF('6 - Unmit. Project Performance'!D18="","",'6 - Unmit. Project Performance'!D18) -> 0.7 | BF18: =IF('6 - Unmit. Project Performance'!E18="","",'6 - Unmit. Project Performance'!E18) -> 0 | BG18: =IF('6 - Unmit. Project Performance'!F18="","",'6 - Unmit. Project Performance'!F18) ->  | BH18: =IF('6 - Unmit. Project Performance'!G18="","",'6 - Unmit. Project Performance'!G18) -> 0 | BI18: =IF('6 - Unmit. Project Performance'!H18="","",'6 - Unmit. Project Performance'!H18) -> 0 | BJ18: =IF('6 - Unmit. Project Performance'!I18="","",'6 - Unmit. Project Performance'!I18) -> 0 | BK18: =IF('6 - Unmit. Project Performance'!J18="","",'6 - Unmit. Project Performance'!J18) -> 0.7 | BL18: =IF('6 - Unmit. Project Performance'!K18="","",'6 - Unmit. Project Performance'!K18) ->  | CX18: Replacement | CY18: =IF('11 - Mit. Project Performance'!B19="","",'11 - Mit. Project Performance'!B19) -> 0 | CZ18: =IF('11 - Mit. Project Performance'!C19="","",'11 - Mit. Project Performance'!C19) -> 0 | DA18: =IF('11 - Mit. Project Performance'!D19="","",'11 - Mit. Project Performance'!D19) -> 0.7 | DB18: =IF('11 - Mit. Project Performance'!E19="","",'11 - Mit. Project Performance'!E19) -> 0 | DC18: =IF('11 - Mit. Project Performance'!F19="","",'11 - Mit. Project Performance'!F19) -> 0 | DD18: =IF('11 - Mit. Project Performance'!G19="","",'11 - Mit. Project Performance'!G19) -> 0 | DE18: =IF('11 - Mit. Project Performance'!H19="","",'11 - Mit. Project Performance'!H19) -> 0 | DF18: =IF('11 - Mit. Project Performance'!I19="","",'11 - Mit. Project Performance'!I19) -> 0 | DG18: =IF('11 - Mit. Project Performance'!J19="","",'11 - Mit. Project Performance'!J19) -> 0.7 | DH18: =IF('11 - Mit. Project Performance'!K19="","",'11 - Mit. Project Performance'!K19) -> 
S19: Selected Perfomance Measures | T19: =IF('1 - Project Structuring'!D10="","",'1 - Project Structuring'!D10) -> Cost | AN19: =IF('1 - Project Structuring'!C26="","",'1 - Project Structuring'!C26) -> ROW/Util/RR | AO19: =COUNTIF(Table1[Project Phase],'13 - Summary Report'!AN19) -> 10 | BB19: =IF('6 - Unmit. Project Performance'!A19="","",'6 - Unmit. Project Performance'!A19) -> Total | BC19: =IF('6 - Unmit. Project Performance'!B19="","",'6 - Unmit. Project Performance'!B19) -> 16.04 | BD19: =IF('6 - Unmit. Project Performance'!C19="","",'6 - Unmit. Project Performance'!C19) ->  | BE19: =IF('6 - Unmit. Project Performance'!D19="","",'6 - Unmit. Project Performance'!D19) -> 2.8 | BF19: =IF('6 - Unmit. Project Performance'!E19="","",'6 - Unmit. Project Performance'!E19) -> 5.536679687 | BG19: =IF('6 - Unmit. Project Performance'!F19="","",'6 - Unmit. Project Performance'!F19) ->  | BH19: =IF('6 - Unmit. Project Performance'!G19="","",'6 - Unmit. Project Performance'!G19) -> 0.0025 | BI19: =IF('6 - Unmit. Project Performance'!H19="","",'6 - Unmit. Project Performance'!H19) -> 21.57667969 | BJ19: =IF('6 - Unmit. Project Performance'!I19="","",'6 - Unmit. Project Performance'!I19) ->  | BK19: =IF('6 - Unmit. Project Performance'!J19="","",'6 - Unmit. Project Performance'!J19) -> 2.8025 | BL19: =IF('6 - Unmit. Project Performance'!K19="","",'6 - Unmit. Project Performance'!K19) -> 22.99559532 | CX19: =IF('11 - Mit. Project Performance'!A20="","",'11 - Mit. Project Performance'!A20) -> Total (through Construction) | CY19: =IF('11 - Mit. Project Performance'!B20="","",'11 - Mit. Project Performance'!B20) -> 16.29 | CZ19: =IF('11 - Mit. Project Performance'!C20="","",'11 - Mit. Project Performance'!C20) ->  | DA19: =IF('11 - Mit. Project Performance'!D20="","",'11 - Mit. Project Performance'!D20) -> 0.7 | DB19: =IF('11 - Mit. Project Performance'!E20="","",'11 - Mit. Project Performance'!E20) -> 4.580164062 | DC19: =IF('11 - Mit. Project Performance'!F20="","",'11 - Mit. Project Performance'!F20) ->  | DD19: =IF('11 - Mit. Project Performance'!G20="","",'11 - Mit. Project Performance'!G20) -> -0.0204625 | DE19: =IF('11 - Mit. Project Performance'!H20="","",'11 - Mit. Project Performance'!H20) -> 20.87016406 | DF19: =IF('11 - Mit. Project Performance'!I20="","",'11 - Mit. Project Performance'!I20) ->  | DG19: =IF('11 - Mit. Project Performance'!J20="","",'11 - Mit. Project Performance'!J20) -> 0.6795375 | DH19: =IF('11 - Mit. Project Performance'!K20="","",'11 - Mit. Project Performance'!K20) -> 22.21169898
T20: =IF('1 - Project Structuring'!D11="","",'1 - Project Structuring'!D11) -> Disruption | AN20: =IF('1 - Project Structuring'!C27="","",'1 - Project Structuring'!C27) -> Construction Funding Date | AO20: =COUNTIF(Table1[Project Phase],'13 - Summary Report'!AN20) -> 0
S21: Project Start Date | T21: =IF('1 - Project Structuring'!E15="","",'1 - Project Structuring'!E15) -> 40148 | AC21: Base Schedule | AN21: =IF('1 - Project Structuring'!C28="","",'1 - Project Structuring'!C28) -> Procurement | AO21: =COUNTIF(Table1[Project Phase],'13 - Summary Report'!AN21) -> 8 | BH21: Project Schedule | DC21: Project Schedule
S22: Target Date for Start of Operations | T22: =IF('1 - Project Structuring'!E16="","",'1 - Project Structuring'!E16) -> 41212 | AA22: Project Phase | AB22: Months/Date | AC22: Early Start | AD22: Early Finish | AE22: Late Start | AF22: Late Finish | AG22: Float | AN22: =IF('1 - Project Structuring'!C29="","",'1 - Project Structuring'!C29) -> Final Design | AO22: =COUNTIF(Table1[Project Phase],'13 - Summary Report'!AN22) -> 0 | BB22: Project Phase | BE22: Base Project Schedule Performance | BK22: Unmitigated Project Schedule Performance | CX22: Project Phase | DA22: Unmitigated Project Schedule Performance | DG22: Mitigated Project Schedule Performance
S23: Preconstruction Inflation Rate | T23: =IF('1 - Project Structuring'!J54="","",'1 - Project Structuring'!J54) -> 3 | U23: (%) | AA23: =IF('1 - Project Structuring'!C20="","",'1 - Project Structuring'!C20) -> Planning | AB23: =IF('1 - Project Structuring'!D20="","",'1 - Project Structuring'!D20) -> 0 | AC23: =IF('1 - Project Structuring'!E20="","",'1 - Project Structuring'!E20) -> 40148 | AD23: =IF('1 - Project Structuring'!F20="","",'1 - Project Structuring'!F20) -> 40148 | AE23: =IF('1 - Project Structuring'!G20="","",'1 - Project Structuring'!G20) -> 40148 | AF23: =IF('1 - Project Structuring'!H20="","",'1 - Project Structuring'!H20) -> 40148 | AG23: =IF('1 - Project Structuring'!I20="","",'1 - Project Structuring'!I20) -> 0 | AN23: =IF('1 - Project Structuring'!C30="","",'1 - Project Structuring'!C30) -> Construction | AO23: =COUNTIF(Table1[Project Phase],'13 - Summary Report'!AN23) -> 12 | BC23: Duration (mo./date) | BD23: Early Start | BE23: Early Finish | BF23: Late Start | BG23: Late Finish | BH23: Float (mo.) | BI23: Duration (mo./date) | BJ23: Early Start | BK23: Early Finish | BL23: Late Start | BM23: Late Finish | BN23: Float (mo.) | BO23: Mean Severity | CY23: Duration (mo./date) | CZ23: Early Start | DA23: Early Finish | DB23: Late Start | DC23: Late Finish | DD23: Float (mo.) | DE23: Duration (mo./date) | DF23: Early Start | DG23: Early Finish | DH23: Late Start | DI23: Late Finish | DJ23: Float (mo.) | DK23: Mean Severity
S24: ROW/Utility/RR Inflation Rate | T24: =IF('1 - Project Structuring'!J55="","",'1 - Project Structuring'!J55) -> 3 | U24: (%) | AA24: =IF('1 - Project Structuring'!C21="","",'1 - Project Structuring'!C21) -> Scoping | AB24: =IF('1 - Project Structuring'!D21="","",'1 - Project Structuring'!D21) -> 0 | AC24: =IF('1 - Project Structuring'!E21="","",'1 - Project Structuring'!E21) -> 40148 | AD24: =IF('1 - Project Structuring'!F21="","",'1 - Project Structuring'!F21) -> 40148 | AE24: =IF('1 - Project Structuring'!G21="","",'1 - Project Structuring'!G21) -> 40148 | AF24: =IF('1 - Project Structuring'!H21="","",'1 - Project Structuring'!H21) -> 40148 | AG24: =IF('1 - Project Structuring'!I21="","",'1 - Project Structuring'!I21) -> 0 | AN24: Operations & Maintenance | AO24: =COUNTIF(Table1[Project Phase],'13 - Summary Report'!AN24) -> 0 | DK24: YOE ($M)
S25: Construction Inflation Rate | T25: =IF('1 - Project Structuring'!J56="","",'1 - Project Structuring'!J56) -> 3 | U25: (%) | AA25: =IF('1 - Project Structuring'!C22="","",'1 - Project Structuring'!C22) -> Design Funding Date | AB25: =IF('1 - Project Structuring'!D22="","",'1 - Project Structuring'!D22) -> 40148 | AC25: =IF('1 - Project Structuring'!E22="","",'1 - Project Structuring'!E22) ->  | AD25: =IF('1 - Project Structuring'!F22="","",'1 - Project Structuring'!F22) -> 40148 | AE25: =IF('1 - Project Structuring'!G22="","",'1 - Project Structuring'!G22) ->  | AF25: =IF('1 - Project Structuring'!H22="","",'1 - Project Structuring'!H22) -> 40148 | AG25: =IF('1 - Project Structuring'!I22="","",'1 - Project Structuring'!I22) -> 0 | AN25: Replacement | AO25: =COUNTIF(Table1[Project Phase],'13 - Summary Report'!AN25) -> 0 | BB25: =IF('6 - Unmit. Project Performance'!A25="","",'6 - Unmit. Project Performance'!A25) -> Planning | BC25: =IF('6 - Unmit. Project Performance'!B25="","",'6 - Unmit. Project Performance'!B25) -> 0 | BD25: =IF('6 - Unmit. Project Performance'!C25="","",'6 - Unmit. Project Performance'!C25) -> 40148 | BE25: =IF('6 - Unmit. Project Performance'!D25="","",'6 - Unmit. Project Performance'!D25) -> 40148 | BF25: =IF('6 - Unmit. Project Performance'!E25="","",'6 - Unmit. Project Performance'!E25) -> 40148 | BG25: =IF('6 - Unmit. Project Performance'!F25="","",'6 - Unmit. Project Performance'!F25) -> 40148 | BH25: =IF('6 - Unmit. Project Performance'!G25="","",'6 - Unmit. Project Performance'!G25) -> 0 | BI25: =IF('6 - Unmit. Project Performance'!H25="","",'6 - Unmit. Project Performance'!H25) -> 0 | BJ25: =IF('6 - Unmit. Project Performance'!I25="","",'6 - Unmit. Project Performance'!I25) -> 40148 | BK25: =IF('6 - Unmit. Project Performance'!J25="","",'6 - Unmit. Project Performance'!J25) -> 40148 | BL25: =IF('6 - Unmit. Project Performance'!K25="","",'6 - Unmit. Project Performance'!K25) -> 40148 | BM25: =IF('6 - Unmit. Project Performance'!L25="","",'6 - Unmit. Project Performance'!L25) -> 40148 | BN25: =IF('6 - Unmit. Project Performance'!M25="","",'6 - Unmit. Project Performance'!M25) -> 0 | BO25: =IF('6 - Unmit. Project Performance'!N25="","",'6 - Unmit. Project Performance'!N25) -> 0.01335851501 | CX25: =IF('11 - Mit. Project Performance'!A26="","",'11 - Mit. Project Performance'!A26) -> Planning | CY25: =IF('11 - Mit. Project Performance'!B26="","",'11 - Mit. Project Performance'!B26) -> 0 | CZ25: =IF('11 - Mit. Project Performance'!C26="","",'11 - Mit. Project Performance'!C26) -> 40148 | DA25: =IF('11 - Mit. Project Performance'!D26="","",'11 - Mit. Project Performance'!D26) -> 40148 | DB25: =IF('11 - Mit. Project Performance'!E26="","",'11 - Mit. Project Performance'!E26) -> 40148 | DC25: =IF('11 - Mit. Project Performance'!F26="","",'11 - Mit. Project Performance'!F26) -> 40148 | DD25: =IF('11 - Mit. Project Performance'!G26="","",'11 - Mit. Project Performance'!G26) -> 0 | DE25: =IF('11 - Mit. Project Performance'!H26="","",'11 - Mit. Project Performance'!H26) -> 0 | DF25: =IF('11 - Mit. Project Performance'!I26="","",'11 - Mit. Project Performance'!I26) -> 40148 | DG25: =IF('11 - Mit. Project Performance'!J26="","",'11 - Mit. Project Performance'!J26) -> 40148 | DH25: =IF('11 - Mit. Project Performance'!K26="","",'11 - Mit. Project Performance'!K26) -> 40148 | DI25: =IF('11 - Mit. Project Performance'!L26="","",'11 - Mit. Project Performance'!L26) -> 40148 | DJ25: =IF('11 - Mit. Project Performance'!M26="","",'11 - Mit. Project Performance'!M26) -> 0 | DK25: =IF('11 - Mit. Project Performance'!N26="","",'11 - Mit. Project Performance'!N26) -> 0.01335851501
S26: Preconstruction Overhead Rate | T26: =IF('1 - Project Structuring'!J60="","",'1 - Project Structuring'!J60) -> 0.1 | U26: ($ M/month) | AA26: =IF('1 - Project Structuring'!C23="","",'1 - Project Structuring'!C23) -> Prelim Design/Environmental Process | AB26: =IF('1 - Project Structuring'!D23="","",'1 - Project Structuring'!D23) -> 12 | AC26: =IF('1 - Project Structuring'!E23="","",'1 - Project Structuring'!E23) -> 40148 | AD26: =IF('1 - Project Structuring'!F23="","",'1 - Project Structuring'!F23) -> 40512.8 | AE26: =IF('1 - Project Structuring'!G23="","",'1 - Project Structuring'!G23) -> 40148 | AF26: =IF('1 - Project Structuring'!H23="","",'1 - Project Structuring'!H23) -> 40512.8 | AG26: =IF('1 - Project Structuring'!I23="","",'1 - Project Structuring'!I23) -> 0 | AN26: Total | AO26: =SUM(AO13:AO25) -> 59 | BB26: =IF('6 - Unmit. Project Performance'!A26="","",'6 - Unmit. Project Performance'!A26) -> Scoping | BC26: =IF('6 - Unmit. Project Performance'!B26="","",'6 - Unmit. Project Performance'!B26) -> 0 | BD26: =IF('6 - Unmit. Project Performance'!C26="","",'6 - Unmit. Project Performance'!C26) -> 40148 | BE26: =IF('6 - Unmit. Project Performance'!D26="","",'6 - Unmit. Project Performance'!D26) -> 40148 | BF26: =IF('6 - Unmit. Project Performance'!E26="","",'6 - Unmit. Project Performance'!E26) -> 40148 | BG26: =IF('6 - Unmit. Project Performance'!F26="","",'6 - Unmit. Project Performance'!F26) -> 40148 | BH26: =IF('6 - Unmit. Project Performance'!G26="","",'6 - Unmit. Project Performance'!G26) -> 0 | BI26: =IF('6 - Unmit. Project Performance'!H26="","",'6 - Unmit. Project Performance'!H26) -> 0 | BJ26: =IF('6 - Unmit. Project Performance'!I26="","",'6 - Unmit. Project Performance'!I26) -> 40148 | BK26: =IF('6 - Unmit. Project Performance'!J26="","",'6 - Unmit. Project Performance'!J26) -> 40148 | BL26: =IF('6 - Unmit. Project Performance'!K26="","",'6 - Unmit. Project Performance'!K26) -> 40148 | BM26: =IF('6 - Unmit. Project Performance'!L26="","",'6 - Unmit. Project Performance'!L26) -> 40148 | BN26: =IF('6 - Unmit. Project Performance'!M26="","",'6 - Unmit. Project Performance'!M26) -> 0 | BO26: =IF('6 - Unmit. Project Performance'!N26="","",'6 - Unmit. Project Performance'!N26) -> 0.8876570807 | CX26: =IF('11 - Mit. Project Performance'!A27="","",'11 - Mit. Project Performance'!A27) -> Scoping | CY26: =IF('11 - Mit. Project Performance'!B27="","",'11 - Mit. Project Performance'!B27) -> 0 | CZ26: =IF('11 - Mit. Project Performance'!C27="","",'11 - Mit. Project Performance'!C27) -> 40148 | DA26: =IF('11 - Mit. Project Performance'!D27="","",'11 - Mit. Project Performance'!D27) -> 40148 | DB26: =IF('11 - Mit. Project Performance'!E27="","",'11 - Mit. Project Performance'!E27) -> 40148 | DC26: =IF('11 - Mit. Project Performance'!F27="","",'11 - Mit. Project Performance'!F27) -> 40148 | DD26: =IF('11 - Mit. Project Performance'!G27="","",'11 - Mit. Project Performance'!G27) -> 0 | DE26: =IF('11 - Mit. Project Performance'!H27="","",'11 - Mit. Project Performance'!H27) -> 0 | DF26: =IF('11 - Mit. Project Performance'!I27="","",'11 - Mit. Project Performance'!I27) -> 40148 | DG26: =IF('11 - Mit. Project Performance'!J27="","",'11 - Mit. Project Performance'!J27) -> 40148 | DH26: =IF('11 - Mit. Project Performance'!K27="","",'11 - Mit. Project Performance'!K27) -> 40148 | DI26: =IF('11 - Mit. Project Performance'!L27="","",'11 - Mit. Project Performance'!L27) -> 40148 | DJ26: =IF('11 - Mit. Project Performance'!M27="","",'11 - Mit. Project Performance'!M27) -> 0 | DK26: =IF('11 - Mit. Project Performance'!N27="","",'11 - Mit. Project Performance'!N27) -> 0.5790753839
S27: Construction Overhead Rate | T27: =IF('1 - Project Structuring'!J61="","",'1 - Project Structuring'!J61) -> 0.225 | U27: ($ M/month) | AA27: =IF('1 - Project Structuring'!C24="","",'1 - Project Structuring'!C24) -> Environmental Permits | AB27: =IF('1 - Project Structuring'!D24="","",'1 - Project Structuring'!D24) -> 6 | AC27: =IF('1 - Project Structuring'!E24="","",'1 - Project Structuring'!E24) -> 40512.8 | AD27: =IF('1 - Project Structuring'!F24="","",'1 - Project Structuring'!F24) -> 40695.2 | AE27: =IF('1 - Project Structuring'!G24="","",'1 - Project Structuring'!G24) -> 40512.8 | AF27: =IF('1 - Project Structuring'!H24="","",'1 - Project Structuring'!H24) -> 40695.2 | AG27: =IF('1 - Project Structuring'!I24="","",'1 - Project Structuring'!I24) -> 0 | BB27: =IF('6 - Unmit. Project Performance'!A27="","",'6 - Unmit. Project Performance'!A27) -> Design Funding Date | BC27: =IF('6 - Unmit. Project Performance'!B27="","",'6 - Unmit. Project Performance'!B27) -> 40148 | BD27: =IF('6 - Unmit. Project Performance'!C27="","",'6 - Unmit. Project Performance'!C27) ->  | BE27: =IF('6 - Unmit. Project Performance'!D27="","",'6 - Unmit. Project Performance'!D27) -> 40148 | BF27: =IF('6 - Unmit. Project Performance'!E27="","",'6 - Unmit. Project Performance'!E27) ->  | BG27: =IF('6 - Unmit. Project Performance'!F27="","",'6 - Unmit. Project Performance'!F27) -> 40148 | BH27: =IF('6 - Unmit. Project Performance'!G27="","",'6 - Unmit. Project Performance'!G27) -> 0 | BI27: =IF('6 - Unmit. Project Performance'!H27="","",'6 - Unmit. Project Performance'!H27) -> 40148 | BJ27: =IF('6 - Unmit. Project Performance'!I27="","",'6 - Unmit. Project Performance'!I27) ->  | BK27: =IF('6 - Unmit. Project Performance'!J27="","",'6 - Unmit. Project Performance'!J27) -> 40148 | BL27: =IF('6 - Unmit. Project Performance'!K27="","",'6 - Unmit. Project Performance'!K27) ->  | BM27: =IF('6 - Unmit. Project Performance'!L27="","",'6 - Unmit. Project Performance'!L27) -> 40148 | BN27: =IF('6 - Unmit. Project Performance'!M27="","",'6 - Unmit. Project Performance'!M27) -> 0 | BO27: =IF('6 - Unmit. Project Performance'!N27="","",'6 - Unmit. Project Performance'!N27) -> 0 | CX27: =IF('11 - Mit. Project Performance'!A28="","",'11 - Mit. Project Performance'!A28) -> Design Funding Date | CY27: =IF('11 - Mit. Project Performance'!B28="","",'11 - Mit. Project Performance'!B28) -> 40148 | CZ27: =IF('11 - Mit. Project Performance'!C28="","",'11 - Mit. Project Performance'!C28) ->  | DA27: =IF('11 - Mit. Project Performance'!D28="","",'11 - Mit. Project Performance'!D28) -> 40148 | DB27: =IF('11 - Mit. Project Performance'!E28="","",'11 - Mit. Project Performance'!E28) ->  | DC27: =IF('11 - Mit. Project Performance'!F28="","",'11 - Mit. Project Performance'!F28) -> 40148 | DD27: =IF('11 - Mit. Project Performance'!G28="","",'11 - Mit. Project Performance'!G28) -> 0 | DE27: =IF('11 - Mit. Project Performance'!H28="","",'11 - Mit. Project Performance'!H28) -> 40148 | DF27: =IF('11 - Mit. Project Performance'!I28="","",'11 - Mit. Project Performance'!I28) ->  | DG27: =IF('11 - Mit. Project Performance'!J28="","",'11 - Mit. Project Performance'!J28) -> 40148 | DH27: =IF('11 - Mit. Project Performance'!K28="","",'11 - Mit. Project Performance'!K28) ->  | DI27: =IF('11 - Mit. Project Performance'!L28="","",'11 - Mit. Project Performance'!L28) -> 40148 | DJ27: =IF('11 - Mit. Project Performance'!M28="","",'11 - Mit. Project Performance'!M28) -> 0 | DK27: =IF('11 - Mit. Project Performance'!N28="","",'11 - Mit. Project Performance'!N28) -> 0
S28: Disruption Value | T28: =IF('1 - Project Structuring'!E80="","",'1 - Project Structuring'!E80) -> 10 | U28: ($/day) | AA28: =IF('1 - Project Structuring'!C25="","",'1 - Project Structuring'!C25) -> ROW/Util/RR Funding Date | AB28: =IF('1 - Project Structuring'!D25="","",'1 - Project Structuring'!D25) -> 40148 | AC28: =IF('1 - Project Structuring'!E25="","",'1 - Project Structuring'!E25) ->  | AD28: =IF('1 - Project Structuring'!F25="","",'1 - Project Structuring'!F25) -> 40148 | AE28: =IF('1 - Project Structuring'!G25="","",'1 - Project Structuring'!G25) ->  | AF28: =IF('1 - Project Structuring'!H25="","",'1 - Project Structuring'!H25) -> 40877.6 | AG28: =IF('1 - Project Structuring'!I25="","",'1 - Project Structuring'!I25) -> 24 | BB28: =IF('6 - Unmit. Project Performance'!A28="","",'6 - Unmit. Project Performance'!A28) -> Prelim Design/Environmental Process | BC28: =IF('6 - Unmit. Project Performance'!B28="","",'6 - Unmit. Project Performance'!B28) -> 12 | BD28: =IF('6 - Unmit. Project Performance'!C28="","",'6 - Unmit. Project Performance'!C28) -> 40148 | BE28: =IF('6 - Unmit. Project Performance'!D28="","",'6 - Unmit. Project Performance'!D28) -> 40512.8 | BF28: =IF('6 - Unmit. Project Performance'!E28="","",'6 - Unmit. Project Performance'!E28) -> 40148 | BG28: =IF('6 - Unmit. Project Performance'!F28="","",'6 - Unmit. Project Performance'!F28) -> 40512.8 | BH28: =IF('6 - Unmit. Project Performance'!G28="","",'6 - Unmit. Project Performance'!G28) -> 0 | BI28: =IF('6 - Unmit. Project Performance'!H28="","",'6 - Unmit. Project Performance'!H28) -> 13.46875 | BJ28: =IF('6 - Unmit. Project Performance'!I28="","",'6 - Unmit. Project Performance'!I28) -> 40148 | BK28: =IF('6 - Unmit. Project Performance'!J28="","",'6 - Unmit. Project Performance'!J28) -> 40557.45 | BL28: =IF('6 - Unmit. Project Performance'!K28="","",'6 - Unmit. Project Performance'!K28) -> 40148 | BM28: =IF('6 - Unmit. Project Performance'!L28="","",'6 - Unmit. Project Performance'!L28) -> 40557.45 | BN28: =IF('6 - Unmit. Project Performance'!M28="","",'6 - Unmit. Project Performance'!M28) -> 0 | BO28: =IF('6 - Unmit. Project Performance'!N28="","",'6 - Unmit. Project Performance'!N28) -> 1.367673217 | CX28: =IF('11 - Mit. Project Performance'!A29="","",'11 - Mit. Project Performance'!A29) -> Prelim Design/Environmental Process | CY28: =IF('11 - Mit. Project Performance'!B29="","",'11 - Mit. Project Performance'!B29) -> 13.46875 | CZ28: =IF('11 - Mit. Project Performance'!C29="","",'11 - Mit. Project Performance'!C29) -> 40148 | DA28: =IF('11 - Mit. Project Performance'!D29="","",'11 - Mit. Project Performance'!D29) -> 40557.45 | DB28: =IF('11 - Mit. Project Performance'!E29="","",'11 - Mit. Project Performance'!E29) -> 40148 | DC28: =IF('11 - Mit. Project Performance'!F29="","",'11 - Mit. Project Performance'!F29) -> 40557.45 | DD28: =IF('11 - Mit. Project Performance'!G29="","",'11 - Mit. Project Performance'!G29) -> 0 | DE28: =IF('11 - Mit. Project Performance'!H29="","",'11 - Mit. Project Performance'!H29) -> 13.46875 | DF28: =IF('11 - Mit. Project Performance'!I29="","",'11 - Mit. Project Performance'!I29) -> 40148 | DG28: =IF('11 - Mit. Project Performance'!J29="","",'11 - Mit. Project Performance'!J29) -> 40557.45 | DH28: =IF('11 - Mit. Project Performance'!K29="","",'11 - Mit. Project Performance'!K29) -> 40148 | DI28: =IF('11 - Mit. Project Performance'!L29="","",'11 - Mit. Project Performance'!L29) -> 40557.45 | DJ28: =IF('11 - Mit. Project Performance'!M29="","",'11 - Mit. Project Performance'!M29) -> 0 | DK28: =IF('11 - Mit. Project Performance'!N29="","",'11 - Mit. Project Performance'!N29) -> 1.180168702
S29: Schedule Value | T29: =IF('1 - Project Structuring'!E17="","",'1 - Project Structuring'!E17) -> 0.1 | U29: ($ M/month) | AA29: =IF('1 - Project Structuring'!C26="","",'1 - Project Structuring'!C26) -> ROW/Util/RR | AB29: =IF('1 - Project Structuring'!D26="","",'1 - Project Structuring'!D26) -> 12 | AC29: =IF('1 - Project Structuring'!E26="","",'1 - Project Structuring'!E26) -> 40512.8 | AD29: =IF('1 - Project Structuring'!F26="","",'1 - Project Structuring'!F26) -> 40877.6 | AE29: =IF('1 - Project Structuring'!G26="","",'1 - Project Structuring'!G26) -> 40512.8 | AF29: =IF('1 - Project Structuring'!H26="","",'1 - Project Structuring'!H26) -> 40877.6 | AG29: =IF('1 - Project Structuring'!I26="","",'1 - Project Structuring'!I26) -> 0 | BB29: =IF('6 - Unmit. Project Performance'!A29="","",'6 - Unmit. Project Performance'!A29) -> Environmental Permits | BC29: =IF('6 - Unmit. Project Performance'!B29="","",'6 - Unmit. Project Performance'!B29) -> 6 | BD29: =IF('6 - Unmit. Project Performance'!C29="","",'6 - Unmit. Project Performance'!C29) -> 40512.8 | BE29: =IF('6 - Unmit. Project Performance'!D29="","",'6 - Unmit. Project Performance'!D29) -> 40695.2 | BF29: =IF('6 - Unmit. Project Performance'!E29="","",'6 - Unmit. Project Performance'!E29) -> 40512.8 | BG29: =IF('6 - Unmit. Project Performance'!F29="","",'6 - Unmit. Project Performance'!F29) -> 40695.2 | BH29: =IF('6 - Unmit. Project Performance'!G29="","",'6 - Unmit. Project Performance'!G29) -> 0 | BI29: =IF('6 - Unmit. Project Performance'!H29="","",'6 - Unmit. Project Performance'!H29) -> 6.3125 | BJ29: =IF('6 - Unmit. Project Performance'!I29="","",'6 - Unmit. Project Performance'!I29) -> 40557.45 | BK29: =IF('6 - Unmit. Project Performance'!J29="","",'6 - Unmit. Project Performance'!J29) -> 40749.35 | BL29: =IF('6 - Unmit. Project Performance'!K29="","",'6 - Unmit. Project Performance'!K29) -> 40582.15 | BM29: =IF('6 - Unmit. Project Performance'!L29="","",'6 - Unmit. Project Performance'!L29) -> 40774.05 | BN29: =IF('6 - Unmit. Project Performance'!M29="","",'6 - Unmit. Project Performance'!M29) -> 0.8125 | BO29: =IF('6 - Unmit. Project Performance'!N29="","",'6 - Unmit. Project Performance'!N29) -> 0.07345163098 | DK29: =IF('11 - Mit. Project Performance'!N30="","",'11 - Mit. Project Performance'!N30) -> 0.07345163098
S30: Facility Performance Period | T30: =IF('1 - Project Structuring'!D65="","",'1 - Project Structuring'!D65) -> 50 | U30: (years) | AA30: =IF('1 - Project Structuring'!C27="","",'1 - Project Structuring'!C27) -> Construction Funding Date | AB30: =IF('1 - Project Structuring'!D27="","",'1 - Project Structuring'!D27) -> 40148 | AC30: =IF('1 - Project Structuring'!E27="","",'1 - Project Structuring'!E27) ->  | AD30: =IF('1 - Project Structuring'!F27="","",'1 - Project Structuring'!F27) -> 40148 | AE30: =IF('1 - Project Structuring'!G27="","",'1 - Project Structuring'!G27) ->  | AF30: =IF('1 - Project Structuring'!H27="","",'1 - Project Structuring'!H27) -> 40512.8 | AG30: =IF('1 - Project Structuring'!I27="","",'1 - Project Structuring'!I27) -> 12 | BB30: =IF('6 - Unmit. Project Performance'!A30="","",'6 - Unmit. Project Performance'!A30) -> ROW/Util/RR Funding Date | BC30: =IF('6 - Unmit. Project Performance'!B30="","",'6 - Unmit. Project Performance'!B30) -> 40148 | BD30: =IF('6 - Unmit. Project Performance'!C30="","",'6 - Unmit. Project Performance'!C30) ->  | BE30: =IF('6 - Unmit. Project Performance'!D30="","",'6 - Unmit. Project Performance'!D30) -> 40148 | BF30: =IF('6 - Unmit. Project Performance'!E30="","",'6 - Unmit. Project Performance'!E30) ->  | BG30: =IF('6 - Unmit. Project Performance'!F30="","",'6 - Unmit. Project Performance'!F30) -> 40877.6 | BH30: =IF('6 - Unmit. Project Performance'!G30="","",'6 - Unmit. Project Performance'!G30) -> 24 | BI30: =IF('6 - Unmit. Project Performance'!H30="","",'6 - Unmit. Project Performance'!H30) -> 40148 | BJ30: =IF('6 - Unmit. Project Performance'!I30="","",'6 - Unmit. Project Performance'!I30) ->  | BK30: =IF('6 - Unmit. Project Performance'!J30="","",'6 - Unmit. Project Performance'!J30) -> 40148 | BL30: =IF('6 - Unmit. Project Performance'!K30="","",'6 - Unmit. Project Performance'!K30) ->  | BM30: =IF('6 - Unmit. Project Performance'!L30="","",'6 - Unmit. Project Performance'!L30) -> 40956.45 | BN30: =IF('6 - Unmit. Project Performance'!M30="","",'6 - Unmit. Project Performance'!M30) -> 26.59375 | BO30: =IF('6 - Unmit. Project Performance'!N30="","",'6 - Unmit. Project Performance'!N30) -> 0 | DK30: =IF('11 - Mit. Project Performance'!N31="","",'11 - Mit. Project Performance'!N31) -> 0
S31: Discount Rate | T31: =IF('1 - Project Structuring'!D66="","",'1 - Project Structuring'!D66) -> 5 | U31: (%) | AA31: =IF('1 - Project Structuring'!C28="","",'1 - Project Structuring'!C28) -> Procurement | AB31: =IF('1 - Project Structuring'!D28="","",'1 - Project Structuring'!D28) -> 6 | AC31: =IF('1 - Project Structuring'!E28="","",'1 - Project Structuring'!E28) -> 40512.8 | AD31: =IF('1 - Project Structuring'!F28="","",'1 - Project Structuring'!F28) -> 40695.2 | AE31: =IF('1 - Project Structuring'!G28="","",'1 - Project Structuring'!G28) -> 40512.8 | AF31: =IF('1 - Project Structuring'!H28="","",'1 - Project Structuring'!H28) -> 40695.2 | AG31: =IF('1 - Project Structuring'!I28="","",'1 - Project Structuring'!I28) -> 0 | BB31: =IF('6 - Unmit. Project Performance'!A31="","",'6 - Unmit. Project Performance'!A31) -> ROW/Util/RR | BC31: =IF('6 - Unmit. Project Performance'!B31="","",'6 - Unmit. Project Performance'!B31) -> 12 | BD31: =IF('6 - Unmit. Project Performance'!C31="","",'6 - Unmit. Project Performance'!C31) -> 40512.8 | BE31: =IF('6 - Unmit. Project Performance'!D31="","",'6 - Unmit. Project Performance'!D31) -> 40877.6 | BF31: =IF('6 - Unmit. Project Performance'!E31="","",'6 - Unmit. Project Performance'!E31) -> 40512.8 | BG31: =IF('6 - Unmit. Project Performance'!F31="","",'6 - Unmit. Project Performance'!F31) -> 40877.6 | BH31: =IF('6 - Unmit. Project Performance'!G31="","",'6 - Unmit. Project Performance'!G31) -> 0 | BI31: =IF('6 - Unmit. Project Performance'!H31="","",'6 - Unmit. Project Performance'!H31) -> 13.125 | BJ31: =IF('6 - Unmit. Project Performance'!I31="","",'6 - Unmit. Project Performance'!I31) -> 40557.45 | BK31: =IF('6 - Unmit. Project Performance'!J31="","",'6 - Unmit. Project Performance'!J31) -> 40956.45 | BL31: =IF('6 - Unmit. Project Performance'!K31="","",'6 - Unmit. Project Performance'!K31) -> 40557.45 | BM31: =IF('6 - Unmit. Project Performance'!L31="","",'6 - Unmit. Project Performance'!L31) -> 40956.45 | BN31: =IF('6 - Unmit. Project Performance'!M31="","",'6 - Unmit. Project Performance'!M31) -> 0 | BO31: =IF('6 - Unmit. Project Performance'!N31="","",'6 - Unmit. Project Performance'!N31) -> 2.478263123 | CX31: =IF('11 - Mit. Project Performance'!A30="","",'11 - Mit. Project Performance'!A30) -> Environmental Permits | CY31: =IF('11 - Mit. Project Performance'!B30="","",'11 - Mit. Project Performance'!B30) -> 6.3125 | CZ31: =IF('11 - Mit. Project Performance'!C30="","",'11 - Mit. Project Performance'!C30) -> 40557.45 | DA31: =IF('11 - Mit. Project Performance'!D30="","",'11 - Mit. Project Performance'!D30) -> 40749.35 | DB31: =IF('11 - Mit. Project Performance'!E30="","",'11 - Mit. Project Performance'!E30) -> 40582.15 | DC31: =IF('11 - Mit. Project Performance'!F30="","",'11 - Mit. Project Performance'!F30) -> 40774.05 | DD31: =IF('11 - Mit. Project Performance'!G30="","",'11 - Mit. Project Performance'!G30) -> 0.8125 | DE31: =IF('11 - Mit. Project Performance'!H30="","",'11 - Mit. Project Performance'!H30) -> 6.3125 | DF31: =IF('11 - Mit. Project Performance'!I30="","",'11 - Mit. Project Performance'!I30) -> 40557.45 | DG31: =IF('11 - Mit. Project Performance'!J30="","",'11 - Mit. Project Performance'!J30) -> 40749.35 | DH31: =IF('11 - Mit. Project Performance'!K30="","",'11 - Mit. Project Performance'!K30) -> 40569.325 | DI31: =IF('11 - Mit. Project Performance'!L30="","",'11 - Mit. Project Performance'!L30) -> 40761.225 | DJ31: =IF('11 - Mit. Project Performance'!M30="","",'11 - Mit. Project Performance'!M30) -> 0.390625 | DK31: =IF('11 - Mit. Project Performance'!N32="","",'11 - Mit. Project Performance'!N32) -> 2.265944443
S32: Agency/User Discount Factor | T32: =IF('1 - Project Structuring'!E81="","",'1 - Project Structuring'!E81) -> 1 | AA32: =IF('1 - Project Structuring'!C29="","",'1 - Project Structuring'!C29) -> Final Design | AB32: =IF('1 - Project Structuring'!D29="","",'1 - Project Structuring'!D29) -> 6 | AC32: =IF('1 - Project Structuring'!E29="","",'1 - Project Structuring'!E29) -> 40695.2 | AD32: =IF('1 - Project Structuring'!F29="","",'1 - Project Structuring'!F29) -> 40877.6 | AE32: =IF('1 - Project Structuring'!G29="","",'1 - Project Structuring'!G29) -> 40695.2 | AF32: =IF('1 - Project Structuring'!H29="","",'1 - Project Structuring'!H29) -> 41029.6 | AG32: =IF('1 - Project Structuring'!I29="","",'1 - Project Structuring'!I29) -> 5 | BB32: =IF('6 - Unmit. Project Performance'!A32="","",'6 - Unmit. Project Performance'!A32) -> Construction Funding Date | BC32: =IF('6 - Unmit. Project Performance'!B32="","",'6 - Unmit. Project Performance'!B32) -> 40148 | BD32: =IF('6 - Unmit. Project Performance'!C32="","",'6 - Unmit. Project Performance'!C32) ->  | BE32: =IF('6 - Unmit. Project Performance'!D32="","",'6 - Unmit. Project Performance'!D32) -> 40148 | BF32: =IF('6 - Unmit. Project Performance'!E32="","",'6 - Unmit. Project Performance'!E32) ->  | BG32: =IF('6 - Unmit. Project Performance'!F32="","",'6 - Unmit. Project Performance'!F32) -> 40512.8 | BH32: =IF('6 - Unmit. Project Performance'!G32="","",'6 - Unmit. Project Performance'!G32) -> 12 | BI32: =IF('6 - Unmit. Project Performance'!H32="","",'6 - Unmit. Project Performance'!H32) -> 40148 | BJ32: =IF('6 - Unmit. Project Performance'!I32="","",'6 - Unmit. Project Performance'!I32) ->  | BK32: =IF('6 - Unmit. Project Performance'!J32="","",'6 - Unmit. Project Performance'!J32) -> 40148 | BL32: =IF('6 - Unmit. Project Performance'!K32="","",'6 - Unmit. Project Performance'!K32) ->  | BM32: =IF('6 - Unmit. Project Performance'!L32="","",'6 - Unmit. Project Performance'!L32) -> 40582.8625 | BN32: =IF('6 - Unmit. Project Performance'!M32="","",'6 - Unmit. Project Performance'!M32) -> 14.3046875 | BO32: =IF('6 - Unmit. Project Performance'!N32="","",'6 - Unmit. Project Performance'!N32) -> 0 | CX32: =IF('11 - Mit. Project Performance'!A31="","",'11 - Mit. Project Performance'!A31) -> ROW/Util/RR Funding Date | CY32: =IF('11 - Mit. Project Performance'!B31="","",'11 - Mit. Project Performance'!B31) -> 40148 | CZ32: =IF('11 - Mit. Project Performance'!C31="","",'11 - Mit. Project Performance'!C31) ->  | DA32: =IF('11 - Mit. Project Performance'!D31="","",'11 - Mit. Project Performance'!D31) -> 40148 | DB32: =IF('11 - Mit. Project Performance'!E31="","",'11 - Mit. Project Performance'!E31) ->  | DC32: =IF('11 - Mit. Project Performance'!F31="","",'11 - Mit. Project Performance'!F31) -> 40956.45 | DD32: =IF('11 - Mit. Project Performance'!G31="","",'11 - Mit. Project Performance'!G31) -> 26.59375 | DE32: =IF('11 - Mit. Project Performance'!H31="","",'11 - Mit. Project Performance'!H31) -> 40148 | DF32: =IF('11 - Mit. Project Performance'!I31="","",'11 - Mit. Project Performance'!I31) ->  | DG32: =IF('11 - Mit. Project Performance'!J31="","",'11 - Mit. Project Performance'!J31) -> 40148 | DH32: =IF('11 - Mit. Project Performance'!K31="","",'11 - Mit. Project Performance'!K31) ->  | DI32: =IF('11 - Mit. Project Performance'!L31="","",'11 - Mit. Project Performance'!L31) -> 40943.625 | DJ32: =IF('11 - Mit. Project Performance'!M31="","",'11 - Mit. Project Performance'!M31) -> 26.171875 | DK32: =IF('11 - Mit. Project Performance'!N33="","",'11 - Mit. Project Performance'!N33) -> 0
S33: Total Unescalated Cost | T33: =IF('1 - Project Structuring'!D99="","",ROUND(SUM('1 - Project Structuring'!D99:D108),1)) ->  | U33: ($M) | AA33: =IF('1 - Project Structuring'!C30="","",'1 - Project Structuring'!C30) -> Construction | AB33: =IF('1 - Project Structuring'!D30="","",'1 - Project Structuring'!D30) -> 16 | AC33: =IF('1 - Project Structuring'!E30="","",'1 - Project Structuring'!E30) -> 40725.6 | AD33: =IF('1 - Project Structuring'!F30="","",'1 - Project Structuring'!F30) -> 41212 | AE33: =IF('1 - Project Structuring'!G30="","",'1 - Project Structuring'!G30) -> 40725.6 | AF33: =IF('1 - Project Structuring'!H30="","",'1 - Project Structuring'!H30) -> 41212 | AG33: =IF('1 - Project Structuring'!I30="","",'1 - Project Structuring'!I30) -> 0 | BB33: =IF('6 - Unmit. Project Performance'!A33="","",'6 - Unmit. Project Performance'!A33) -> Procurement | BC33: =IF('6 - Unmit. Project Performance'!B33="","",'6 - Unmit. Project Performance'!B33) -> 6 | BD33: =IF('6 - Unmit. Project Performance'!C33="","",'6 - Unmit. Project Performance'!C33) -> 40512.8 | BE33: =IF('6 - Unmit. Project Performance'!D33="","",'6 - Unmit. Project Performance'!D33) -> 40695.2 | BF33: =IF('6 - Unmit. Project Performance'!E33="","",'6 - Unmit. Project Performance'!E33) -> 40512.8 | BG33: =IF('6 - Unmit. Project Performance'!F33="","",'6 - Unmit. Project Performance'!F33) -> 40695.2 | BH33: =IF('6 - Unmit. Project Performance'!G33="","",'6 - Unmit. Project Performance'!G33) -> 0 | BI33: =IF('6 - Unmit. Project Performance'!H33="","",'6 - Unmit. Project Performance'!H33) -> 6.2890625 | BJ33: =IF('6 - Unmit. Project Performance'!I33="","",'6 - Unmit. Project Performance'!I33) -> 40557.45 | BK33: =IF('6 - Unmit. Project Performance'!J33="","",'6 - Unmit. Project Performance'!J33) -> 40774.05 | BL33: =IF('6 - Unmit. Project Performance'!K33="","",'6 - Unmit. Project Performance'!K33) -> 40582.8625 | BM33: =IF('6 - Unmit. Project Performance'!L33="","",'6 - Unmit. Project Performance'!L33) -> 40774.05 | BN33: =IF('6 - Unmit. Project Performance'!M33="","",'6 - Unmit. Project Performance'!M33) -> 0 | BO33: =IF('6 - Unmit. Project Performance'!N33="","",'6 - Unmit. Project Performance'!N33) -> 1.010874429 | CX33: =IF('11 - Mit. Project Performance'!A32="","",'11 - Mit. Project Performance'!A32) -> ROW/Util/RR | CY33: =IF('11 - Mit. Project Performance'!B32="","",'11 - Mit. Project Performance'!B32) -> 13.125 | CZ33: =IF('11 - Mit. Project Performance'!C32="","",'11 - Mit. Project Performance'!C32) -> 40557.45 | DA33: =IF('11 - Mit. Project Performance'!D32="","",'11 - Mit. Project Performance'!D32) -> 40956.45 | DB33: =IF('11 - Mit. Project Performance'!E32="","",'11 - Mit. Project Performance'!E32) -> 40557.45 | DC33: =IF('11 - Mit. Project Performance'!F32="","",'11 - Mit. Project Performance'!F32) -> 40956.45 | DD33: =IF('11 - Mit. Project Performance'!G32="","",'11 - Mit. Project Performance'!G32) -> 0 | DE33: =IF('11 - Mit. Project Performance'!H32="","",'11 - Mit. Project Performance'!H32) -> 12.703125 | DF33: =IF('11 - Mit. Project Performance'!I32="","",'11 - Mit. Project Performance'!I32) -> 40557.45 | DG33: =IF('11 - Mit. Project Performance'!J32="","",'11 - Mit. Project Performance'!J32) -> 40943.625 | DH33: =IF('11 - Mit. Project Performance'!K32="","",'11 - Mit. Project Performance'!K32) -> 40557.45 | DI33: =IF('11 - Mit. Project Performance'!L32="","",'11 - Mit. Project Performance'!L32) -> 40943.625 | DJ33: =IF('11 - Mit. Project Performance'!M32="","",'11 - Mit. Project Performance'!M32) -> 0 | DK33: =IF('11 - Mit. Project Performance'!N34="","",'11 - Mit. Project Performance'!N34) -> 1.010874429
S34: Total Escalated Cost | T34: =IF('1 - Project Structuring'!D110="","",ROUND('1 - Project Structuring'!D110,1)) -> 17 | U34: ($M) | AA34: =IF('1 - Project Structuring'!C31="","",'1 - Project Structuring'!C31) -> Operations & Maintenance | AB34: =IF('1 - Project Structuring'!D31="","",'1 - Project Structuring'!D31) -> 600 | AC34: =IF('1 - Project Structuring'!E31="","",'1 - Project Structuring'!E31) -> 41212 | AD34: =IF('1 - Project Structuring'!F31="","",'1 - Project Structuring'!F31) -> 59452 | AE34: =IF('1 - Project Structuring'!G31="","",'1 - Project Structuring'!G31) -> 41212 | AF34: =IF('1 - Project Structuring'!H31="","",'1 - Project Structuring'!H31) -> 59452 | AG34: =IF('1 - Project Structuring'!I31="","",'1 - Project Structuring'!I31) ->  | BB34: =IF('6 - Unmit. Project Performance'!A34="","",'6 - Unmit. Project Performance'!A34) -> Final Design | BC34: =IF('6 - Unmit. Project Performance'!B34="","",'6 - Unmit. Project Performance'!B34) -> 6 | BD34: =IF('6 - Unmit. Project Performance'!C34="","",'6 - Unmit. Project Performance'!C34) -> 40695.2 | BE34: =IF('6 - Unmit. Project Performance'!D34="","",'6 - Unmit. Project Performance'!D34) -> 40877.6 | BF34: =IF('6 - Unmit. Project Performance'!E34="","",'6 - Unmit. Project Performance'!E34) -> 40695.2 | BG34: =IF('6 - Unmit. Project Performance'!F34="","",'6 - Unmit. Project Performance'!F34) -> 41029.6 | BH34: =IF('6 - Unmit. Project Performance'!G34="","",'6 - Unmit. Project Performance'!G34) -> 5 | BI34: =IF('6 - Unmit. Project Performance'!H34="","",'6 - Unmit. Project Performance'!H34) -> 6.75 | BJ34: =IF('6 - Unmit. Project Performance'!I34="","",'6 - Unmit. Project Performance'!I34) -> 40774.05 | BK34: =IF('6 - Unmit. Project Performance'!J34="","",'6 - Unmit. Project Performance'!J34) -> 40979.25 | BL34: =IF('6 - Unmit. Project Performance'!K34="","",'6 - Unmit. Project Performance'!K34) -> 40774.05 | BM34: =IF('6 - Unmit. Project Performance'!L34="","",'6 - Unmit. Project Performance'!L34) -> 41134.4325 | BN34: =IF('6 - Unmit. Project Performance'!M34="","",'6 - Unmit. Project Performance'!M34) -> 5.1046875 | BO34: =IF('6 - Unmit. Project Performance'!N34="","",'6 - Unmit. Project Performance'!N34) -> 0 | CX34: =IF('11 - Mit. Project Performance'!A33="","",'11 - Mit. Project Performance'!A33) -> Construction Funding Date | CY34: =IF('11 - Mit. Project Performance'!B33="","",'11 - Mit. Project Performance'!B33) -> 40148 | CZ34: =IF('11 - Mit. Project Performance'!C33="","",'11 - Mit. Project Performance'!C33) ->  | DA34: =IF('11 - Mit. Project Performance'!D33="","",'11 - Mit. Project Performance'!D33) -> 40148 | DB34: =IF('11 - Mit. Project Performance'!E33="","",'11 - Mit. Project Performance'!E33) ->  | DC34: =IF('11 - Mit. Project Performance'!F33="","",'11 - Mit. Project Performance'!F33) -> 40582.8625 | DD34: =IF('11 - Mit. Project Performance'!G33="","",'11 - Mit. Project Performance'!G33) -> 14.3046875 | DE34: =IF('11 - Mit. Project Performance'!H33="","",'11 - Mit. Project Performance'!H33) -> 40148 | DF34: =IF('11 - Mit. Project Performance'!I33="","",'11 - Mit. Project Performance'!I33) ->  | DG34: =IF('11 - Mit. Project Performance'!J33="","",'11 - Mit. Project Performance'!J33) -> 40148 | DH34: =IF('11 - Mit. Project Performance'!K33="","",'11 - Mit. Project Performance'!K33) ->  | DI34: =IF('11 - Mit. Project Performance'!L33="","",'11 - Mit. Project Performance'!L33) -> 40570.0375 | DJ34: =IF('11 - Mit. Project Performance'!M33="","",'11 - Mit. Project Performance'!M33) -> 13.8828125 | DK34: =IF('11 - Mit. Project Performance'!N35="","",'11 - Mit. Project Performance'!N35) -> 0
S35: Base Construction Completion Date | T35: =IF('1 - Project Structuring'!D111="","",'1 - Project Structuring'!D111) -> 41212 | AA35: =IF('1 - Project Structuring'!C32="","",'1 - Project Structuring'!C32) -> Replacement | AB35: =IF('1 - Project Structuring'!D32="","",'1 - Project Structuring'!D32) -> 0 | AC35: =IF('1 - Project Structuring'!E32="","",'1 - Project Structuring'!E32) -> 59452 | AD35: =IF('1 - Project Structuring'!F32="","",'1 - Project Structuring'!F32) -> 59452 | AE35: =IF('1 - Project Structuring'!G32="","",'1 - Project Structuring'!G32) -> 59452 | AF35: =IF('1 - Project Structuring'!H32="","",'1 - Project Structuring'!H32) -> 59452 | AG35: =IF('1 - Project Structuring'!I32="","",'1 - Project Structuring'!I32) ->  | BB35: =IF('6 - Unmit. Project Performance'!A35="","",'6 - Unmit. Project Performance'!A35) -> Construction | BC35: =IF('6 - Unmit. Project Performance'!B35="","",'6 - Unmit. Project Performance'!B35) -> 16 | BD35: =IF('6 - Unmit. Project Performance'!C35="","",'6 - Unmit. Project Performance'!C35) -> 40725.6 | BE35: =IF('6 - Unmit. Project Performance'!D35="","",'6 - Unmit. Project Performance'!D35) -> 41212 | BF35: =IF('6 - Unmit. Project Performance'!E35="","",'6 - Unmit. Project Performance'!E35) -> 40725.6 | BG35: =IF('6 - Unmit. Project Performance'!F35="","",'6 - Unmit. Project Performance'!F35) -> 41212 | BH35: =IF('6 - Unmit. Project Performance'!G35="","",'6 - Unmit. Project Performance'!G35) -> 0 | BI35: =IF('6 - Unmit. Project Performance'!H35="","",'6 - Unmit. Project Performance'!H35) -> 16.8546875 | BJ35: =IF('6 - Unmit. Project Performance'!I35="","",'6 - Unmit. Project Performance'!I35) -> 40804.45 | BK35: =IF('6 - Unmit. Project Performance'!J35="","",'6 - Unmit. Project Performance'!J35) -> 41316.8325 | BL35: =IF('6 - Unmit. Project Performance'!K35="","",'6 - Unmit. Project Performance'!K35) -> 40804.45 | BM35: =IF('6 - Unmit. Project Performance'!L35="","",'6 - Unmit. Project Performance'!L35) -> 41316.8325 | BN35: =IF('6 - Unmit. Project Performance'!M35="","",'6 - Unmit. Project Performance'!M35) -> 0 | BO35: =IF('6 - Unmit. Project Performance'!N35="","",'6 - Unmit. Project Performance'!N35) -> 0.9095471536 | CX35: =IF('11 - Mit. Project Performance'!A34="","",'11 - Mit. Project Performance'!A34) -> Procurement | CY35: =IF('11 - Mit. Project Performance'!B34="","",'11 - Mit. Project Performance'!B34) -> 6.2890625 | CZ35: =IF('11 - Mit. Project Performance'!C34="","",'11 - Mit. Project Performance'!C34) -> 40557.45 | DA35: =IF('11 - Mit. Project Performance'!D34="","",'11 - Mit. Project Performance'!D34) -> 40774.05 | DB35: =IF('11 - Mit. Project Performance'!E34="","",'11 - Mit. Project Performance'!E34) -> 40582.8625 | DC35: =IF('11 - Mit. Project Performance'!F34="","",'11 - Mit. Project Performance'!F34) -> 40774.05 | DD35: =IF('11 - Mit. Project Performance'!G34="","",'11 - Mit. Project Performance'!G34) -> 0 | DE35: =IF('11 - Mit. Project Performance'!H34="","",'11 - Mit. Project Performance'!H34) -> 6.2890625 | DF35: =IF('11 - Mit. Project Performance'!I34="","",'11 - Mit. Project Performance'!I34) -> 40557.45 | DG35: =IF('11 - Mit. Project Performance'!J34="","",'11 - Mit. Project Performance'!J34) -> 40761.225 | DH35: =IF('11 - Mit. Project Performance'!K34="","",'11 - Mit. Project Performance'!K34) -> 40570.0375 | DI35: =IF('11 - Mit. Project Performance'!L34="","",'11 - Mit. Project Performance'!L34) -> 40761.225 | DJ35: =IF('11 - Mit. Project Performance'!M34="","",'11 - Mit. Project Performance'!M34) -> 0 | DK35: =IF('11 - Mit. Project Performance'!N36="","",'11 - Mit. Project Performance'!N36) -> 0.2014382349
S36: Months to Construction Completion | T36: =IF('1 - Project Structuring'!D112="","",'1 - Project Structuring'!D112) -> 35 | BB36: =IF('6 - Unmit. Project Performance'!A36="","",'6 - Unmit. Project Performance'!A36) -> Operations & Maintenance | BC36: =IF('6 - Unmit. Project Performance'!B36="","",'6 - Unmit. Project Performance'!B36) -> 600 | BD36: =IF('6 - Unmit. Project Performance'!C36="","",'6 - Unmit. Project Performance'!C36) -> 41212 | BE36: =IF('6 - Unmit. Project Performance'!D36="","",'6 - Unmit. Project Performance'!D36) -> 59452 | BI36: =IF('6 - Unmit. Project Performance'!H36="","",'6 - Unmit. Project Performance'!H36) -> 600 | BO36: =IF('6 - Unmit. Project Performance'!N36="","",'6 - Unmit. Project Performance'!N36) ->  | CX36: =IF('11 - Mit. Project Performance'!A35="","",'11 - Mit. Project Performance'!A35) -> Final Design | CY36: =IF('11 - Mit. Project Performance'!B35="","",'11 - Mit. Project Performance'!B35) -> 6.75 | CZ36: =IF('11 - Mit. Project Performance'!C35="","",'11 - Mit. Project Performance'!C35) -> 40774.05 | DA36: =IF('11 - Mit. Project Performance'!D35="","",'11 - Mit. Project Performance'!D35) -> 40979.25 | DB36: =IF('11 - Mit. Project Performance'!E35="","",'11 - Mit. Project Performance'!E35) -> 40774.05 | DC36: =IF('11 - Mit. Project Performance'!F35="","",'11 - Mit. Project Performance'!F35) -> 41134.4325 | DD36: =IF('11 - Mit. Project Performance'!G35="","",'11 - Mit. Project Performance'!G35) -> 5.1046875 | DE36: =IF('11 - Mit. Project Performance'!H35="","",'11 - Mit. Project Performance'!H35) -> 6.75 | DF36: =IF('11 - Mit. Project Performance'!I35="","",'11 - Mit. Project Performance'!I35) -> 40761.225 | DG36: =IF('11 - Mit. Project Performance'!J35="","",'11 - Mit. Project Performance'!J35) -> 40966.425 | DH36: =IF('11 - Mit. Project Performance'!K35="","",'11 - Mit. Project Performance'!K35) -> 40761.225 | DI36: =IF('11 - Mit. Project Performance'!L35="","",'11 - Mit. Project Performance'!L35) -> 41107.0725 | DJ36: =IF('11 - Mit. Project Performance'!M35="","",'11 - Mit. Project Performance'!M35) -> 4.6265625 | DK36: =IF('11 - Mit. Project Performance'!N37="","",'11 - Mit. Project Performance'!N37) -> 
S37: Dusruption Cost | T37: =IF('1 - Project Structuring'!D113="","",ROUND('1 - Project Structuring'!D113,1)) -> 18.7 | U37: ($M) | BB37: =IF('6 - Unmit. Project Performance'!A37="","",'6 - Unmit. Project Performance'!A37) -> Replacement | BC37: =IF('6 - Unmit. Project Performance'!B37="","",'6 - Unmit. Project Performance'!B37) -> 0 | BD37: =IF('6 - Unmit. Project Performance'!C37="","",'6 - Unmit. Project Performance'!C37) -> 59452 | BI37: =IF('6 - Unmit. Project Performance'!H37="","",'6 - Unmit. Project Performance'!H37) -> 0 | BO37: =IF('6 - Unmit. Project Performance'!N37="","",'6 - Unmit. Project Performance'!N37) ->  | CX37: =IF('11 - Mit. Project Performance'!A36="","",'11 - Mit. Project Performance'!A36) -> Construction | CY37: =IF('11 - Mit. Project Performance'!B36="","",'11 - Mit. Project Performance'!B36) -> 16.8546875 | CZ37: =IF('11 - Mit. Project Performance'!C36="","",'11 - Mit. Project Performance'!C36) -> 40804.45 | DA37: =IF('11 - Mit. Project Performance'!D36="","",'11 - Mit. Project Performance'!D36) -> 41316.8325 | DB37: =IF('11 - Mit. Project Performance'!E36="","",'11 - Mit. Project Performance'!E36) -> 40804.45 | DC37: =IF('11 - Mit. Project Performance'!F36="","",'11 - Mit. Project Performance'!F36) -> 41316.8325 | DD37: =IF('11 - Mit. Project Performance'!G36="","",'11 - Mit. Project Performance'!G36) -> 0 | DE37: =IF('11 - Mit. Project Performance'!H36="","",'11 - Mit. Project Performance'!H36) -> 16.3765625 | DF37: =IF('11 - Mit. Project Performance'!I36="","",'11 - Mit. Project Performance'!I36) -> 40791.625 | DG37: =IF('11 - Mit. Project Performance'!J36="","",'11 - Mit. Project Performance'!J36) -> 41289.4725 | DH37: =IF('11 - Mit. Project Performance'!K36="","",'11 - Mit. Project Performance'!K36) -> 40791.625 | DI37: =IF('11 - Mit. Project Performance'!L36="","",'11 - Mit. Project Performance'!L36) -> 41289.4725 | DJ37: =IF('11 - Mit. Project Performance'!M36="","",'11 - Mit. Project Performance'!M36) -> 0 | DK37: =IF('11 - Mit. Project Performance'!N38="","",'11 - Mit. Project Performance'!N38) -> 
BB38: =IF('6 - Unmit. Project Performance'!A38="","",'6 - Unmit. Project Performance'!A38) -> Project Start Date | BC38: =IF('6 - Unmit. Project Performance'!B38="","",'6 - Unmit. Project Performance'!B38) -> 40148 | BI38: =IF('6 - Unmit. Project Performance'!H38="","",'6 - Unmit. Project Performance'!H38) -> 40148 | BO38: =IF('6 - Unmit. Project Performance'!N38="","",'6 - Unmit. Project Performance'!N38) -> 6.740825149 | CX38: =IF('11 - Mit. Project Performance'!A37="","",'11 - Mit. Project Performance'!A37) -> Operations & Maintenance | CY38: =IF('11 - Mit. Project Performance'!B37="","",'11 - Mit. Project Performance'!B37) -> 600 | CZ38: =IF('11 - Mit. Project Performance'!C37="","",'11 - Mit. Project Performance'!C37) -> 41316.8325 | DA38: =IF('11 - Mit. Project Performance'!D37="","",'11 - Mit. Project Performance'!D37) -> 59556.8325 | DE38: =IF('11 - Mit. Project Performance'!H37="","",'11 - Mit. Project Performance'!H37) -> 600 | DK38: =IF('11 - Mit. Project Performance'!N39="","",'11 - Mit. Project Performance'!N39) -> 5.324311338
BB39: =IF('6 - Unmit. Project Performance'!A39="","",'6 - Unmit. Project Performance'!A39) -> Construction Finish Date | BC39: =IF('6 - Unmit. Project Performance'!B39="","",'6 - Unmit. Project Performance'!B39) -> 41212 | BI39: =IF('6 - Unmit. Project Performance'!H39="","",'6 - Unmit. Project Performance'!H39) -> 41316.8325 | BO39: =IF('6 - Unmit. Project Performance'!N39="","",'6 - Unmit. Project Performance'!N39) ->  | CX39: =IF('11 - Mit. Project Performance'!A38="","",'11 - Mit. Project Performance'!A38) -> Replacement | CY39: =IF('11 - Mit. Project Performance'!B38="","",'11 - Mit. Project Performance'!B38) -> 0 | CZ39: =IF('11 - Mit. Project Performance'!C38="","",'11 - Mit. Project Performance'!C38) -> 59556.8325 | DE39: =IF('11 - Mit. Project Performance'!H38="","",'11 - Mit. Project Performance'!H38) -> 0 | DK39: =IF('11 - Mit. Project Performance'!N40="","",'11 - Mit. Project Performance'!N40) -> 
BB40: =IF('6 - Unmit. Project Performance'!A40="","",'6 - Unmit. Project Performance'!A40) -> Project Duration (months) | BC40: =IF('6 - Unmit. Project Performance'!B40="","",'6 - Unmit. Project Performance'!B40) -> 35 | BI40: =IF('6 - Unmit. Project Performance'!H40="","",'6 - Unmit. Project Performance'!H40) -> 38.4484375 | BO40: =IF('6 - Unmit. Project Performance'!N40="","",'6 - Unmit. Project Performance'!N40) ->  | CX40: =IF('11 - Mit. Project Performance'!A39="","",'11 - Mit. Project Performance'!A39) -> Project Start Date | CY40: =IF('11 - Mit. Project Performance'!B39="","",'11 - Mit. Project Performance'!B39) -> 40148 | DE40: =IF('11 - Mit. Project Performance'!H39="","",'11 - Mit. Project Performance'!H39) -> 40148 | DK40: =IF('11 - Mit. Project Performance'!N41="","",'11 - Mit. Project Performance'!N41) -> 
CX41: =IF('11 - Mit. Project Performance'!A40="","",'11 - Mit. Project Performance'!A40) -> Construction Finish Date | CY41: =IF('11 - Mit. Project Performance'!B40="","",'11 - Mit. Project Performance'!B40) -> 41316.8325 | DE41: =IF('11 - Mit. Project Performance'!H40="","",'11 - Mit. Project Performance'!H40) -> 41289.4725 | DK41: =IF('11 - Mit. Project Performance'!N42="","",'11 - Mit. Project Performance'!N42) -> 
AB42: Base | AC42: Disruption | AT42: UNMITIGATED RISK REGISTER | CX42: =IF('11 - Mit. Project Performance'!A41="","",'11 - Mit. Project Performance'!A41) -> Project Duration (months) | CY42: =IF('11 - Mit. Project Performance'!B41="","",'11 - Mit. Project Performance'!B41) -> 38.4484375 | DE42: =IF('11 - Mit. Project Performance'!H41="","",'11 - Mit. Project Performance'!H41) -> 37.5484375 | DK42: =IF('11 - Mit. Project Performance'!N43="","",'11 - Mit. Project Performance'!N43) -> 
AA43: ='1 - Project Structuring'!C83 -> Project Phase | AB43: ='1 - Project Structuring'!D83 ->  | AC43: ='1 - Project Structuring'!E83 -> Disruption | AT43: Risk Label | AU43: Risk Description | AX43: Risk Type | AY43: Mean Severity (YOE $M) | AZ43: Percent of Total Severity | BA43: Mean Severity Ranking
AB44: ='1 - Project Structuring'!D84 -> M Veh-Hours/Day | AC44: ='1 - Project Structuring'!E84 -> No. of Days | AD44: ='1 - Project Structuring'!F84 -> M-Hrs | AE44: ='1 - Project Structuring'!G84 -> Cost ($M)
AA45: ='1 - Project Structuring'!C85 -> Planning | AB45: =IF('1 - Project Structuring'!D85="","",'1 - Project Structuring'!D85) ->  | AC45: =IF('1 - Project Structuring'!E85="","",'1 - Project Structuring'!E85) ->  | AD45: =IF('1 - Project Structuring'!F85="","",'1 - Project Structuring'!F85) -> 0 | AE45: =IF('1 - Project Structuring'!G85="","",'1 - Project Structuring'!G85) -> 0
AA46: ='1 - Project Structuring'!C86 -> Scoping | AB46: =IF('1 - Project Structuring'!D86="","",'1 - Project Structuring'!D86) ->  | AC46: =IF('1 - Project Structuring'!E86="","",'1 - Project Structuring'!E86) ->  | AD46: =IF('1 - Project Structuring'!F86="","",'1 - Project Structuring'!F86) -> 0 | AE46: =IF('1 - Project Structuring'!G86="","",'1 - Project Structuring'!G86) -> 0
AA47: ='1 - Project Structuring'!C87 -> Prelim Design/Environmental Process | AB47: =IF('1 - Project Structuring'!D87="","",'1 - Project Structuring'!D87) ->  | AC47: =IF('1 - Project Structuring'!E87="","",'1 - Project Structuring'!E87) ->  | AD47: =IF('1 - Project Structuring'!F87="","",'1 - Project Structuring'!F87) -> 0 | AE47: =IF('1 - Project Structuring'!G87="","",'1 - Project Structuring'!G87) -> 0 | AT47: =IF('5 - Unmit. Risk Register'!A5="","",'5 - Unmit. Risk Register'!A5) -> SC-6 | AU47: =IF('5 - Unmit. Risk Register'!B5="","",'5 - Unmit. Risk Register'!B5) -> Provide new lighting throughout project. | AX47: =IF('5 - Unmit. Risk Register'!C5="","",'5 - Unmit. Risk Register'!C5) -> Threat | AY47: =IF('5 - Unmit. Risk Register'!H5="","",'5 - Unmit. Risk Register'!H5) -> 0.6171633936 | AZ47: =IF('5 - Unmit. Risk Register'!I5="","",'5 - Unmit. Risk Register'!I5) -> 0.08214469032 | BA47: =IF('5 - Unmit. Risk Register'!J5="","",'5 - Unmit. Risk Register'!J5) -> 1
AA48: ='1 - Project Structuring'!C88 -> Environmental Permits | AB48: =IF('1 - Project Structuring'!D88="","",'1 - Project Structuring'!D88) ->  | AC48: =IF('1 - Project Structuring'!E88="","",'1 - Project Structuring'!E88) ->  | AD48: =IF('1 - Project Structuring'!F88="","",'1 - Project Structuring'!F88) -> 0 | AE48: =IF('1 - Project Structuring'!G88="","",'1 - Project Structuring'!G88) -> 0 | AT48: =IF('5 - Unmit. Risk Register'!A6="","",'5 - Unmit. Risk Register'!A6) -> PR-1 | AU48: =IF('5 - Unmit. Risk Register'!B6="","",'5 - Unmit. Risk Register'!B6) -> Uncertainty in construction-cost inflation rate | AX48: =IF('5 - Unmit. Risk Register'!C6="","",'5 - Unmit. Risk Register'!C6) -> Threat | AY48: =IF('5 - Unmit. Risk Register'!H6="","",'5 - Unmit. Risk Register'!H6) -> 0.6171633936 | AZ48: =IF('5 - Unmit. Risk Register'!I6="","",'5 - Unmit. Risk Register'!I6) -> 0.08214469032 | BA48: =IF('5 - Unmit. Risk Register'!J6="","",'5 - Unmit. Risk Register'!J6) -> 2
AA49: ='1 - Project Structuring'!C89 -> ROW/Util/RR | AB49: =IF('1 - Project Structuring'!D89="","",'1 - Project Structuring'!D89) -> 0.02 | AC49: =IF('1 - Project Structuring'!E89="","",'1 - Project Structuring'!E89) -> 10 | AD49: =IF('1 - Project Structuring'!F89="","",'1 - Project Structuring'!F89) -> 0.2 | AE49: =IF('1 - Project Structuring'!G89="","",'1 - Project Structuring'!G89) -> 2 | AT49: =IF('5 - Unmit. Risk Register'!A7="","",'5 - Unmit. Risk Register'!A7) -> RR-1 | AU49: =IF('5 - Unmit. Risk Register'!B7="","",'5 - Unmit. Risk Register'!B7) -> Uncertainty in ROW inflation rate | AX49: =IF('5 - Unmit. Risk Register'!C7="","",'5 - Unmit. Risk Register'!C7) -> Threat | AY49: =IF('5 - Unmit. Risk Register'!H7="","",'5 - Unmit. Risk Register'!H7) -> 0.6036484666 | AZ49: =IF('5 - Unmit. Risk Register'!I7="","",'5 - Unmit. Risk Register'!I7) -> 0.08034584823 | BA49: =IF('5 - Unmit. Risk Register'!J7="","",'5 - Unmit. Risk Register'!J7) -> 3
AA50: ='1 - Project Structuring'!C90 -> Procurement | AB50: =IF('1 - Project Structuring'!D90="","",'1 - Project Structuring'!D90) ->  | AC50: =IF('1 - Project Structuring'!E90="","",'1 - Project Structuring'!E90) ->  | AD50: =IF('1 - Project Structuring'!F90="","",'1 - Project Structuring'!F90) -> 0 | AE50: =IF('1 - Project Structuring'!G90="","",'1 - Project Structuring'!G90) -> 0 | AT50: =IF('5 - Unmit. Risk Register'!A8="","",'5 - Unmit. Risk Register'!A8) -> RR-3 | AX50: =IF('5 - Unmit. Risk Register'!C8="","",'5 - Unmit. Risk Register'!C8) -> Threat | AY50: =IF('5 - Unmit. Risk Register'!H8="","",'5 - Unmit. Risk Register'!H8) -> 0.6036484666 | AZ50: =IF('5 - Unmit. Risk Register'!I8="","",'5 - Unmit. Risk Register'!I8) -> 0.08034584823 | BA50: =IF('5 - Unmit. Risk Register'!J8="","",'5 - Unmit. Risk Register'!J8) -> 4
AA51: ='1 - Project Structuring'!C91 -> Final Design | AB51: =IF('1 - Project Structuring'!D91="","",'1 - Project Structuring'!D91) ->  | AC51: =IF('1 - Project Structuring'!E91="","",'1 - Project Structuring'!E91) ->  | AD51: =IF('1 - Project Structuring'!F91="","",'1 - Project Structuring'!F91) -> 0 | AE51: =IF('1 - Project Structuring'!G91="","",'1 - Project Structuring'!G91) -> 0 | AT51: =IF('5 - Unmit. Risk Register'!A9="","",'5 - Unmit. Risk Register'!A9) -> RR-8 | AU51: =IF('5 - Unmit. Risk Register'!B9="","",'5 - Unmit. Risk Register'!B9) -> QDOT helps City pay for water and sewer-line relocation | AX51: =IF('5 - Unmit. Risk Register'!C9="","",'5 - Unmit. Risk Register'!C9) -> Threat | AY51: =IF('5 - Unmit. Risk Register'!H9="","",'5 - Unmit. Risk Register'!H9) -> 0.6036484666 | AZ51: =IF('5 - Unmit. Risk Register'!I9="","",'5 - Unmit. Risk Register'!I9) -> 0.08034584823 | BA51: =IF('5 - Unmit. Risk Register'!J9="","",'5 - Unmit. Risk Register'!J9) -> 5
AA52: ='1 - Project Structuring'!C92 -> Construction | AB52: =IF('1 - Project Structuring'!D92="","",'1 - Project Structuring'!D92) -> 0.05 | AC52: =IF('1 - Project Structuring'!E92="","",'1 - Project Structuring'!E92) -> 10 | AD52: =IF('1 - Project Structuring'!F92="","",'1 - Project Structuring'!F92) -> 0.5 | AE52: =IF('1 - Project Structuring'!G92="","",'1 - Project Structuring'!G92) -> 5 | AT52: =IF('5 - Unmit. Risk Register'!A10="","",'5 - Unmit. Risk Register'!A10) -> RR-2 | AU52: =IF('5 - Unmit. Risk Register'!B10="","",'5 - Unmit. Risk Register'!B10) -> Accelerating pace of development in interchange area | AX52: =IF('5 - Unmit. Risk Register'!C10="","",'5 - Unmit. Risk Register'!C10) -> Threat | AY52: =IF('5 - Unmit. Risk Register'!H10="","",'5 - Unmit. Risk Register'!H10) -> 0.5120507325 | AZ52: =IF('5 - Unmit. Risk Register'!I10="","",'5 - Unmit. Risk Register'!I10) -> 0.0681541538 | BA52: =IF('5 - Unmit. Risk Register'!J10="","",'5 - Unmit. Risk Register'!J10) -> 6
AA53: ='1 - Project Structuring'!C93 -> Operations & Maintenance | AB53: =IF('1 - Project Structuring'!D93="","",'1 - Project Structuring'!D93) ->  | AC53: =IF('1 - Project Structuring'!E93="","",'1 - Project Structuring'!E93) ->  | AD53: =IF('1 - Project Structuring'!F93="","",'1 - Project Structuring'!F93) -> 1.4 | AE53: =IF('1 - Project Structuring'!G93="","",'1 - Project Structuring'!G93) -> 14 | AT53: =IF('5 - Unmit. Risk Register'!A11="","",'5 - Unmit. Risk Register'!A11) -> CR-2 | AU53: =IF('5 - Unmit. Risk Register'!B11="","",'5 - Unmit. Risk Register'!B11) -> Additional Maintenance of Traffic required | AX53: =IF('5 - Unmit. Risk Register'!C11="","",'5 - Unmit. Risk Register'!C11) -> Threat | AY53: =IF('5 - Unmit. Risk Register'!H11="","",'5 - Unmit. Risk Register'!H11) -> 0.5063097088 | AZ53: =IF('5 - Unmit. Risk Register'!I11="","",'5 - Unmit. Risk Register'!I11) -> 0.06739002129 | BA53: =IF('5 - Unmit. Risk Register'!J11="","",'5 - Unmit. Risk Register'!J11) -> 7
AA54: ='1 - Project Structuring'!C94 -> Replacement | AB54: =IF('1 - Project Structuring'!D94="","",'1 - Project Structuring'!D94) ->  | AC54: =IF('1 - Project Structuring'!E94="","",'1 - Project Structuring'!E94) ->  | AD54: =IF('1 - Project Structuring'!F94="","",'1 - Project Structuring'!F94) -> 0.7 | AE54: =IF('1 - Project Structuring'!G94="","",'1 - Project Structuring'!G94) -> 7 | AT54: =IF('5 - Unmit. Risk Register'!A12="","",'5 - Unmit. Risk Register'!A12) -> CR-4 | AU54: =IF('5 - Unmit. Risk Register'!B12="","",'5 - Unmit. Risk Register'!B12) -> Unable to construct interchange embankments as rapidly as assumed | AX54: =IF('5 - Unmit. Risk Register'!C12="","",'5 - Unmit. Risk Register'!C12) -> Threat | AY54: =IF('5 - Unmit. Risk Register'!H12="","",'5 - Unmit. Risk Register'!H12) -> 0.3915096253 | AZ54: =IF('5 - Unmit. Risk Register'!I12="","",'5 - Unmit. Risk Register'!I12) -> 0.05211008504 | BA54: =IF('5 - Unmit. Risk Register'!J12="","",'5 - Unmit. Risk Register'!J12) -> 8
AA55: ='1 - Project Structuring'!C95 -> Total Disruption through OMR | AB55: =IF('1 - Project Structuring'!D95="","",'1 - Project Structuring'!D95) ->  | AC55: =IF('1 - Project Structuring'!E95="","",'1 - Project Structuring'!E95) ->  | AD55: =IF('1 - Project Structuring'!F95="","",'1 - Project Structuring'!F95) -> 2.8 | AE55: =IF('1 - Project Structuring'!G95="","",'1 - Project Structuring'!G95) -> 28 | AT55: =IF('5 - Unmit. Risk Register'!A13="","",'5 - Unmit. Risk Register'!A13) -> PD-13 | AU55: =IF('5 - Unmit. Risk Register'!B13="","",'5 - Unmit. Risk Register'!B13) -> Change in environmental documentation. | AX55: =IF('5 - Unmit. Risk Register'!C13="","",'5 - Unmit. Risk Register'!C13) -> Threat | AY55: =IF('5 - Unmit. Risk Register'!H13="","",'5 - Unmit. Risk Register'!H13) -> 0.3794902688 | AZ55: =IF('5 - Unmit. Risk Register'!I13="","",'5 - Unmit. Risk Register'!I13) -> 0.05051030397 | BA55: =IF('5 - Unmit. Risk Register'!J13="","",'5 - Unmit. Risk Register'!J13) -> 9
AT56: =IF('5 - Unmit. Risk Register'!A14="","",'5 - Unmit. Risk Register'!A14) -> PR-2 | AU56: =IF('5 - Unmit. Risk Register'!B14="","",'5 - Unmit. Risk Register'!B14) -> Uncertain Design/Build contracting market conditions at time of bid | AX56: =IF('5 - Unmit. Risk Register'!C14="","",'5 - Unmit. Risk Register'!C14) -> Threat | AY56: =IF('5 - Unmit. Risk Register'!H14="","",'5 - Unmit. Risk Register'!H14) -> 0.3753535137 | AZ56: =IF('5 - Unmit. Risk Register'!I14="","",'5 - Unmit. Risk Register'!I14) -> 0.04995970025 | BA56: =IF('5 - Unmit. Risk Register'!J14="","",'5 - Unmit. Risk Register'!J14) -> 10
AT57: =IF('5 - Unmit. Risk Register'!A15="","",'5 - Unmit. Risk Register'!A15) -> PD-11 | AU57: =IF('5 - Unmit. Risk Register'!B15="","",'5 - Unmit. Risk Register'!B15) -> Cannot use City sewer system for project runoff (or City charges for use). | AX57: =IF('5 - Unmit. Risk Register'!C15="","",'5 - Unmit. Risk Register'!C15) -> Threat | AY57: =IF('5 - Unmit. Risk Register'!H15="","",'5 - Unmit. Risk Register'!H15) -> 0.3749276312 | AZ57: =IF('5 - Unmit. Risk Register'!I15="","",'5 - Unmit. Risk Register'!I15) -> 0.04990301511 | BA57: =IF('5 - Unmit. Risk Register'!J15="","",'5 - Unmit. Risk Register'!J15) -> 11
AT58: =IF('5 - Unmit. Risk Register'!A16="","",'5 - Unmit. Risk Register'!A16) -> CR-3 | AU58: =IF('5 - Unmit. Risk Register'!B16="","",'5 - Unmit. Risk Register'!B16) -> Problems with planned accelerated bridge construction (ABC) technique | AX58: =IF('5 - Unmit. Risk Register'!C16="","",'5 - Unmit. Risk Register'!C16) -> Threat | AY58: =IF('5 - Unmit. Risk Register'!H16="","",'5 - Unmit. Risk Register'!H16) -> 0.3337237297 | AZ58: =IF('5 - Unmit. Risk Register'!I16="","",'5 - Unmit. Risk Register'!I16) -> 0.04441875962 | BA58: =IF('5 - Unmit. Risk Register'!J16="","",'5 - Unmit. Risk Register'!J16) -> 12
AT59: =IF('5 - Unmit. Risk Register'!A17="","",'5 - Unmit. Risk Register'!A17) -> PD-12 | AU59: =IF('5 - Unmit. Risk Register'!B17="","",'5 - Unmit. Risk Register'!B17) -> Structures impacted by Main Street realignment are eligible for Historic Register. | AX59: =IF('5 - Unmit. Risk Register'!C17="","",'5 - Unmit. Risk Register'!C17) -> Threat | AY59: =IF('5 - Unmit. Risk Register'!H17="","",'5 - Unmit. Risk Register'!H17) -> 0.2131648826 | AZ59: =IF('5 - Unmit. Risk Register'!I17="","",'5 - Unmit. Risk Register'!I17) -> 0.02837232968 | BA59: =IF('5 - Unmit. Risk Register'!J17="","",'5 - Unmit. Risk Register'!J17) -> 13
AT60: =IF('5 - Unmit. Risk Register'!A18="","",'5 - Unmit. Risk Register'!A18) -> PD-14 | AU60: =IF('5 - Unmit. Risk Register'!B18="","",'5 - Unmit. Risk Register'!B18) -> Delays completing environmental documentation. | AX60: =IF('5 - Unmit. Risk Register'!C18="","",'5 - Unmit. Risk Register'!C18) -> Threat | AY60: =IF('5 - Unmit. Risk Register'!H18="","",'5 - Unmit. Risk Register'!H18) -> 0.1844122722 | AZ60: =IF('5 - Unmit. Risk Register'!I18="","",'5 - Unmit. Risk Register'!I18) -> 0.02454534593 | BA60: =IF('5 - Unmit. Risk Register'!J18="","",'5 - Unmit. Risk Register'!J18) -> 14
AT61: =IF('5 - Unmit. Risk Register'!A19="","",'5 - Unmit. Risk Register'!A19) -> PD-4 | AU61: =IF('5 - Unmit. Risk Register'!B19="","",'5 - Unmit. Risk Register'!B19) -> Ground improvement required in interchange area. | AX61: =IF('5 - Unmit. Risk Register'!C19="","",'5 - Unmit. Risk Register'!C19) -> Threat | AY61: =IF('5 - Unmit. Risk Register'!H19="","",'5 - Unmit. Risk Register'!H19) -> 0.1693302015 | AZ61: =IF('5 - Unmit. Risk Register'!I19="","",'5 - Unmit. Risk Register'!I19) -> 0.02253791639 | BA61: =IF('5 - Unmit. Risk Register'!J19="","",'5 - Unmit. Risk Register'!J19) -> 15
AT62: =IF('5 - Unmit. Risk Register'!A20="","",'5 - Unmit. Risk Register'!A20) -> SC-3 | AU62: =IF('5 - Unmit. Risk Register'!B20="","",'5 - Unmit. Risk Register'!B20) -> Additional local improvements required. | AX62: =IF('5 - Unmit. Risk Register'!C20="","",'5 - Unmit. Risk Register'!C20) -> Threat | AY62: =IF('5 - Unmit. Risk Register'!H20="","",'5 - Unmit. Risk Register'!H20) -> 0.158282161 | AZ62: =IF('5 - Unmit. Risk Register'!I20="","",'5 - Unmit. Risk Register'!I20) -> 0.02106741785 | BA62: =IF('5 - Unmit. Risk Register'!J20="","",'5 - Unmit. Risk Register'!J20) -> 16
AT63: =IF('5 - Unmit. Risk Register'!A21="","",'5 - Unmit. Risk Register'!A21) -> SC-5 | AU63: =IF('5 - Unmit. Risk Register'!B21="","",'5 - Unmit. Risk Register'!B21) -> Replace culvert over Wandering Creek. | AX63: =IF('5 - Unmit. Risk Register'!C21="","",'5 - Unmit. Risk Register'!C21) -> Threat | AY63: =IF('5 - Unmit. Risk Register'!H21="","",'5 - Unmit. Risk Register'!H21) -> 0.1122115261 | AZ63: =IF('5 - Unmit. Risk Register'!I21="","",'5 - Unmit. Risk Register'!I21) -> 0.01493539824 | BA63: =IF('5 - Unmit. Risk Register'!J21="","",'5 - Unmit. Risk Register'!J21) -> 17
AT64: =IF('5 - Unmit. Risk Register'!A22="","",'5 - Unmit. Risk Register'!A22) -> PD-16 | AU64: =IF('5 - Unmit. Risk Register'!B22="","",'5 - Unmit. Risk Register'!B22) -> Additional wetland mitigation required for planned alignment. | AX64: =IF('5 - Unmit. Risk Register'!C22="","",'5 - Unmit. Risk Register'!C22) -> Threat | AY64: =IF('5 - Unmit. Risk Register'!H22="","",'5 - Unmit. Risk Register'!H22) -> 0.1122115261 | AZ64: =IF('5 - Unmit. Risk Register'!I22="","",'5 - Unmit. Risk Register'!I22) -> 0.01493539824 | BA64: =IF('5 - Unmit. Risk Register'!J22="","",'5 - Unmit. Risk Register'!J22) -> 18
AT65: =IF('5 - Unmit. Risk Register'!A23="","",'5 - Unmit. Risk Register'!A23) -> RR-7 | AU65: =IF('5 - Unmit. Risk Register'!B23="","",'5 - Unmit. Risk Register'!B23) -> Telecom utility wants a cost-sharing agreement | AX65: =IF('5 - Unmit. Risk Register'!C23="","",'5 - Unmit. Risk Register'!C23) -> Threat | AY65: =IF('5 - Unmit. Risk Register'!H23="","",'5 - Unmit. Risk Register'!H23) -> 0.1097542667 | AZ65: =IF('5 - Unmit. Risk Register'!I23="","",'5 - Unmit. Risk Register'!I23) -> 0.01460833604 | BA65: =IF('5 - Unmit. Risk Register'!J23="","",'5 - Unmit. Risk Register'!J23) -> 19
AT66: =IF('5 - Unmit. Risk Register'!A24="","",'5 - Unmit. Risk Register'!A24) -> PD-5 | AU66: =IF('5 - Unmit. Risk Register'!B24="","",'5 - Unmit. Risk Register'!B24) -> Shoulders required on US-555. | AX66: =IF('5 - Unmit. Risk Register'!C24="","",'5 - Unmit. Risk Register'!C24) -> Threat | AY66: =IF('5 - Unmit. Risk Register'!H24="","",'5 - Unmit. Risk Register'!H24) -> 0.09804962471 | AZ66: =IF('5 - Unmit. Risk Register'!I24="","",'5 - Unmit. Risk Register'!I24) -> 0.0130504436 | BA66: =IF('5 - Unmit. Risk Register'!J24="","",'5 - Unmit. Risk Register'!J24) -> 20
AT67: =IF('5 - Unmit. Risk Register'!A25="","",'5 - Unmit. Risk Register'!A25) -> PD-6 | AU67: =IF('5 - Unmit. Risk Register'!B25="","",'5 - Unmit. Risk Register'!B25) -> Shoulders required on SH-111. | AX67: =IF('5 - Unmit. Risk Register'!C25="","",'5 - Unmit. Risk Register'!C25) -> Threat | AY67: =IF('5 - Unmit. Risk Register'!H25="","",'5 - Unmit. Risk Register'!H25) -> 0.09804962471 | AZ67: =IF('5 - Unmit. Risk Register'!I25="","",'5 - Unmit. Risk Register'!I25) -> 0.0130504436 | BA67: =IF('5 - Unmit. Risk Register'!J25="","",'5 - Unmit. Risk Register'!J25) -> 21
AT68: =IF('5 - Unmit. Risk Register'!A26="","",'5 - Unmit. Risk Register'!A26) -> CR-5 | AU68: =IF('5 - Unmit. Risk Register'!B26="","",'5 - Unmit. Risk Register'!B26) -> Difficult foundation installation | AX68: =IF('5 - Unmit. Risk Register'!C26="","",'5 - Unmit. Risk Register'!C26) -> Threat | AY68: =IF('5 - Unmit. Risk Register'!H26="","",'5 - Unmit. Risk Register'!H26) -> 0.07580259964 | AZ68: =IF('5 - Unmit. Risk Register'!I26="","",'5 - Unmit. Risk Register'!I26) -> 0.01008935581 | BA68: =IF('5 - Unmit. Risk Register'!J26="","",'5 - Unmit. Risk Register'!J26) -> 22
AT69: =IF('5 - Unmit. Risk Register'!A27="","",'5 - Unmit. Risk Register'!A27) -> EP-2 | AU69: =IF('5 - Unmit. Risk Register'!B27="","",'5 - Unmit. Risk Register'!B27) -> Delay obtaining the 404 permit | AX69: =IF('5 - Unmit. Risk Register'!C27="","",'5 - Unmit. Risk Register'!C27) -> Threat | AY69: =IF('5 - Unmit. Risk Register'!H27="","",'5 - Unmit. Risk Register'!H27) -> 0.07345163098 | AZ69: =IF('5 - Unmit. Risk Register'!I27="","",'5 - Unmit. Risk Register'!I27) -> 0.00977644096 | BA69: =IF('5 - Unmit. Risk Register'!J27="","",'5 - Unmit. Risk Register'!J27) -> 23
AT70: =IF('5 - Unmit. Risk Register'!A28="","",'5 - Unmit. Risk Register'!A28) -> RR-6 | AU70: =IF('5 - Unmit. Risk Register'!B28="","",'5 - Unmit. Risk Register'!B28) -> Other delays to ROW planning | AX70: =IF('5 - Unmit. Risk Register'!C28="","",'5 - Unmit. Risk Register'!C28) -> Threat | AY70: =IF('5 - Unmit. Risk Register'!H28="","",'5 - Unmit. Risk Register'!H28) -> 0.04551272401 | AZ70: =IF('5 - Unmit. Risk Register'!I28="","",'5 - Unmit. Risk Register'!I28) -> 0.006057761458 | BA70: =IF('5 - Unmit. Risk Register'!J28="","",'5 - Unmit. Risk Register'!J28) -> 24
AT71: =IF('5 - Unmit. Risk Register'!A29="","",'5 - Unmit. Risk Register'!A29) -> PD-1 | AU71: =IF('5 - Unmit. Risk Register'!B29="","",'5 - Unmit. Risk Register'!B29) -> Shift alignment of US 555 at east end of project | AX71: =IF('5 - Unmit. Risk Register'!C29="","",'5 - Unmit. Risk Register'!C29) -> Threat | AY71: =IF('5 - Unmit. Risk Register'!H29="","",'5 - Unmit. Risk Register'!H29) -> 0.04261132731 | AZ71: =IF('5 - Unmit. Risk Register'!I29="","",'5 - Unmit. Risk Register'!I29) -> 0.005671584417 | BA71: =IF('5 - Unmit. Risk Register'!J29="","",'5 - Unmit. Risk Register'!J29) -> 25
AT72: =IF('5 - Unmit. Risk Register'!A30="","",'5 - Unmit. Risk Register'!A30) -> PD-15 | AU72: =IF('5 - Unmit. Risk Register'!B30="","",'5 - Unmit. Risk Register'!B30) -> Encounter unanticipated contamination in interchange area. | AX72: =IF('5 - Unmit. Risk Register'!C30="","",'5 - Unmit. Risk Register'!C30) -> Threat | AY72: =IF('5 - Unmit. Risk Register'!H30="","",'5 - Unmit. Risk Register'!H30) -> 0.03206043603 | AZ72: =IF('5 - Unmit. Risk Register'!I30="","",'5 - Unmit. Risk Register'!I30) -> 0.00426725664 | BA72: =IF('5 - Unmit. Risk Register'!J30="","",'5 - Unmit. Risk Register'!J30) -> 26
AT73: =IF('5 - Unmit. Risk Register'!A31="","",'5 - Unmit. Risk Register'!A31) -> CR-9 | AU73: =IF('5 - Unmit. Risk Register'!B31="","",'5 - Unmit. Risk Register'!B31) -> Limited construction staging area in vicinity of interchange | AX73: =IF('5 - Unmit. Risk Register'!C31="","",'5 - Unmit. Risk Register'!C31) -> Threat | AY73: =IF('5 - Unmit. Risk Register'!H31="","",'5 - Unmit. Risk Register'!H31) -> 0.03206043603 | AZ73: =IF('5 - Unmit. Risk Register'!I31="","",'5 - Unmit. Risk Register'!I31) -> 0.00426725664 | BA73: =IF('5 - Unmit. Risk Register'!J31="","",'5 - Unmit. Risk Register'!J31) -> 27
AT74: =IF('5 - Unmit. Risk Register'!A32="","",'5 - Unmit. Risk Register'!A32) -> PR-8 | AU74: =IF('5 - Unmit. Risk Register'!B32="","",'5 - Unmit. Risk Register'!B32) -> Other problems with D/B contract procurement | AX74: =IF('5 - Unmit. Risk Register'!C32="","",'5 - Unmit. Risk Register'!C32) -> Threat | AY74: =IF('5 - Unmit. Risk Register'!H32="","",'5 - Unmit. Risk Register'!H32) -> 0.01835752192 | AZ74: =IF('5 - Unmit. Risk Register'!I32="","",'5 - Unmit. Risk Register'!I32) -> 0.002443393385 | BA74: =IF('5 - Unmit. Risk Register'!J32="","",'5 - Unmit. Risk Register'!J32) -> 28
AT75: =IF('5 - Unmit. Risk Register'!A33="","",'5 - Unmit. Risk Register'!A33) -> PL-2 | AU75: =IF('5 - Unmit. Risk Register'!B33="","",'5 - Unmit. Risk Register'!B33) -> Opposition to removing access to US-555 fro 12th St. | AX75: =IF('5 - Unmit. Risk Register'!C33="","",'5 - Unmit. Risk Register'!C33) -> Threat | AY75: =IF('5 - Unmit. Risk Register'!H33="","",'5 - Unmit. Risk Register'!H33) -> 0.01335851501 | AZ75: =IF('5 - Unmit. Risk Register'!I33="","",'5 - Unmit. Risk Register'!I33) -> 0.0017780236 | BA75: =IF('5 - Unmit. Risk Register'!J33="","",'5 - Unmit. Risk Register'!J33) -> 29
AT76: =IF('5 - Unmit. Risk Register'!A34="","",'5 - Unmit. Risk Register'!A34) -> CR-7 | AU76: =IF('5 - Unmit. Risk Register'!B34="","",'5 - Unmit. Risk Register'!B34) -> Colder-than-usual winter | AX76: =IF('5 - Unmit. Risk Register'!C34="","",'5 - Unmit. Risk Register'!C34) -> Threat | AY76: =IF('5 - Unmit. Risk Register'!H34="","",'5 - Unmit. Risk Register'!H34) -> 0.005807143748 | AZ76: =IF('5 - Unmit. Risk Register'!I34="","",'5 - Unmit. Risk Register'!I34) -> 0.0007729331159 | BA76: =IF('5 - Unmit. Risk Register'!J34="","",'5 - Unmit. Risk Register'!J34) -> 30
AT77: =IF('5 - Unmit. Risk Register'!A35="","",'5 - Unmit. Risk Register'!A35) -> CR-1 | AU77: =IF('5 - Unmit. Risk Register'!B35="","",'5 - Unmit. Risk Register'!B35) -> D/B construction phasing significantly different than assumed | AX77: =IF('5 - Unmit. Risk Register'!C35="","",'5 - Unmit. Risk Register'!C35) -> Opportunity | AY77: =IF('5 - Unmit. Risk Register'!H35="","",'5 - Unmit. Risk Register'!H35) -> -0.4356660896 | AZ77: =IF('5 - Unmit. Risk Register'!I35="","",'5 - Unmit. Risk Register'!I35) -> 0.5641146094 | BA77: =IF('5 - Unmit. Risk Register'!J35="","",'5 - Unmit. Risk Register'!J35) -> 1
AT78: =IF('5 - Unmit. Risk Register'!A36="","",'5 - Unmit. Risk Register'!A36) -> PD-8 | AU78: =IF('5 - Unmit. Risk Register'!B36="","",'5 - Unmit. Risk Register'!B36) -> Change in pavement section and/or type. | AX78: =IF('5 - Unmit. Risk Register'!C36="","",'5 - Unmit. Risk Register'!C36) -> Opportunity | AY78: =IF('5 - Unmit. Risk Register'!H36="","",'5 - Unmit. Risk Register'!H36) -> -0.3366345783 | AZ78: =IF('5 - Unmit. Risk Register'!I36="","",'5 - Unmit. Risk Register'!I36) -> 0.4358853906 | BA78: =IF('5 - Unmit. Risk Register'!J36="","",'5 - Unmit. Risk Register'!J36) -> 2
AT79: =IF('5 - Unmit. Risk Register'!A37="","",'5 - Unmit. Risk Register'!A37) -> PL-1 | AU79: =IF('5 - Unmit. Risk Register'!B37="","",'5 - Unmit. Risk Register'!B37) -> Project funding delayed or reduced. | AX79: =IF('5 - Unmit. Risk Register'!C37="","",'5 - Unmit. Risk Register'!C37) -> No Impact | AY79: =IF('5 - Unmit. Risk Register'!H37="","",'5 - Unmit. Risk Register'!H37) -> 0 | AZ79: =IF('5 - Unmit. Risk Register'!I37="","",'5 - Unmit. Risk Register'!I37) -> 0 | BA79: =IF('5 - Unmit. Risk Register'!J37="","",'5 - Unmit. Risk Register'!J37) -> 
AT80: =IF('5 - Unmit. Risk Register'!A38="","",'5 - Unmit. Risk Register'!A38) -> PL-3 | AU80: =IF('5 - Unmit. Risk Register'!B38="","",'5 - Unmit. Risk Register'!B38) -> Opposition to "splitting" alignment of SH-111 in the interchange area. | AX80: =IF('5 - Unmit. Risk Register'!C38="","",'5 - Unmit. Risk Register'!C38) -> No Impact | AY80: =IF('5 - Unmit. Risk Register'!H38="","",'5 - Unmit. Risk Register'!H38) -> 0 | AZ80: =IF('5 - Unmit. Risk Register'!I38="","",'5 - Unmit. Risk Register'!I38) -> 0 | BA80: =IF('5 - Unmit. Risk Register'!J38="","",'5 - Unmit. Risk Register'!J38) -> 
AT81: =IF('5 - Unmit. Risk Register'!A39="","",'5 - Unmit. Risk Register'!A39) -> PL-4 | AU81: =IF('5 - Unmit. Risk Register'!B39="","",'5 - Unmit. Risk Register'!B39) -> Other stakeholder issues not captured separately. | AX81: =IF('5 - Unmit. Risk Register'!C39="","",'5 - Unmit. Risk Register'!C39) -> No Impact | AY81: =IF('5 - Unmit. Risk Register'!H39="","",'5 - Unmit. Risk Register'!H39) -> 0 | AZ81: =IF('5 - Unmit. Risk Register'!I39="","",'5 - Unmit. Risk Register'!I39) -> 0 | BA81: =IF('5 - Unmit. Risk Register'!J39="","",'5 - Unmit. Risk Register'!J39) -> 
AT82: =IF('5 - Unmit. Risk Register'!A40="","",'5 - Unmit. Risk Register'!A40) -> SC-1 | AU82: =IF('5 - Unmit. Risk Register'!B40="","",'5 - Unmit. Risk Register'!B40) -> Change in East-West project limits. | AX82: =IF('5 - Unmit. Risk Register'!C40="","",'5 - Unmit. Risk Register'!C40) -> No Impact | AY82: =IF('5 - Unmit. Risk Register'!H40="","",'5 - Unmit. Risk Register'!H40) -> 0 | AZ82: =IF('5 - Unmit. Risk Register'!I40="","",'5 - Unmit. Risk Register'!I40) -> 0 | BA82: =IF('5 - Unmit. Risk Register'!J40="","",'5 - Unmit. Risk Register'!J40) -> 
AT83: =IF('5 - Unmit. Risk Register'!A41="","",'5 - Unmit. Risk Register'!A41) -> SC-2 | AU83: =IF('5 - Unmit. Risk Register'!B41="","",'5 - Unmit. Risk Register'!B41) -> Change in North-South project limits. | AX83: =IF('5 - Unmit. Risk Register'!C41="","",'5 - Unmit. Risk Register'!C41) -> No Impact | AY83: =IF('5 - Unmit. Risk Register'!H41="","",'5 - Unmit. Risk Register'!H41) -> 0 | AZ83: =IF('5 - Unmit. Risk Register'!I41="","",'5 - Unmit. Risk Register'!I41) -> 0 | BA83: =IF('5 - Unmit. Risk Register'!J41="","",'5 - Unmit. Risk Register'!J41) -> 
AT84: =IF('5 - Unmit. Risk Register'!A42="","",'5 - Unmit. Risk Register'!A42) -> SC-4 | AU84: =IF('5 - Unmit. Risk Register'!B42="","",'5 - Unmit. Risk Register'!B42) -> Increased aestethetics for US-555/SH-111 interchange. | AX84: =IF('5 - Unmit. Risk Register'!C42="","",'5 - Unmit. Risk Register'!C42) -> No Impact | AY84: =IF('5 - Unmit. Risk Register'!H42="","",'5 - Unmit. Risk Register'!H42) -> 0 | AZ84: =IF('5 - Unmit. Risk Register'!I42="","",'5 - Unmit. Risk Register'!I42) -> 0 | BA84: =IF('5 - Unmit. Risk Register'!J42="","",'5 - Unmit. Risk Register'!J42) -> 
AT85: =IF('5 - Unmit. Risk Register'!A43="","",'5 - Unmit. Risk Register'!A43) -> SC-7 | AU85: =IF('5 - Unmit. Risk Register'!B43="","",'5 - Unmit. Risk Register'!B43) -> ITS added to this project. | AX85: =IF('5 - Unmit. Risk Register'!C43="","",'5 - Unmit. Risk Register'!C43) -> No Impact | AY85: =IF('5 - Unmit. Risk Register'!H43="","",'5 - Unmit. Risk Register'!H43) -> 0 | AZ85: =IF('5 - Unmit. Risk Register'!I43="","",'5 - Unmit. Risk Register'!I43) -> 0 | BA85: =IF('5 - Unmit. Risk Register'!J43="","",'5 - Unmit. Risk Register'!J43) -> 
AT86: =IF('5 - Unmit. Risk Register'!A44="","",'5 - Unmit. Risk Register'!A44) -> PD-2 | AU86: =IF('5 - Unmit. Risk Register'!B44="","",'5 - Unmit. Risk Register'!B44) -> Split alignment of SH-111 at US-555 interchange. | AX86: =IF('5 - Unmit. Risk Register'!C44="","",'5 - Unmit. Risk Register'!C44) -> No Impact | AY86: =IF('5 - Unmit. Risk Register'!H44="","",'5 - Unmit. Risk Register'!H44) -> 0 | AZ86: =IF('5 - Unmit. Risk Register'!I44="","",'5 - Unmit. Risk Register'!I44) -> 0 | BA86: =IF('5 - Unmit. Risk Register'!J44="","",'5 - Unmit. Risk Register'!J44) -> 
AT87: =IF('5 - Unmit. Risk Register'!A45="","",'5 - Unmit. Risk Register'!A45) -> PD-3 | AU87: =IF('5 - Unmit. Risk Register'!B45="","",'5 - Unmit. Risk Register'!B45) -> Change in configuration of SH 111 / US 555 interchange. | AX87: =IF('5 - Unmit. Risk Register'!C45="","",'5 - Unmit. Risk Register'!C45) -> No Impact | AY87: =IF('5 - Unmit. Risk Register'!H45="","",'5 - Unmit. Risk Register'!H45) -> 0 | AZ87: =IF('5 - Unmit. Risk Register'!I45="","",'5 - Unmit. Risk Register'!I45) -> 0 | BA87: =IF('5 - Unmit. Risk Register'!J45="","",'5 - Unmit. Risk Register'!J45) -> 
AT88: =IF('5 - Unmit. Risk Register'!A46="","",'5 - Unmit. Risk Register'!A46) -> PD-7 | AU88: =IF('5 - Unmit. Risk Register'!B46="","",'5 - Unmit. Risk Register'!B46) -> Additional cost for signalized intersections. | AX88: =IF('5 - Unmit. Risk Register'!C46="","",'5 - Unmit. Risk Register'!C46) -> No Impact | AY88: =IF('5 - Unmit. Risk Register'!H46="","",'5 - Unmit. Risk Register'!H46) -> 0 | AZ88: =IF('5 - Unmit. Risk Register'!I46="","",'5 - Unmit. Risk Register'!I46) -> 0 | BA88: =IF('5 - Unmit. Risk Register'!J46="","",'5 - Unmit. Risk Register'!J46) -> 
AT89: =IF('5 - Unmit. Risk Register'!A47="","",'5 - Unmit. Risk Register'!A47) -> PD-9 | AU89: =IF('5 - Unmit. Risk Register'!B47="","",'5 - Unmit. Risk Register'!B47) -> Rehabilitate instead of reconstruct existing roadway (e.g., overlay instead). | AX89: =IF('5 - Unmit. Risk Register'!C47="","",'5 - Unmit. Risk Register'!C47) -> No Impact | AY89: =IF('5 - Unmit. Risk Register'!H47="","",'5 - Unmit. Risk Register'!H47) -> 0 | AZ89: =IF('5 - Unmit. Risk Register'!I47="","",'5 - Unmit. Risk Register'!I47) -> 0 | BA89: =IF('5 - Unmit. Risk Register'!J47="","",'5 - Unmit. Risk Register'!J47) -> 
AT90: =IF('5 - Unmit. Risk Register'!A48="","",'5 - Unmit. Risk Register'!A48) -> PD-10 | AU90: =IF('5 - Unmit. Risk Register'!B48="","",'5 - Unmit. Risk Register'!B48) -> Change in stormwater design standards. | AX90: =IF('5 - Unmit. Risk Register'!C48="","",'5 - Unmit. Risk Register'!C48) -> No Impact | AY90: =IF('5 - Unmit. Risk Register'!H48="","",'5 - Unmit. Risk Register'!H48) -> 0 | AZ90: =IF('5 - Unmit. Risk Register'!I48="","",'5 - Unmit. Risk Register'!I48) -> 0 | BA90: =IF('5 - Unmit. Risk Register'!J48="","",'5 - Unmit. Risk Register'!J48) -> 
AT91: =IF('5 - Unmit. Risk Register'!A49="","",'5 - Unmit. Risk Register'!A49) -> EP-1 | AU91: =IF('5 - Unmit. Risk Register'!B49="","",'5 - Unmit. Risk Register'!B49) -> Challenge to environmental determination or permits | AX91: =IF('5 - Unmit. Risk Register'!C49="","",'5 - Unmit. Risk Register'!C49) -> No Impact | AY91: =IF('5 - Unmit. Risk Register'!H49="","",'5 - Unmit. Risk Register'!H49) -> 0 | AZ91: =IF('5 - Unmit. Risk Register'!I49="","",'5 - Unmit. Risk Register'!I49) -> 0 | BA91: =IF('5 - Unmit. Risk Register'!J49="","",'5 - Unmit. Risk Register'!J49) -> 
AT92: =IF('5 - Unmit. Risk Register'!A50="","",'5 - Unmit. Risk Register'!A50) -> RR-4 | AU92: =IF('5 - Unmit. Risk Register'!B50="","",'5 - Unmit. Risk Register'!B50) -> Additional relocation or demolition required | AX92: =IF('5 - Unmit. Risk Register'!C50="","",'5 - Unmit. Risk Register'!C50) -> No Impact | AY92: =IF('5 - Unmit. Risk Register'!H50="","",'5 - Unmit. Risk Register'!H50) -> 0 | AZ92: =IF('5 - Unmit. Risk Register'!I50="","",'5 - Unmit. Risk Register'!I50) -> 0 | BA92: =IF('5 - Unmit. Risk Register'!J50="","",'5 - Unmit. Risk Register'!J50) -> 
AT93: =IF('5 - Unmit. Risk Register'!A51="","",'5 - Unmit. Risk Register'!A51) -> RR-5 | AU93: =IF('5 - Unmit. Risk Register'!B51="","",'5 - Unmit. Risk Register'!B51) -> Additional ROW required for planned project | AX93: =IF('5 - Unmit. Risk Register'!C51="","",'5 - Unmit. Risk Register'!C51) -> No Impact | AY93: =IF('5 - Unmit. Risk Register'!H51="","",'5 - Unmit. Risk Register'!H51) -> 0 | AZ93: =IF('5 - Unmit. Risk Register'!I51="","",'5 - Unmit. Risk Register'!I51) -> 0 | BA93: =IF('5 - Unmit. Risk Register'!J51="","",'5 - Unmit. Risk Register'!J51) -> 
AT94: =IF('5 - Unmit. Risk Register'!A52="","",'5 - Unmit. Risk Register'!A52) -> RR-9 | AU94: =IF('5 - Unmit. Risk Register'!B52="","",'5 - Unmit. Risk Register'!B52) -> Other utility relocations not completed on time | AX94: =IF('5 - Unmit. Risk Register'!C52="","",'5 - Unmit. Risk Register'!C52) -> No Impact | AY94: =IF('5 - Unmit. Risk Register'!H52="","",'5 - Unmit. Risk Register'!H52) -> 0 | AZ94: =IF('5 - Unmit. Risk Register'!I52="","",'5 - Unmit. Risk Register'!I52) -> 0 | BA94: =IF('5 - Unmit. Risk Register'!J52="","",'5 - Unmit. Risk Register'!J52) -> 
AT95: =IF('5 - Unmit. Risk Register'!A53="","",'5 - Unmit. Risk Register'!A53) -> RR-10 | AU95: =IF('5 - Unmit. Risk Register'!B53="","",'5 - Unmit. Risk Register'!B53) -> Damage existing utility or encounter unanticipated utility during construction | AX95: =IF('5 - Unmit. Risk Register'!C53="","",'5 - Unmit. Risk Register'!C53) -> No Impact | AY95: =IF('5 - Unmit. Risk Register'!H53="","",'5 - Unmit. Risk Register'!H53) -> 0 | AZ95: =IF('5 - Unmit. Risk Register'!I53="","",'5 - Unmit. Risk Register'!I53) -> 0 | BA95: =IF('5 - Unmit. Risk Register'!J53="","",'5 - Unmit. Risk Register'!J53) -> 
AT96: =IF('5 - Unmit. Risk Register'!A54="","",'5 - Unmit. Risk Register'!A54) -> PR-3 | AU96: =IF('5 - Unmit. Risk Register'!B54="","",'5 - Unmit. Risk Register'!B54) -> Material-supply issues | AX96: =IF('5 - Unmit. Risk Register'!C54="","",'5 - Unmit. Risk Register'!C54) -> No Impact | AY96: =IF('5 - Unmit. Risk Register'!H54="","",'5 - Unmit. Risk Register'!H54) -> 0 | AZ96: =IF('5 - Unmit. Risk Register'!I54="","",'5 - Unmit. Risk Register'!I54) -> 0 | BA96: =IF('5 - Unmit. Risk Register'!J54="","",'5 - Unmit. Risk Register'!J54) -> 
AT97: =IF('5 - Unmit. Risk Register'!A55="","",'5 - Unmit. Risk Register'!A55) -> PR-4 | AU97: =IF('5 - Unmit. Risk Register'!B55="","",'5 - Unmit. Risk Register'!B55) -> Change in project delivery method | AX97: =IF('5 - Unmit. Risk Register'!C55="","",'5 - Unmit. Risk Register'!C55) -> No Impact | AY97: =IF('5 - Unmit. Risk Register'!H55="","",'5 - Unmit. Risk Register'!H55) -> 0 | AZ97: =IF('5 - Unmit. Risk Register'!I55="","",'5 - Unmit. Risk Register'!I55) -> 0 | BA97: =IF('5 - Unmit. Risk Register'!J55="","",'5 - Unmit. Risk Register'!J55) -> 
AT98: =IF('5 - Unmit. Risk Register'!A56="","",'5 - Unmit. Risk Register'!A56) -> PR-5 | AU98: =IF('5 - Unmit. Risk Register'!B56="","",'5 - Unmit. Risk Register'!B56) -> Accelerate pre-construction activities to reach NTP sooner | AX98: =IF('5 - Unmit. Risk Register'!C56="","",'5 - Unmit. Risk Register'!C56) -> No Impact | AY98: =IF('5 - Unmit. Risk Register'!H56="","",'5 - Unmit. Risk Register'!H56) -> 0 | AZ98: =IF('5 - Unmit. Risk Register'!I56="","",'5 - Unmit. Risk Register'!I56) -> 0 | BA98: =IF('5 - Unmit. Risk Register'!J56="","",'5 - Unmit. Risk Register'!J56) -> 
AT99: =IF('5 - Unmit. Risk Register'!A57="","",'5 - Unmit. Risk Register'!A57) -> PR-6 | AU99: =IF('5 - Unmit. Risk Register'!B57="","",'5 - Unmit. Risk Register'!B57) -> Use incentives to accelerate D/B construction | AX99: =IF('5 - Unmit. Risk Register'!C57="","",'5 - Unmit. Risk Register'!C57) -> No Impact | AY99: =IF('5 - Unmit. Risk Register'!H57="","",'5 - Unmit. Risk Register'!H57) -> 0 | AZ99: =IF('5 - Unmit. Risk Register'!I57="","",'5 - Unmit. Risk Register'!I57) -> 0 | BA99: =IF('5 - Unmit. Risk Register'!J57="","",'5 - Unmit. Risk Register'!J57) -> 
AT100: =IF('5 - Unmit. Risk Register'!A58="","",'5 - Unmit. Risk Register'!A58) -> PR-7 | AU100: =IF('5 - Unmit. Risk Register'!B58="","",'5 - Unmit. Risk Register'!B58) -> Issues with D/B design or submittals | AX100: =IF('5 - Unmit. Risk Register'!C58="","",'5 - Unmit. Risk Register'!C58) -> No Impact | AY100: =IF('5 - Unmit. Risk Register'!H58="","",'5 - Unmit. Risk Register'!H58) -> 0 | AZ100: =IF('5 - Unmit. Risk Register'!I58="","",'5 - Unmit. Risk Register'!I58) -> 0 | BA100: =IF('5 - Unmit. Risk Register'!J58="","",'5 - Unmit. Risk Register'!J58) -> 
AT101: =IF('5 - Unmit. Risk Register'!A59="","",'5 - Unmit. Risk Register'!A59) -> CR-6 | AU101: =IF('5 - Unmit. Risk Register'!B59="","",'5 - Unmit. Risk Register'!B59) -> Severe weather event significantly impacts construction | AX101: =IF('5 - Unmit. Risk Register'!C59="","",'5 - Unmit. Risk Register'!C59) -> No Impact | AY101: =IF('5 - Unmit. Risk Register'!H59="","",'5 - Unmit. Risk Register'!H59) -> 0 | AZ101: =IF('5 - Unmit. Risk Register'!I59="","",'5 - Unmit. Risk Register'!I59) -> 0 | BA101: =IF('5 - Unmit. Risk Register'!J59="","",'5 - Unmit. Risk Register'!J59) -> 
AT102: =IF('5 - Unmit. Risk Register'!A60="","",'5 - Unmit. Risk Register'!A60) -> CR-8 | AU102: =IF('5 - Unmit. Risk Register'!B60="","",'5 - Unmit. Risk Register'!B60) -> Significant accident during construction | AX102: =IF('5 - Unmit. Risk Register'!C60="","",'5 - Unmit. Risk Register'!C60) -> No Impact | AY102: =IF('5 - Unmit. Risk Register'!H60="","",'5 - Unmit. Risk Register'!H60) -> 0 | AZ102: =IF('5 - Unmit. Risk Register'!I60="","",'5 - Unmit. Risk Register'!I60) -> 0 | BA102: =IF('5 - Unmit. Risk Register'!J60="","",'5 - Unmit. Risk Register'!J60) -> 
AT103: =IF('5 - Unmit. Risk Register'!A61="","",'5 - Unmit. Risk Register'!A61) -> CR-10 | AU103: =IF('5 - Unmit. Risk Register'!B61="","",'5 - Unmit. Risk Register'!B61) -> Fish window in Wandering Creek | AX103: =IF('5 - Unmit. Risk Register'!C61="","",'5 - Unmit. Risk Register'!C61) -> No Impact | AY103: =IF('5 - Unmit. Risk Register'!H61="","",'5 - Unmit. Risk Register'!H61) -> 0 | AZ103: =IF('5 - Unmit. Risk Register'!I61="","",'5 - Unmit. Risk Register'!I61) -> 0 | BA103: =IF('5 - Unmit. Risk Register'!J61="","",'5 - Unmit. Risk Register'!J61) -> 
AT104: =IF('5 - Unmit. Risk Register'!A62="","",'5 - Unmit. Risk Register'!A62) -> CR-11 | AU104: =IF('5 - Unmit. Risk Register'!B62="","",'5 - Unmit. Risk Register'!B62) -> Non-compliance with permits during construction | AX104: =IF('5 - Unmit. Risk Register'!C62="","",'5 - Unmit. Risk Register'!C62) -> No Impact | AY104: =IF('5 - Unmit. Risk Register'!H62="","",'5 - Unmit. Risk Register'!H62) -> 0 | AZ104: =IF('5 - Unmit. Risk Register'!I62="","",'5 - Unmit. Risk Register'!I62) -> 0 | BA104: =IF('5 - Unmit. Risk Register'!J62="","",'5 - Unmit. Risk Register'!J62) -> 
AT105: =IF('5 - Unmit. Risk Register'!A63="","",'5 - Unmit. Risk Register'!A63) -> CR-12 | AU105: =IF('5 - Unmit. Risk Register'!B63="","",'5 - Unmit. Risk Register'!B63) -> Extended overheads as a function of project delays | AX105: =IF('5 - Unmit. Risk Register'!C63="","",'5 - Unmit. Risk Register'!C63) -> No Impact | AY105: =IF('5 - Unmit. Risk Register'!H63="","",'5 - Unmit. Risk Register'!H63) -> 0 | AZ105: =IF('5 - Unmit. Risk Register'!I63="","",'5 - Unmit. Risk Register'!I63) -> 0 | BA105: =IF('5 - Unmit. Risk Register'!J63="","",'5 - Unmit. Risk Register'!J63) -> 
AT106: =IF('5 - Unmit. Risk Register'!A64="","",'5 - Unmit. Risk Register'!A64) ->  | AU106: =IF('5 - Unmit. Risk Register'!B64="","",'5 - Unmit. Risk Register'!B64) ->  | AX106: =IF('5 - Unmit. Risk Register'!C64="","",'5 - Unmit. Risk Register'!C64) ->  | AY106: =IF('5 - Unmit. Risk Register'!H64="","",'5 - Unmit. Risk Register'!H64) ->  | AZ106: =IF('5 - Unmit. Risk Register'!I64="","",'5 - Unmit. Risk Register'!I64) ->  | BA106: =IF('5 - Unmit. Risk Register'!J64="","",'5 - Unmit. Risk Register'!J64) -> 
AT107: =IF('5 - Unmit. Risk Register'!A65="","",'5 - Unmit. Risk Register'!A65) ->  | AU107: =IF('5 - Unmit. Risk Register'!B65="","",'5 - Unmit. Risk Register'!B65) ->  | AX107: =IF('5 - Unmit. Risk Register'!C65="","",'5 - Unmit. Risk Register'!C65) ->  | AY107: =IF('5 - Unmit. Risk Register'!H65="","",'5 - Unmit. Risk Register'!H65) ->  | AZ107: =IF('5 - Unmit. Risk Register'!I65="","",'5 - Unmit. Risk Register'!I65) ->  | BA107: =IF('5 - Unmit. Risk Register'!J65="","",'5 - Unmit. Risk Register'!J65) -> 
AT108: =IF('5 - Unmit. Risk Register'!A66="","",'5 - Unmit. Risk Register'!A66) ->  | AU108: =IF('5 - Unmit. Risk Register'!B66="","",'5 - Unmit. Risk Register'!B66) ->  | AX108: =IF('5 - Unmit. Risk Register'!C66="","",'5 - Unmit. Risk Register'!C66) ->  | AY108: =IF('5 - Unmit. Risk Register'!H66="","",'5 - Unmit. Risk Register'!H66) ->  | AZ108: =IF('5 - Unmit. Risk Register'!I66="","",'5 - Unmit. Risk Register'!I66) ->  | BA108: =IF('5 - Unmit. Risk Register'!J66="","",'5 - Unmit. Risk Register'!J66) -> 
AT109: =IF('5 - Unmit. Risk Register'!A67="","",'5 - Unmit. Risk Register'!A67) ->  | AU109: =IF('5 - Unmit. Risk Register'!B67="","",'5 - Unmit. Risk Register'!B67) ->  | AX109: =IF('5 - Unmit. Risk Register'!C67="","",'5 - Unmit. Risk Register'!C67) ->  | AY109: =IF('5 - Unmit. Risk Register'!H67="","",'5 - Unmit. Risk Register'!H67) ->  | AZ109: =IF('5 - Unmit. Risk Register'!I67="","",'5 - Unmit. Risk Register'!I67) ->  | BA109: =IF('5 - Unmit. Risk Register'!J67="","",'5 - Unmit. Risk Register'!J67) -> 
AT110: =IF('5 - Unmit. Risk Register'!A68="","",'5 - Unmit. Risk Register'!A68) ->  | AU110: =IF('5 - Unmit. Risk Register'!B68="","",'5 - Unmit. Risk Register'!B68) ->  | AX110: =IF('5 - Unmit. Risk Register'!C68="","",'5 - Unmit. Risk Register'!C68) ->  | AY110: =IF('5 - Unmit. Risk Register'!H68="","",'5 - Unmit. Risk Register'!H68) ->  | AZ110: =IF('5 - Unmit. Risk Register'!I68="","",'5 - Unmit. Risk Register'!I68) ->  | BA110: =IF('5 - Unmit. Risk Register'!J68="","",'5 - Unmit. Risk Register'!J68) -> 
AT111: =IF('5 - Unmit. Risk Register'!A69="","",'5 - Unmit. Risk Register'!A69) ->  | AU111: =IF('5 - Unmit. Risk Register'!B69="","",'5 - Unmit. Risk Register'!B69) ->  | AX111: =IF('5 - Unmit. Risk Register'!C69="","",'5 - Unmit. Risk Register'!C69) ->  | AY111: =IF('5 - Unmit. Risk Register'!H69="","",'5 - Unmit. Risk Register'!H69) ->  | AZ111: =IF('5 - Unmit. Risk Register'!I69="","",'5 - Unmit. Risk Register'!I69) ->  | BA111: =IF('5 - Unmit. Risk Register'!J69="","",'5 - Unmit. Risk Register'!J69) -> 
AT112: =IF('5 - Unmit. Risk Register'!A70="","",'5 - Unmit. Risk Register'!A70) ->  | AU112: =IF('5 - Unmit. Risk Register'!B70="","",'5 - Unmit. Risk Register'!B70) ->  | AX112: =IF('5 - Unmit. Risk Register'!C70="","",'5 - Unmit. Risk Register'!C70) ->  | AY112: =IF('5 - Unmit. Risk Register'!H70="","",'5 - Unmit. Risk Register'!H70) ->  | AZ112: =IF('5 - Unmit. Risk Register'!I70="","",'5 - Unmit. Risk Register'!I70) ->  | BA112: =IF('5 - Unmit. Risk Register'!J70="","",'5 - Unmit. Risk Register'!J70) -> 
AT113: =IF('5 - Unmit. Risk Register'!A71="","",'5 - Unmit. Risk Register'!A71) ->  | AU113: =IF('5 - Unmit. Risk Register'!B71="","",'5 - Unmit. Risk Register'!B71) ->  | AX113: =IF('5 - Unmit. Risk Register'!C71="","",'5 - Unmit. Risk Register'!C71) ->  | AY113: =IF('5 - Unmit. Risk Register'!H71="","",'5 - Unmit. Risk Register'!H71) ->  | AZ113: =IF('5 - Unmit. Risk Register'!I71="","",'5 - Unmit. Risk Register'!I71) ->  | BA113: =IF('5 - Unmit. Risk Register'!J71="","",'5 - Unmit. Risk Register'!J71) -> 
AT114: =IF('5 - Unmit. Risk Register'!A72="","",'5 - Unmit. Risk Register'!A72) ->  | AU114: =IF('5 - Unmit. Risk Register'!B72="","",'5 - Unmit. Risk Register'!B72) ->  | AX114: =IF('5 - Unmit. Risk Register'!C72="","",'5 - Unmit. Risk Register'!C72) ->  | AY114: =IF('5 - Unmit. Risk Register'!H72="","",'5 - Unmit. Risk Register'!H72) ->  | AZ114: =IF('5 - Unmit. Risk Register'!I72="","",'5 - Unmit. Risk Register'!I72) ->  | BA114: =IF('5 - Unmit. Risk Register'!J72="","",'5 - Unmit. Risk Register'!J72) -> 
AT115: =IF('5 - Unmit. Risk Register'!A73="","",'5 - Unmit. Risk Register'!A73) ->  | AU115: =IF('5 - Unmit. Risk Register'!B73="","",'5 - Unmit. Risk Register'!B73) ->  | AX115: =IF('5 - Unmit. Risk Register'!C73="","",'5 - Unmit. Risk Register'!C73) ->  | AY115: =IF('5 - Unmit. Risk Register'!H73="","",'5 - Unmit. Risk Register'!H73) ->  | AZ115: =IF('5 - Unmit. Risk Register'!I73="","",'5 - Unmit. Risk Register'!I73) ->  | BA115: =IF('5 - Unmit. Risk Register'!J73="","",'5 - Unmit. Risk Register'!J73) -> 
AT116: =IF('5 - Unmit. Risk Register'!A74="","",'5 - Unmit. Risk Register'!A74) ->  | AU116: =IF('5 - Unmit. Risk Register'!B74="","",'5 - Unmit. Risk Register'!B74) ->  | AX116: =IF('5 - Unmit. Risk Register'!C74="","",'5 - Unmit. Risk Register'!C74) ->  | AY116: =IF('5 - Unmit. Risk Register'!H74="","",'5 - Unmit. Risk Register'!H74) ->  | AZ116: =IF('5 - Unmit. Risk Register'!I74="","",'5 - Unmit. Risk Register'!I74) ->  | BA116: =IF('5 - Unmit. Risk Register'!J74="","",'5 - Unmit. Risk Register'!J74) -> 
AT117: =IF('5 - Unmit. Risk Register'!A75="","",'5 - Unmit. Risk Register'!A75) ->  | AU117: =IF('5 - Unmit. Risk Register'!B75="","",'5 - Unmit. Risk Register'!B75) ->  | AX117: =IF('5 - Unmit. Risk Register'!C75="","",'5 - Unmit. Risk Register'!C75) ->  | AY117: =IF('5 - Unmit. Risk Register'!H75="","",'5 - Unmit. Risk Register'!H75) ->  | AZ117: =IF('5 - Unmit. Risk Register'!I75="","",'5 - Unmit. Risk Register'!I75) ->  | BA117: =IF('5 - Unmit. Risk Register'!J75="","",'5 - Unmit. Risk Register'!J75) -> 
AT118: =IF('5 - Unmit. Risk Register'!A76="","",'5 - Unmit. Risk Register'!A76) ->  | AU118: =IF('5 - Unmit. Risk Register'!B76="","",'5 - Unmit. Risk Register'!B76) ->  | AX118: =IF('5 - Unmit. Risk Register'!C76="","",'5 - Unmit. Risk Register'!C76) ->  | AY118: =IF('5 - Unmit. Risk Register'!H76="","",'5 - Unmit. Risk Register'!H76) ->  | AZ118: =IF('5 - Unmit. Risk Register'!I76="","",'5 - Unmit. Risk Register'!I76) ->  | BA118: =IF('5 - Unmit. Risk Register'!J76="","",'5 - Unmit. Risk Register'!J76) -> 
AT119: =IF('5 - Unmit. Risk Register'!A77="","",'5 - Unmit. Risk Register'!A77) ->  | AU119: =IF('5 - Unmit. Risk Register'!B77="","",'5 - Unmit. Risk Register'!B77) ->  | AX119: =IF('5 - Unmit. Risk Register'!C77="","",'5 - Unmit. Risk Register'!C77) ->  | AY119: =IF('5 - Unmit. Risk Register'!H77="","",'5 - Unmit. Risk Register'!H77) ->  | AZ119: =IF('5 - Unmit. Risk Register'!I77="","",'5 - Unmit. Risk Register'!I77) ->  | BA119: =IF('5 - Unmit. Risk Register'!J77="","",'5 - Unmit. Risk Register'!J77) -> 
AT120: =IF('5 - Unmit. Risk Register'!A78="","",'5 - Unmit. Risk Register'!A78) ->  | AU120: =IF('5 - Unmit. Risk Register'!B78="","",'5 - Unmit. Risk Register'!B78) ->  | AX120: =IF('5 - Unmit. Risk Register'!C78="","",'5 - Unmit. Risk Register'!C78) ->  | AY120: =IF('5 - Unmit. Risk Register'!H78="","",'5 - Unmit. Risk Register'!H78) ->  | AZ120: =IF('5 - Unmit. Risk Register'!I78="","",'5 - Unmit. Risk Register'!I78) ->  | BA120: =IF('5 - Unmit. Risk Register'!J78="","",'5 - Unmit. Risk Register'!J78) -> 
AT121: =IF('5 - Unmit. Risk Register'!A79="","",'5 - Unmit. Risk Register'!A79) ->  | AU121: =IF('5 - Unmit. Risk Register'!B79="","",'5 - Unmit. Risk Register'!B79) ->  | AX121: =IF('5 - Unmit. Risk Register'!C79="","",'5 - Unmit. Risk Register'!C79) ->  | AY121: =IF('5 - Unmit. Risk Register'!H79="","",'5 - Unmit. Risk Register'!H79) ->  | AZ121: =IF('5 - Unmit. Risk Register'!I79="","",'5 - Unmit. Risk Register'!I79) ->  | BA121: =IF('5 - Unmit. Risk Register'!J79="","",'5 - Unmit. Risk Register'!J79) -> 
AT122: =IF('5 - Unmit. Risk Register'!A80="","",'5 - Unmit. Risk Register'!A80) ->  | AU122: =IF('5 - Unmit. Risk Register'!B80="","",'5 - Unmit. Risk Register'!B80) ->  | AX122: =IF('5 - Unmit. Risk Register'!C80="","",'5 - Unmit. Risk Register'!C80) ->  | AY122: =IF('5 - Unmit. Risk Register'!H80="","",'5 - Unmit. Risk Register'!H80) ->  | AZ122: =IF('5 - Unmit. Risk Register'!I80="","",'5 - Unmit. Risk Register'!I80) ->  | BA122: =IF('5 - Unmit. Risk Register'!J80="","",'5 - Unmit. Risk Register'!J80) -> 
AT123: =IF('5 - Unmit. Risk Register'!A81="","",'5 - Unmit. Risk Register'!A81) ->  | AU123: =IF('5 - Unmit. Risk Register'!B81="","",'5 - Unmit. Risk Register'!B81) ->  | AX123: =IF('5 - Unmit. Risk Register'!C81="","",'5 - Unmit. Risk Register'!C81) ->  | AY123: =IF('5 - Unmit. Risk Register'!H81="","",'5 - Unmit. Risk Register'!H81) ->  | AZ123: =IF('5 - Unmit. Risk Register'!I81="","",'5 - Unmit. Risk Register'!I81) ->  | BA123: =IF('5 - Unmit. Risk Register'!J81="","",'5 - Unmit. Risk Register'!J81) -> 
AT124: =IF('5 - Unmit. Risk Register'!A82="","",'5 - Unmit. Risk Register'!A82) ->  | AU124: =IF('5 - Unmit. Risk Register'!B82="","",'5 - Unmit. Risk Register'!B82) ->  | AX124: =IF('5 - Unmit. Risk Register'!C82="","",'5 - Unmit. Risk Register'!C82) ->  | AY124: =IF('5 - Unmit. Risk Register'!H82="","",'5 - Unmit. Risk Register'!H82) ->  | AZ124: =IF('5 - Unmit. Risk Register'!I82="","",'5 - Unmit. Risk Register'!I82) ->  | BA124: =IF('5 - Unmit. Risk Register'!J82="","",'5 - Unmit. Risk Register'!J82) -> 
AT125: =IF('5 - Unmit. Risk Register'!A83="","",'5 - Unmit. Risk Register'!A83) ->  | AU125: =IF('5 - Unmit. Risk Register'!B83="","",'5 - Unmit. Risk Register'!B83) ->  | AX125: =IF('5 - Unmit. Risk Register'!C83="","",'5 - Unmit. Risk Register'!C83) ->  | AY125: =IF('5 - Unmit. Risk Register'!H83="","",'5 - Unmit. Risk Register'!H83) ->  | AZ125: =IF('5 - Unmit. Risk Register'!I83="","",'5 - Unmit. Risk Register'!I83) ->  | BA125: =IF('5 - Unmit. Risk Register'!J83="","",'5 - Unmit. Risk Register'!J83) -> 
AT126: =IF('5 - Unmit. Risk Register'!A84="","",'5 - Unmit. Risk Register'!A84) ->  | AU126: =IF('5 - Unmit. Risk Register'!B84="","",'5 - Unmit. Risk Register'!B84) ->  | AX126: =IF('5 - Unmit. Risk Register'!C84="","",'5 - Unmit. Risk Register'!C84) ->  | AY126: =IF('5 - Unmit. Risk Register'!H84="","",'5 - Unmit. Risk Register'!H84) ->  | AZ126: =IF('5 - Unmit. Risk Register'!I84="","",'5 - Unmit. Risk Register'!I84) ->  | BA126: =IF('5 - Unmit. Risk Register'!J84="","",'5 - Unmit. Risk Register'!J84) -> 
AT127: =IF('5 - Unmit. Risk Register'!A85="","",'5 - Unmit. Risk Register'!A85) ->  | AU127: =IF('5 - Unmit. Risk Register'!B85="","",'5 - Unmit. Risk Register'!B85) ->  | AX127: =IF('5 - Unmit. Risk Register'!C85="","",'5 - Unmit. Risk Register'!C85) ->  | AY127: =IF('5 - Unmit. Risk Register'!H85="","",'5 - Unmit. Risk Register'!H85) ->  | AZ127: =IF('5 - Unmit. Risk Register'!I85="","",'5 - Unmit. Risk Register'!I85) ->  | BA127: =IF('5 - Unmit. Risk Register'!J85="","",'5 - Unmit. Risk Register'!J85) -> 
AT128: =IF('5 - Unmit. Risk Register'!A86="","",'5 - Unmit. Risk Register'!A86) ->  | AU128: =IF('5 - Unmit. Risk Register'!B86="","",'5 - Unmit. Risk Register'!B86) ->  | AX128: =IF('5 - Unmit. Risk Register'!C86="","",'5 - Unmit. Risk Register'!C86) ->  | AY128: =IF('5 - Unmit. Risk Register'!H86="","",'5 - Unmit. Risk Register'!H86) ->  | AZ128: =IF('5 - Unmit. Risk Register'!I86="","",'5 - Unmit. Risk Register'!I86) ->  | BA128: =IF('5 - Unmit. Risk Register'!J86="","",'5 - Unmit. Risk Register'!J86) -> 
AT129: =IF('5 - Unmit. Risk Register'!A87="","",'5 - Unmit. Risk Register'!A87) ->  | AU129: =IF('5 - Unmit. Risk Register'!B87="","",'5 - Unmit. Risk Register'!B87) ->  | AX129: =IF('5 - Unmit. Risk Register'!C87="","",'5 - Unmit. Risk Register'!C87) ->  | AY129: =IF('5 - Unmit. Risk Register'!H87="","",'5 - Unmit. Risk Register'!H87) ->  | AZ129: =IF('5 - Unmit. Risk Register'!I87="","",'5 - Unmit. Risk Register'!I87) ->  | BA129: =IF('5 - Unmit. Risk Register'!J87="","",'5 - Unmit. Risk Register'!J87) -> 
AT130: =IF('5 - Unmit. Risk Register'!A88="","",'5 - Unmit. Risk Register'!A88) ->  | AU130: =IF('5 - Unmit. Risk Register'!B88="","",'5 - Unmit. Risk Register'!B88) ->  | AX130: =IF('5 - Unmit. Risk Register'!C88="","",'5 - Unmit. Risk Register'!C88) ->  | AY130: =IF('5 - Unmit. Risk Register'!H88="","",'5 - Unmit. Risk Register'!H88) ->  | AZ130: =IF('5 - Unmit. Risk Register'!I88="","",'5 - Unmit. Risk Register'!I88) ->  | BA130: =IF('5 - Unmit. Risk Register'!J88="","",'5 - Unmit. Risk Register'!J88) -> 
AT131: =IF('5 - Unmit. Risk Register'!A89="","",'5 - Unmit. Risk Register'!A89) ->  | AU131: =IF('5 - Unmit. Risk Register'!B89="","",'5 - Unmit. Risk Register'!B89) ->  | AX131: =IF('5 - Unmit. Risk Register'!C89="","",'5 - Unmit. Risk Register'!C89) ->  | AY131: =IF('5 - Unmit. Risk Register'!H89="","",'5 - Unmit. Risk Register'!H89) ->  | AZ131: =IF('5 - Unmit. Risk Register'!I89="","",'5 - Unmit. Risk Register'!I89) ->  | BA131: =IF('5 - Unmit. Risk Register'!J89="","",'5 - Unmit. Risk Register'!J89) -> 
AT132: =IF('5 - Unmit. Risk Register'!A90="","",'5 - Unmit. Risk Register'!A90) ->  | AU132: =IF('5 - Unmit. Risk Register'!B90="","",'5 - Unmit. Risk Register'!B90) ->  | AX132: =IF('5 - Unmit. Risk Register'!C90="","",'5 - Unmit. Risk Register'!C90) ->  | AY132: =IF('5 - Unmit. Risk Register'!H90="","",'5 - Unmit. Risk Register'!H90) ->  | AZ132: =IF('5 - Unmit. Risk Register'!I90="","",'5 - Unmit. Risk Register'!I90) ->  | BA132: =IF('5 - Unmit. Risk Register'!J90="","",'5 - Unmit. Risk Register'!J90) -> 
AT133: =IF('5 - Unmit. Risk Register'!A91="","",'5 - Unmit. Risk Register'!A91) ->  | AU133: =IF('5 - Unmit. Risk Register'!B91="","",'5 - Unmit. Risk Register'!B91) ->  | AX133: =IF('5 - Unmit. Risk Register'!C91="","",'5 - Unmit. Risk Register'!C91) ->  | AY133: =IF('5 - Unmit. Risk Register'!H91="","",'5 - Unmit. Risk Register'!H91) ->  | AZ133: =IF('5 - Unmit. Risk Register'!I91="","",'5 - Unmit. Risk Register'!I91) ->  | BA133: =IF('5 - Unmit. Risk Register'!J91="","",'5 - Unmit. Risk Register'!J91) -> 
AT134: =IF('5 - Unmit. Risk Register'!A92="","",'5 - Unmit. Risk Register'!A92) ->  | AU134: =IF('5 - Unmit. Risk Register'!B92="","",'5 - Unmit. Risk Register'!B92) ->  | AX134: =IF('5 - Unmit. Risk Register'!C92="","",'5 - Unmit. Risk Register'!C92) ->  | AY134: =IF('5 - Unmit. Risk Register'!H92="","",'5 - Unmit. Risk Register'!H92) ->  | AZ134: =IF('5 - Unmit. Risk Register'!I92="","",'5 - Unmit. Risk Register'!I92) ->  | BA134: =IF('5 - Unmit. Risk Register'!J92="","",'5 - Unmit. Risk Register'!J92) -> 
AT135: =IF('5 - Unmit. Risk Register'!A93="","",'5 - Unmit. Risk Register'!A93) ->  | AU135: =IF('5 - Unmit. Risk Register'!B93="","",'5 - Unmit. Risk Register'!B93) ->  | AX135: =IF('5 - Unmit. Risk Register'!C93="","",'5 - Unmit. Risk Register'!C93) ->  | AY135: =IF('5 - Unmit. Risk Register'!H93="","",'5 - Unmit. Risk Register'!H93) ->  | AZ135: =IF('5 - Unmit. Risk Register'!I93="","",'5 - Unmit. Risk Register'!I93) ->  | BA135: =IF('5 - Unmit. Risk Register'!J93="","",'5 - Unmit. Risk Register'!J93) -> 
AT136: =IF('5 - Unmit. Risk Register'!A94="","",'5 - Unmit. Risk Register'!A94) ->  | AU136: =IF('5 - Unmit. Risk Register'!B94="","",'5 - Unmit. Risk Register'!B94) ->  | AX136: =IF('5 - Unmit. Risk Register'!C94="","",'5 - Unmit. Risk Register'!C94) ->  | AY136: =IF('5 - Unmit. Risk Register'!H94="","",'5 - Unmit. Risk Register'!H94) ->  | AZ136: =IF('5 - Unmit. Risk Register'!I94="","",'5 - Unmit. Risk Register'!I94) ->  | BA136: =IF('5 - Unmit. Risk Register'!J94="","",'5 - Unmit. Risk Register'!J94) -> 
AT137: =IF('5 - Unmit. Risk Register'!A95="","",'5 - Unmit. Risk Register'!A95) ->  | AU137: =IF('5 - Unmit. Risk Register'!B95="","",'5 - Unmit. Risk Register'!B95) ->  | AX137: =IF('5 - Unmit. Risk Register'!C95="","",'5 - Unmit. Risk Register'!C95) ->  | AY137: =IF('5 - Unmit. Risk Register'!H95="","",'5 - Unmit. Risk Register'!H95) ->  | AZ137: =IF('5 - Unmit. Risk Register'!I95="","",'5 - Unmit. Risk Register'!I95) ->  | BA137: =IF('5 - Unmit. Risk Register'!J95="","",'5 - Unmit. Risk Register'!J95) -> 
AT138: =IF('5 - Unmit. Risk Register'!A96="","",'5 - Unmit. Risk Register'!A96) ->  | AU138: =IF('5 - Unmit. Risk Register'!B96="","",'5 - Unmit. Risk Register'!B96) ->  | AX138: =IF('5 - Unmit. Risk Register'!C96="","",'5 - Unmit. Risk Register'!C96) ->  | AY138: =IF('5 - Unmit. Risk Register'!H96="","",'5 - Unmit. Risk Register'!H96) ->  | AZ138: =IF('5 - Unmit. Risk Register'!I96="","",'5 - Unmit. Risk Register'!I96) ->  | BA138: =IF('5 - Unmit. Risk Register'!J96="","",'5 - Unmit. Risk Register'!J96) -> 
AT139: =IF('5 - Unmit. Risk Register'!A97="","",'5 - Unmit. Risk Register'!A97) ->  | AU139: =IF('5 - Unmit. Risk Register'!B97="","",'5 - Unmit. Risk Register'!B97) ->  | AX139: =IF('5 - Unmit. Risk Register'!C97="","",'5 - Unmit. Risk Register'!C97) ->  | AY139: =IF('5 - Unmit. Risk Register'!H97="","",'5 - Unmit. Risk Register'!H97) ->  | AZ139: =IF('5 - Unmit. Risk Register'!I97="","",'5 - Unmit. Risk Register'!I97) ->  | BA139: =IF('5 - Unmit. Risk Register'!J97="","",'5 - Unmit. Risk Register'!J97) -> 
AT140: =IF('5 - Unmit. Risk Register'!A98="","",'5 - Unmit. Risk Register'!A98) ->  | AU140: =IF('5 - Unmit. Risk Register'!B98="","",'5 - Unmit. Risk Register'!B98) ->  | AX140: =IF('5 - Unmit. Risk Register'!C98="","",'5 - Unmit. Risk Register'!C98) ->  | AY140: =IF('5 - Unmit. Risk Register'!H98="","",'5 - Unmit. Risk Register'!H98) ->  | AZ140: =IF('5 - Unmit. Risk Register'!I98="","",'5 - Unmit. Risk Register'!I98) ->  | BA140: =IF('5 - Unmit. Risk Register'!J98="","",'5 - Unmit. Risk Register'!J98) -> 
AT141: =IF('5 - Unmit. Risk Register'!A99="","",'5 - Unmit. Risk Register'!A99) ->  | AU141: =IF('5 - Unmit. Risk Register'!B99="","",'5 - Unmit. Risk Register'!B99) ->  | AX141: =IF('5 - Unmit. Risk Register'!C99="","",'5 - Unmit. Risk Register'!C99) ->  | AY141: =IF('5 - Unmit. Risk Register'!H99="","",'5 - Unmit. Risk Register'!H99) ->  | AZ141: =IF('5 - Unmit. Risk Register'!I99="","",'5 - Unmit. Risk Register'!I99) ->  | BA141: =IF('5 - Unmit. Risk Register'!J99="","",'5 - Unmit. Risk Register'!J99) -> 
AT142: =IF('5 - Unmit. Risk Register'!A100="","",'5 - Unmit. Risk Register'!A100) ->  | AU142: =IF('5 - Unmit. Risk Register'!B100="","",'5 - Unmit. Risk Register'!B100) ->  | AX142: =IF('5 - Unmit. Risk Register'!C100="","",'5 - Unmit. Risk Register'!C100) ->  | AY142: =IF('5 - Unmit. Risk Register'!H100="","",'5 - Unmit. Risk Register'!H100) ->  | AZ142: =IF('5 - Unmit. Risk Register'!I100="","",'5 - Unmit. Risk Register'!I100) ->  | BA142: =IF('5 - Unmit. Risk Register'!J100="","",'5 - Unmit. Risk Register'!J100) -> 
AT143: =IF('5 - Unmit. Risk Register'!A101="","",'5 - Unmit. Risk Register'!A101) ->  | AU143: =IF('5 - Unmit. Risk Register'!B101="","",'5 - Unmit. Risk Register'!B101) ->  | AX143: =IF('5 - Unmit. Risk Register'!C101="","",'5 - Unmit. Risk Register'!C101) ->  | AY143: =IF('5 - Unmit. Risk Register'!H101="","",'5 - Unmit. Risk Register'!H101) ->  | AZ143: =IF('5 - Unmit. Risk Register'!I101="","",'5 - Unmit. Risk Register'!I101) ->  | BA143: =IF('5 - Unmit. Risk Register'!J101="","",'5 - Unmit. Risk Register'!J101) -> 
AT144: =IF('5 - Unmit. Risk Register'!A102="","",'5 - Unmit. Risk Register'!A102) ->  | AU144: =IF('5 - Unmit. Risk Register'!B102="","",'5 - Unmit. Risk Register'!B102) ->  | AX144: =IF('5 - Unmit. Risk Register'!C102="","",'5 - Unmit. Risk Register'!C102) ->  | AY144: =IF('5 - Unmit. Risk Register'!H102="","",'5 - Unmit. Risk Register'!H102) ->  | AZ144: =IF('5 - Unmit. Risk Register'!I102="","",'5 - Unmit. Risk Register'!I102) ->  | BA144: =IF('5 - Unmit. Risk Register'!J102="","",'5 - Unmit. Risk Register'!J102) -> 
AT145: =IF('5 - Unmit. Risk Register'!A103="","",'5 - Unmit. Risk Register'!A103) ->  | AU145: =IF('5 - Unmit. Risk Register'!B103="","",'5 - Unmit. Risk Register'!B103) ->  | AX145: =IF('5 - Unmit. Risk Register'!C103="","",'5 - Unmit. Risk Register'!C103) ->  | AY145: =IF('5 - Unmit. Risk Register'!H103="","",'5 - Unmit. Risk Register'!H103) ->  | AZ145: =IF('5 - Unmit. Risk Register'!I103="","",'5 - Unmit. Risk Register'!I103) ->  | BA145: =IF('5 - Unmit. Risk Register'!J103="","",'5 - Unmit. Risk Register'!J103) -> 
AT146: =IF('5 - Unmit. Risk Register'!A104="","",'5 - Unmit. Risk Register'!A104) ->  | AU146: =IF('5 - Unmit. Risk Register'!B104="","",'5 - Unmit. Risk Register'!B104) ->  | AX146: =IF('5 - Unmit. Risk Register'!C104="","",'5 - Unmit. Risk Register'!C104) ->  | AY146: =IF('5 - Unmit. Risk Register'!H104="","",'5 - Unmit. Risk Register'!H104) ->  | AZ146: =IF('5 - Unmit. Risk Register'!I104="","",'5 - Unmit. Risk Register'!I104) ->  | BA146: =IF('5 - Unmit. Risk Register'!J104="","",'5 - Unmit. Risk Register'!J104) -> 
AT149: MITIGATED RISK REGISTER
AT150: Risk Label | AU150: Risk Description | AV150: Risk Type | AW150: Mean Severity Value (YOE $M) | AX150: Mitigated Mean Severity Value (YOE $M) | AY150: Percent Change in Mean Severity Value | AZ150: Percent of Total Mitigated Severity Value | BA150: Mean Severity Ranking
AT155: =IF('10 - Mit. Risk Register'!A5="","",'10 - Mit. Risk Register'!A5) -> RR-8 | AU155: =IF('10 - Mit. Risk Register'!B5="","",'10 - Mit. Risk Register'!B5) -> QDOT helps City pay for water and sewer-line relocation | AV155: =IF('10 - Mit. Risk Register'!C5="","",'10 - Mit. Risk Register'!C5) -> Threat | AW155: =IF('10 - Mit. Risk Register'!H5="", "", '10 - Mit. Risk Register'!H5) -> 0.9493744066 | AX155: =IF('10 - Mit. Risk Register'!H5="","",'10 - Mit. Risk Register'!H5) -> 0.9493744066 | AY155: =IFERROR(IF(AX155="","",(AX155-AW155)/ABS(AW155)),0) -> 0 | AZ155: =IF('10 - Mit. Risk Register'!I5="","",'10 - Mit. Risk Register'!I5) -> 0.1557216378 | BA155: =IF('10 - Mit. Risk Register'!J5="","",'10 - Mit. Risk Register'!J5) -> 1
AT156: =IF('10 - Mit. Risk Register'!A6="","",'10 - Mit. Risk Register'!A6) -> PR-1 | AU156: =IF('10 - Mit. Risk Register'!B6="","",'10 - Mit. Risk Register'!B6) -> Uncertainty in construction-cost inflation rate | AV156: =IF('10 - Mit. Risk Register'!C6="","",'10 - Mit. Risk Register'!C6) -> Threat | AW156: =IF('10 - Mit. Risk Register'!H6="", "", '10 - Mit. Risk Register'!H6) -> 0.6171633936 | AX156: =IF('10 - Mit. Risk Register'!H6="","",'10 - Mit. Risk Register'!H6) -> 0.6171633936 | AY156: =IFERROR(IF(AX156="","",(AX156-AW156)/ABS(AW156)),0) -> 0 | AZ156: =IF('10 - Mit. Risk Register'!I6="","",'10 - Mit. Risk Register'!I6) -> 0.1012305512 | BA156: =IF('10 - Mit. Risk Register'!J6="","",'10 - Mit. Risk Register'!J6) -> 2
AT157: =IF('10 - Mit. Risk Register'!A7="","",'10 - Mit. Risk Register'!A7) -> RR-1 | AU157: =IF('10 - Mit. Risk Register'!B7="","",'10 - Mit. Risk Register'!B7) -> Uncertainty in ROW inflation rate | AV157: =IF('10 - Mit. Risk Register'!C7="","",'10 - Mit. Risk Register'!C7) -> Threat | AW157: =IF('10 - Mit. Risk Register'!H7="", "", '10 - Mit. Risk Register'!H7) -> 0.6036484666 | AX157: =IF('10 - Mit. Risk Register'!H7="","",'10 - Mit. Risk Register'!H7) -> 0.6036484666 | AY157: 0 | AZ157: =IF('10 - Mit. Risk Register'!I7="","",'10 - Mit. Risk Register'!I7) -> 0.09901375814 | BA157: =IF('10 - Mit. Risk Register'!J7="","",'10 - Mit. Risk Register'!J7) -> 3
AT158: =IF('10 - Mit. Risk Register'!A8="","",'10 - Mit. Risk Register'!A8) -> PD-13 | AU158: =IF('10 - Mit. Risk Register'!B8="","",'10 - Mit. Risk Register'!B8) -> Change in environmental documentation. | AV158: =IF('10 - Mit. Risk Register'!C8="","",'10 - Mit. Risk Register'!C8) -> Threat | AW158: =IF('10 - Mit. Risk Register'!H8="", "", '10 - Mit. Risk Register'!H8) -> 0.3794902688 | AX158: =IF('10 - Mit. Risk Register'!H8="","",'10 - Mit. Risk Register'!H8) -> 0.3794902688 | AY158: 0 | AZ158: =IF('10 - Mit. Risk Register'!I8="","",'10 - Mit. Risk Register'!I8) -> 0.0622460915 | BA158: =IF('10 - Mit. Risk Register'!J8="","",'10 - Mit. Risk Register'!J8) -> 4
AT159: =IF('10 - Mit. Risk Register'!A9="","",'10 - Mit. Risk Register'!A9) -> PR-2 | AU159: =IF('10 - Mit. Risk Register'!B9="","",'10 - Mit. Risk Register'!B9) -> Uncertain Design/Build contracting market conditions at time of bid | AV159: =IF('10 - Mit. Risk Register'!C9="","",'10 - Mit. Risk Register'!C9) -> Threat | AW159: =IF('10 - Mit. Risk Register'!H9="", "", '10 - Mit. Risk Register'!H9) -> 0.3753535137 | AX159: =IF('10 - Mit. Risk Register'!H9="","",'10 - Mit. Risk Register'!H9) -> 0.3753535137 | AY159: 0 | AZ159: =IF('10 - Mit. Risk Register'!I9="","",'10 - Mit. Risk Register'!I9) -> 0.06156755808 | BA159: =IF('10 - Mit. Risk Register'!J9="","",'10 - Mit. Risk Register'!J9) -> 5
AT160: =IF('10 - Mit. Risk Register'!A10="","",'10 - Mit. Risk Register'!A10) -> SC-6 | AU160: =IF('10 - Mit. Risk Register'!B10="","",'10 - Mit. Risk Register'!B10) -> Provide new lighting throughout project. | AV160: =IF('10 - Mit. Risk Register'!C10="","",'10 - Mit. Risk Register'!C10) -> Threat | AW160: =IF('10 - Mit. Risk Register'!H10="", "", '10 - Mit. Risk Register'!H10) -> 0.3085816968 | AX160: =IF('10 - Mit. Risk Register'!H10="","",'10 - Mit. Risk Register'!H10) -> 0.3085816968 | AY160: 0 | AZ160: =IF('10 - Mit. Risk Register'!I10="","",'10 - Mit. Risk Register'!I10) -> 0.05061527558 | BA160: =IF('10 - Mit. Risk Register'!J10="","",'10 - Mit. Risk Register'!J10) -> 6
AT161: =IF('10 - Mit. Risk Register'!A11="","",'10 - Mit. Risk Register'!A11) -> RR-3 | AU161: =IF('10 - Mit. Risk Register'!B11="","",'10 - Mit. Risk Register'!B11) -> Unwilling sellers | AV161: =IF('10 - Mit. Risk Register'!C11="","",'10 - Mit. Risk Register'!C11) -> Threat | AW161: =IF('10 - Mit. Risk Register'!H11="", "", '10 - Mit. Risk Register'!H11) -> 0.3018242333 | AX161: =IF('10 - Mit. Risk Register'!H11="","",'10 - Mit. Risk Register'!H11) -> 0.3018242333 | AY161: 0 | AZ161: =IF('10 - Mit. Risk Register'!I11="","",'10 - Mit. Risk Register'!I11) -> 0.04950687907 | BA161: =IF('10 - Mit. Risk Register'!J11="","",'10 - Mit. Risk Register'!J11) -> 7
AT162: =IF('10 - Mit. Risk Register'!A12="","",'10 - Mit. Risk Register'!A12) -> RR-2 | AU162: =IF('10 - Mit. Risk Register'!B12="","",'10 - Mit. Risk Register'!B12) -> Accelerating pace of development in interchange area | AV162: =IF('10 - Mit. Risk Register'!C12="","",'10 - Mit. Risk Register'!C12) -> Threat | AW162: =IF('10 - Mit. Risk Register'!H12="", "", '10 - Mit. Risk Register'!H12) -> 0.2558303453 | AX162: =IF('10 - Mit. Risk Register'!H12="","",'10 - Mit. Risk Register'!H12) -> 0.2558303453 | AY162: 0 | AZ162: =IF('10 - Mit. Risk Register'!I12="","",'10 - Mit. Risk Register'!I12) -> 0.04196270733 | BA162: =IF('10 - Mit. Risk Register'!J12="","",'10 - Mit. Risk Register'!J12) -> 8
AT163: =IF('10 - Mit. Risk Register'!A13="","",'10 - Mit. Risk Register'!A13) -> PD-12 | AU163: =IF('10 - Mit. Risk Register'!B13="","",'10 - Mit. Risk Register'!B13) -> Structures impacted by Main Street realignment are eligible for Historic Register. | AV163: =IF('10 - Mit. Risk Register'!C13="","",'10 - Mit. Risk Register'!C13) -> Threat | AW163: =IF('10 - Mit. Risk Register'!H13="", "", '10 - Mit. Risk Register'!H13) -> 0.2131648826 | AX163: =IF('10 - Mit. Risk Register'!H13="","",'10 - Mit. Risk Register'!H13) -> 0.2131648826 | AY163: 0 | AZ163: =IF('10 - Mit. Risk Register'!I13="","",'10 - Mit. Risk Register'!I13) -> 0.03496448231 | BA163: =IF('10 - Mit. Risk Register'!J13="","",'10 - Mit. Risk Register'!J13) -> 9
AT164: =IF('10 - Mit. Risk Register'!A14="","",'10 - Mit. Risk Register'!A14) -> CR-4 | AU164: =IF('10 - Mit. Risk Register'!B14="","",'10 - Mit. Risk Register'!B14) -> Unable to construct interchange embankments as rapidly as assumed | AV164: =IF('10 - Mit. Risk Register'!C14="","",'10 - Mit. Risk Register'!C14) -> Threat | AW164: =IF('10 - Mit. Risk Register'!H14="", "", '10 - Mit. Risk Register'!H14) -> 0.1956141009 | AX164: =IF('10 - Mit. Risk Register'!H14="","",'10 - Mit. Risk Register'!H14) -> 0.1956141009 | AY164: 0 | AZ164: =IF('10 - Mit. Risk Register'!I14="","",'10 - Mit. Risk Register'!I14) -> 0.03208570607 | BA164: =IF('10 - Mit. Risk Register'!J14="","",'10 - Mit. Risk Register'!J14) -> 10
AT165: =IF('10 - Mit. Risk Register'!A15="","",'10 - Mit. Risk Register'!A15) -> PD-11 | AU165: =IF('10 - Mit. Risk Register'!B15="","",'10 - Mit. Risk Register'!B15) -> Cannot use City sewer system for project runoff (or City charges for use). | AV165: =IF('10 - Mit. Risk Register'!C15="","",'10 - Mit. Risk Register'!C15) -> Threat | AW165: =IF('10 - Mit. Risk Register'!H15="", "", '10 - Mit. Risk Register'!H15) -> 0.1874231159 | AX165: =IF('10 - Mit. Risk Register'!H15="","",'10 - Mit. Risk Register'!H15) -> 0.1874231159 | AY165: 0 | AZ165: =IF('10 - Mit. Risk Register'!I15="","",'10 - Mit. Risk Register'!I15) -> 0.03074217545 | BA165: =IF('10 - Mit. Risk Register'!J15="","",'10 - Mit. Risk Register'!J15) -> 11
AT166: =IF('10 - Mit. Risk Register'!A16="","",'10 - Mit. Risk Register'!A16) -> PD-14 | AU166: =IF('10 - Mit. Risk Register'!B16="","",'10 - Mit. Risk Register'!B16) -> Delays completing environmental documentation. | AV166: =IF('10 - Mit. Risk Register'!C16="","",'10 - Mit. Risk Register'!C16) -> Threat | AW166: =IF('10 - Mit. Risk Register'!H16="", "", '10 - Mit. Risk Register'!H16) -> 0.1844122722 | AX166: =IF('10 - Mit. Risk Register'!H16="","",'10 - Mit. Risk Register'!H16) -> 0.1844122722 | AY166: 0 | AZ166: =IF('10 - Mit. Risk Register'!I16="","",'10 - Mit. Risk Register'!I16) -> 0.03024832022 | BA166: =IF('10 - Mit. Risk Register'!J16="","",'10 - Mit. Risk Register'!J16) -> 12
AT167: =IF('10 - Mit. Risk Register'!A17="","",'10 - Mit. Risk Register'!A17) -> PD-4 | AU167: =IF('10 - Mit. Risk Register'!B17="","",'10 - Mit. Risk Register'!B17) -> Ground improvement required in interchange area. | AV167: =IF('10 - Mit. Risk Register'!C17="","",'10 - Mit. Risk Register'!C17) -> Threat | AW167: =IF('10 - Mit. Risk Register'!H17="", "", '10 - Mit. Risk Register'!H17) -> 0.1693302015 | AX167: =IF('10 - Mit. Risk Register'!H17="","",'10 - Mit. Risk Register'!H17) -> 0.1693302015 | AY167: 0 | AZ167: =IF('10 - Mit. Risk Register'!I17="","",'10 - Mit. Risk Register'!I17) -> 0.02777447561 | BA167: =IF('10 - Mit. Risk Register'!J17="","",'10 - Mit. Risk Register'!J17) -> 13
AT168: =IF('10 - Mit. Risk Register'!A18="","",'10 - Mit. Risk Register'!A18) -> CR-3 | AU168: =IF('10 - Mit. Risk Register'!B18="","",'10 - Mit. Risk Register'!B18) -> Problems with planned accelerated bridge construction (ABC) technique | AV168: =IF('10 - Mit. Risk Register'!C18="","",'10 - Mit. Risk Register'!C18) -> Threat | AW168: =IF('10 - Mit. Risk Register'!H18="", "", '10 - Mit. Risk Register'!H18) -> 0.1667996458 | AX168: =IF('10 - Mit. Risk Register'!H18="","",'10 - Mit. Risk Register'!H18) -> 0.1667996458 | AY168: 0 | AZ168: =IF('10 - Mit. Risk Register'!I18="","",'10 - Mit. Risk Register'!I18) -> 0.02735939989 | BA168: =IF('10 - Mit. Risk Register'!J18="","",'10 - Mit. Risk Register'!J18) -> 14
AT169: =IF('10 - Mit. Risk Register'!A19="","",'10 - Mit. Risk Register'!A19) -> CR-2 | AU169: =IF('10 - Mit. Risk Register'!B19="","",'10 - Mit. Risk Register'!B19) -> Additional Maintenance of Traffic required | AV169: =IF('10 - Mit. Risk Register'!C19="","",'10 - Mit. Risk Register'!C19) -> Threat | AW169: =IF('10 - Mit. Risk Register'!H19="", "", '10 - Mit. Risk Register'!H19) -> 0.1610203983 | AX169: =IF('10 - Mit. Risk Register'!H19="","",'10 - Mit. Risk Register'!H19) -> 0.1610203983 | AY169: 0 | AZ169: =IF('10 - Mit. Risk Register'!I19="","",'10 - Mit. Risk Register'!I19) -> 0.02641145577 | BA169: =IF('10 - Mit. Risk Register'!J19="","",'10 - Mit. Risk Register'!J19) -> 15
AT170: =IF('10 - Mit. Risk Register'!A20="","",'10 - Mit. Risk Register'!A20) -> SC-3 | AU170: =IF('10 - Mit. Risk Register'!B20="","",'10 - Mit. Risk Register'!B20) -> Additional local improvements required. | AV170: =IF('10 - Mit. Risk Register'!C20="","",'10 - Mit. Risk Register'!C20) -> Threat | AW170: =IF('10 - Mit. Risk Register'!H20="", "", '10 - Mit. Risk Register'!H20) -> 0.158282161 | AX170: =IF('10 - Mit. Risk Register'!H20="","",'10 - Mit. Risk Register'!H20) -> 0.158282161 | AY170: 0 | AZ170: =IF('10 - Mit. Risk Register'!I20="","",'10 - Mit. Risk Register'!I20) -> 0.02596231494 | BA170: =IF('10 - Mit. Risk Register'!J20="","",'10 - Mit. Risk Register'!J20) -> 16
AT171: =IF('10 - Mit. Risk Register'!A21="","",'10 - Mit. Risk Register'!A21) -> SC-5 | AU171: =IF('10 - Mit. Risk Register'!B21="","",'10 - Mit. Risk Register'!B21) -> Replace culvert over Wandering Creek. | AV171: =IF('10 - Mit. Risk Register'!C21="","",'10 - Mit. Risk Register'!C21) -> Threat | AW171: =IF('10 - Mit. Risk Register'!H21="", "", '10 - Mit. Risk Register'!H21) -> 0.1122115261 | AX171: =IF('10 - Mit. Risk Register'!H21="","",'10 - Mit. Risk Register'!H21) -> 0.1122115261 | AY171: 0 | AZ171: =IF('10 - Mit. Risk Register'!I21="","",'10 - Mit. Risk Register'!I21) -> 0.01840555476 | BA171: =IF('10 - Mit. Risk Register'!J21="","",'10 - Mit. Risk Register'!J21) -> 17
AT172: =IF('10 - Mit. Risk Register'!A22="","",'10 - Mit. Risk Register'!A22) -> PD-16 | AU172: =IF('10 - Mit. Risk Register'!B22="","",'10 - Mit. Risk Register'!B22) -> Additional wetland mitigation required for planned alignment. | AV172: =IF('10 - Mit. Risk Register'!C22="","",'10 - Mit. Risk Register'!C22) -> Threat | AW172: =IF('10 - Mit. Risk Register'!H22="", "", '10 - Mit. Risk Register'!H22) -> 0.1122115261 | AX172: =IF('10 - Mit. Risk Register'!H22="","",'10 - Mit. Risk Register'!H22) -> 0.1122115261 | AY172: 0 | AZ172: =IF('10 - Mit. Risk Register'!I22="","",'10 - Mit. Risk Register'!I22) -> 0.01840555476 | BA172: =IF('10 - Mit. Risk Register'!J22="","",'10 - Mit. Risk Register'!J22) -> 18
AT173: =IF('10 - Mit. Risk Register'!A23="","",'10 - Mit. Risk Register'!A23) -> RR-7 | AU173: =IF('10 - Mit. Risk Register'!B23="","",'10 - Mit. Risk Register'!B23) -> Telecom utility wants a cost-sharing agreement | AV173: =IF('10 - Mit. Risk Register'!C23="","",'10 - Mit. Risk Register'!C23) -> Threat | AW173: =IF('10 - Mit. Risk Register'!H23="", "", '10 - Mit. Risk Register'!H23) -> 0.1097542667 | AX173: =IF('10 - Mit. Risk Register'!H23="","",'10 - Mit. Risk Register'!H23) -> 0.1097542667 | AY173: 0 | AZ173: =IF('10 - Mit. Risk Register'!I23="","",'10 - Mit. Risk Register'!I23) -> 0.01800250148 | BA173: =IF('10 - Mit. Risk Register'!J23="","",'10 - Mit. Risk Register'!J23) -> 19
AT174: =IF('10 - Mit. Risk Register'!A24="","",'10 - Mit. Risk Register'!A24) -> PD-5 | AU174: =IF('10 - Mit. Risk Register'!B24="","",'10 - Mit. Risk Register'!B24) -> Shoulders required on US-555. | AV174: =IF('10 - Mit. Risk Register'!C24="","",'10 - Mit. Risk Register'!C24) -> Threat | AW174: =IF('10 - Mit. Risk Register'!H24="", "", '10 - Mit. Risk Register'!H24) -> 0.09804962471 | AX174: =IF('10 - Mit. Risk Register'!H24="","",'10 - Mit. Risk Register'!H24) -> 0.09804962471 | AY174: 0 | AZ174: =IF('10 - Mit. Risk Register'!I24="","",'10 - Mit. Risk Register'!I24) -> 0.01608264141 | BA174: =IF('10 - Mit. Risk Register'!J24="","",'10 - Mit. Risk Register'!J24) -> 20
AT175: =IF('10 - Mit. Risk Register'!A25="","",'10 - Mit. Risk Register'!A25) -> PD-6 | AU175: =IF('10 - Mit. Risk Register'!B25="","",'10 - Mit. Risk Register'!B25) -> Shoulders required on SH-111. | AV175: =IF('10 - Mit. Risk Register'!C25="","",'10 - Mit. Risk Register'!C25) -> Threat | AW175: =IF('10 - Mit. Risk Register'!H25="", "", '10 - Mit. Risk Register'!H25) -> 0.09804962471 | AX175: =IF('10 - Mit. Risk Register'!H25="","",'10 - Mit. Risk Register'!H25) -> 0.09804962471 | AY175: 0 | AZ175: =IF('10 - Mit. Risk Register'!I25="","",'10 - Mit. Risk Register'!I25) -> 0.01608264141 | BA175: =IF('10 - Mit. Risk Register'!J25="","",'10 - Mit. Risk Register'!J25) -> 21
AT176: =IF('10 - Mit. Risk Register'!A26="","",'10 - Mit. Risk Register'!A26) -> CR-5 | AU176: =IF('10 - Mit. Risk Register'!B26="","",'10 - Mit. Risk Register'!B26) -> Difficult foundation installation | AV176: =IF('10 - Mit. Risk Register'!C26="","",'10 - Mit. Risk Register'!C26) -> Threat | AW176: =IF('10 - Mit. Risk Register'!H26="", "", '10 - Mit. Risk Register'!H26) -> 0.07580259964 | AX176: =IF('10 - Mit. Risk Register'!H26="","",'10 - Mit. Risk Register'!H26) -> 0.07580259964 | AY176: 0 | AZ176: =IF('10 - Mit. Risk Register'!I26="","",'10 - Mit. Risk Register'!I26) -> 0.01243356139 | BA176: =IF('10 - Mit. Risk Register'!J26="","",'10 - Mit. Risk Register'!J26) -> 22
AT177: =IF('10 - Mit. Risk Register'!A27="","",'10 - Mit. Risk Register'!A27) -> EP-2 | AU177: =IF('10 - Mit. Risk Register'!B27="","",'10 - Mit. Risk Register'!B27) -> Delay obtaining the 404 permit | AV177: =IF('10 - Mit. Risk Register'!C27="","",'10 - Mit. Risk Register'!C27) -> Threat | AW177: =IF('10 - Mit. Risk Register'!H27="", "", '10 - Mit. Risk Register'!H27) -> 0.07345163098 | AX177: =IF('10 - Mit. Risk Register'!H27="","",'10 - Mit. Risk Register'!H27) -> 0.07345163098 | AY177: 0 | AZ177: =IF('10 - Mit. Risk Register'!I27="","",'10 - Mit. Risk Register'!I27) -> 0.01204794251 | BA177: =IF('10 - Mit. Risk Register'!J27="","",'10 - Mit. Risk Register'!J27) -> 23
AT178: =IF('10 - Mit. Risk Register'!A28="","",'10 - Mit. Risk Register'!A28) -> RR-6 | AU178: =IF('10 - Mit. Risk Register'!B28="","",'10 - Mit. Risk Register'!B28) -> Other delays to ROW planning | AV178: =IF('10 - Mit. Risk Register'!C28="","",'10 - Mit. Risk Register'!C28) -> Threat | AW178: =IF('10 - Mit. Risk Register'!H28="", "", '10 - Mit. Risk Register'!H28) -> 0.04551272401 | AX178: =IF('10 - Mit. Risk Register'!H28="","",'10 - Mit. Risk Register'!H28) -> 0.04551272401 | AY178: 0 | AZ178: =IF('10 - Mit. Risk Register'!I28="","",'10 - Mit. Risk Register'!I28) -> 0.007465248561 | BA178: =IF('10 - Mit. Risk Register'!J28="","",'10 - Mit. Risk Register'!J28) -> 24
AT179: =IF('10 - Mit. Risk Register'!A29="","",'10 - Mit. Risk Register'!A29) -> PD-1 | AU179: =IF('10 - Mit. Risk Register'!B29="","",'10 - Mit. Risk Register'!B29) -> Shift alignment of US 555 at east end of project | AV179: =IF('10 - Mit. Risk Register'!C29="","",'10 - Mit. Risk Register'!C29) -> Threat | AW179: =IF('10 - Mit. Risk Register'!H29="", "", '10 - Mit. Risk Register'!H29) -> 0.04261132731 | AX179: =IF('10 - Mit. Risk Register'!H29="","",'10 - Mit. Risk Register'!H29) -> 0.04261132731 | AY179: 0 | AZ179: =IF('10 - Mit. Risk Register'!I29="","",'10 - Mit. Risk Register'!I29) -> 0.006989345438 | BA179: =IF('10 - Mit. Risk Register'!J29="","",'10 - Mit. Risk Register'!J29) -> 25
AT180: =IF('10 - Mit. Risk Register'!A30="","",'10 - Mit. Risk Register'!A30) -> PD-15 | AU180: =IF('10 - Mit. Risk Register'!B30="","",'10 - Mit. Risk Register'!B30) -> Encounter unanticipated contamination in interchange area. | AV180: =IF('10 - Mit. Risk Register'!C30="","",'10 - Mit. Risk Register'!C30) -> Threat | AW180: =IF('10 - Mit. Risk Register'!H30="", "", '10 - Mit. Risk Register'!H30) -> 0.03206043603 | AX180: =IF('10 - Mit. Risk Register'!H30="","",'10 - Mit. Risk Register'!H30) -> 0.03206043603 | AY180: 0 | AZ180: =IF('10 - Mit. Risk Register'!I30="","",'10 - Mit. Risk Register'!I30) -> 0.00525872993 | BA180: =IF('10 - Mit. Risk Register'!J30="","",'10 - Mit. Risk Register'!J30) -> 26
AT181: =IF('10 - Mit. Risk Register'!A31="","",'10 - Mit. Risk Register'!A31) -> CR-9 | AU181: =IF('10 - Mit. Risk Register'!B31="","",'10 - Mit. Risk Register'!B31) -> Limited construction staging area in vicinity of interchange | AV181: =IF('10 - Mit. Risk Register'!C31="","",'10 - Mit. Risk Register'!C31) -> Threat | AW181: =IF('10 - Mit. Risk Register'!H31="", "", '10 - Mit. Risk Register'!H31) -> 0.03206043603 | AX181: =IF('10 - Mit. Risk Register'!H31="","",'10 - Mit. Risk Register'!H31) -> 0.03206043603 | AY181: 0 | AZ181: =IF('10 - Mit. Risk Register'!I31="","",'10 - Mit. Risk Register'!I31) -> 0.00525872993 | BA181: =IF('10 - Mit. Risk Register'!J31="","",'10 - Mit. Risk Register'!J31) -> 27
AT182: =IF('10 - Mit. Risk Register'!A32="","",'10 - Mit. Risk Register'!A32) -> PR-8 | AU182: =IF('10 - Mit. Risk Register'!B32="","",'10 - Mit. Risk Register'!B32) -> Other problems with D/B contract procurement | AV182: =IF('10 - Mit. Risk Register'!C32="","",'10 - Mit. Risk Register'!C32) -> Threat | AW182: =IF('10 - Mit. Risk Register'!H32="", "", '10 - Mit. Risk Register'!H32) -> 0.01835752192 | AX182: =IF('10 - Mit. Risk Register'!H32="","",'10 - Mit. Risk Register'!H32) -> 0.01835752192 | AY182: 0 | AZ182: =IF('10 - Mit. Risk Register'!I32="","",'10 - Mit. Risk Register'!I32) -> 0.003011102216 | BA182: =IF('10 - Mit. Risk Register'!J32="","",'10 - Mit. Risk Register'!J32) -> 28
AT183: =IF('10 - Mit. Risk Register'!A33="","",'10 - Mit. Risk Register'!A33) -> PL-2 | AU183: =IF('10 - Mit. Risk Register'!B33="","",'10 - Mit. Risk Register'!B33) -> Opposition to removing access to US-555 fro 12th St. | AV183: =IF('10 - Mit. Risk Register'!C33="","",'10 - Mit. Risk Register'!C33) -> Threat | AW183: =IF('10 - Mit. Risk Register'!H33="", "", '10 - Mit. Risk Register'!H33) -> 0.01335851501 | AX183: =IF('10 - Mit. Risk Register'!H33="","",'10 - Mit. Risk Register'!H33) -> 0.01335851501 | AY183: 0 | AZ183: =IF('10 - Mit. Risk Register'!I33="","",'10 - Mit. Risk Register'!I33) -> 0.002191137471 | BA183: =IF('10 - Mit. Risk Register'!J33="","",'10 - Mit. Risk Register'!J33) -> 29
AT184: =IF('10 - Mit. Risk Register'!A34="","",'10 - Mit. Risk Register'!A34) -> CR-7 | AU184: =IF('10 - Mit. Risk Register'!B34="","",'10 - Mit. Risk Register'!B34) -> Colder-than-usual winter | AV184: =IF('10 - Mit. Risk Register'!C34="","",'10 - Mit. Risk Register'!C34) -> Threat | AW184: =IF('10 - Mit. Risk Register'!H34="", "", '10 - Mit. Risk Register'!H34) -> 0.005807143748 | AX184: =IF('10 - Mit. Risk Register'!H34="","",'10 - Mit. Risk Register'!H34) -> 0.005807143748 | AY184: 0 | AZ184: =IF('10 - Mit. Risk Register'!I34="","",'10 - Mit. Risk Register'!I34) -> 0.0009525198163 | BA184: =IF('10 - Mit. Risk Register'!J34="","",'10 - Mit. Risk Register'!J34) -> 30
AT185: =IF('10 - Mit. Risk Register'!A35="","",'10 - Mit. Risk Register'!A35) -> CR-1 | AU185: =IF('10 - Mit. Risk Register'!B35="","",'10 - Mit. Risk Register'!B35) -> D/B construction phasing significantly different than assumed | AV185: =IF('10 - Mit. Risk Register'!C35="","",'10 - Mit. Risk Register'!C35) -> Opportunity | AW185: =IF('10 - Mit. Risk Register'!H35="", "", '10 - Mit. Risk Register'!H35) -> -0.4356660896 | AX185: =IF('10 - Mit. Risk Register'!H35="","",'10 - Mit. Risk Register'!H35) -> -0.4356660896 | AY185: 0 | AZ185: =IF('10 - Mit. Risk Register'!I35="","",'10 - Mit. Risk Register'!I35) -> 0.5641146094 | BA185: =IF('10 - Mit. Risk Register'!J35="","",'10 - Mit. Risk Register'!J35) -> 1
AT186: =IF('10 - Mit. Risk Register'!A36="","",'10 - Mit. Risk Register'!A36) -> PD-8 | AU186: =IF('10 - Mit. Risk Register'!B36="","",'10 - Mit. Risk Register'!B36) -> Change in pavement section and/or type. | AV186: =IF('10 - Mit. Risk Register'!C36="","",'10 - Mit. Risk Register'!C36) -> Opportunity | AW186: =IF('10 - Mit. Risk Register'!H36="", "", '10 - Mit. Risk Register'!H36) -> -0.3366345783 | AX186: =IF('10 - Mit. Risk Register'!H36="","",'10 - Mit. Risk Register'!H36) -> -0.3366345783 | AY186: 0 | AZ186: =IF('10 - Mit. Risk Register'!I36="","",'10 - Mit. Risk Register'!I36) -> 0.4358853906 | BA186: =IF('10 - Mit. Risk Register'!J36="","",'10 - Mit. Risk Register'!J36) -> 2
AT187: =IF('10 - Mit. Risk Register'!A37="","",'10 - Mit. Risk Register'!A37) -> PL-1 | AU187: =IF('10 - Mit. Risk Register'!B37="","",'10 - Mit. Risk Register'!B37) -> Project funding delayed or reduced. | AV187: =IF('10 - Mit. Risk Register'!C37="","",'10 - Mit. Risk Register'!C37) -> No Impact | AW187: =IF('10 - Mit. Risk Register'!H37="", "", '10 - Mit. Risk Register'!H37) -> 0 | AX187: =IF('10 - Mit. Risk Register'!H37="","",'10 - Mit. Risk Register'!H37) -> 0 | AY187: 0 | AZ187: =IF('10 - Mit. Risk Register'!I37="","",'10 - Mit. Risk Register'!I37) -> 0 | BA187: =IF('10 - Mit. Risk Register'!J37="","",'10 - Mit. Risk Register'!J37) -> 
AT188: =IF('10 - Mit. Risk Register'!A38="","",'10 - Mit. Risk Register'!A38) -> PL-3 | AU188: =IF('10 - Mit. Risk Register'!B38="","",'10 - Mit. Risk Register'!B38) -> Opposition to "splitting" alignment of SH-111 in the interchange area. | AV188: =IF('10 - Mit. Risk Register'!C38="","",'10 - Mit. Risk Register'!C38) -> No Impact | AW188: =IF('10 - Mit. Risk Register'!H38="", "", '10 - Mit. Risk Register'!H38) -> 0 | AX188: =IF('10 - Mit. Risk Register'!H38="","",'10 - Mit. Risk Register'!H38) -> 0 | AY188: 0 | AZ188: =IF('10 - Mit. Risk Register'!I38="","",'10 - Mit. Risk Register'!I38) -> 0 | BA188: =IF('10 - Mit. Risk Register'!J38="","",'10 - Mit. Risk Register'!J38) -> 
AT189: =IF('10 - Mit. Risk Register'!A39="","",'10 - Mit. Risk Register'!A39) -> PL-4 | AU189: =IF('10 - Mit. Risk Register'!B39="","",'10 - Mit. Risk Register'!B39) -> Other stakeholder issues not captured separately. | AV189: =IF('10 - Mit. Risk Register'!C39="","",'10 - Mit. Risk Register'!C39) -> No Impact | AW189: =IF('10 - Mit. Risk Register'!H39="", "", '10 - Mit. Risk Register'!H39) -> 0 | AX189: =IF('10 - Mit. Risk Register'!H39="","",'10 - Mit. Risk Register'!H39) -> 0 | AY189: 0 | AZ189: =IF('10 - Mit. Risk Register'!I39="","",'10 - Mit. Risk Register'!I39) -> 0 | BA189: =IF('10 - Mit. Risk Register'!J39="","",'10 - Mit. Risk Register'!J39) -> 
AT190: =IF('10 - Mit. Risk Register'!A40="","",'10 - Mit. Risk Register'!A40) -> SC-1 | AU190: =IF('10 - Mit. Risk Register'!B40="","",'10 - Mit. Risk Register'!B40) -> Change in East-West project limits. | AV190: =IF('10 - Mit. Risk Register'!C40="","",'10 - Mit. Risk Register'!C40) -> No Impact | AW190: =IF('10 - Mit. Risk Register'!H40="", "", '10 - Mit. Risk Register'!H40) -> 0 | AX190: =IF('10 - Mit. Risk Register'!H40="","",'10 - Mit. Risk Register'!H40) -> 0 | AY190: 0 | AZ190: =IF('10 - Mit. Risk Register'!I40="","",'10 - Mit. Risk Register'!I40) -> 0 | BA190: =IF('10 - Mit. Risk Register'!J40="","",'10 - Mit. Risk Register'!J40) -> 
AT191: =IF('10 - Mit. Risk Register'!A41="","",'10 - Mit. Risk Register'!A41) -> SC-2 | AU191: =IF('10 - Mit. Risk Register'!B41="","",'10 - Mit. Risk Register'!B41) -> Change in North-South project limits. | AV191: =IF('10 - Mit. Risk Register'!C41="","",'10 - Mit. Risk Register'!C41) -> No Impact | AW191: =IF('10 - Mit. Risk Register'!H41="", "", '10 - Mit. Risk Register'!H41) -> 0 | AX191: =IF('10 - Mit. Risk Register'!H41="","",'10 - Mit. Risk Register'!H41) -> 0 | AY191: 0 | AZ191: =IF('10 - Mit. Risk Register'!I41="","",'10 - Mit. Risk Register'!I41) -> 0 | BA191: =IF('10 - Mit. Risk Register'!J41="","",'10 - Mit. Risk Register'!J41) -> 
AT192: =IF('10 - Mit. Risk Register'!A42="","",'10 - Mit. Risk Register'!A42) -> SC-4 | AU192: =IF('10 - Mit. Risk Register'!B42="","",'10 - Mit. Risk Register'!B42) -> Increased aestethetics for US-555/SH-111 interchange. | AV192: =IF('10 - Mit. Risk Register'!C42="","",'10 - Mit. Risk Register'!C42) -> No Impact | AW192: =IF('10 - Mit. Risk Register'!H42="", "", '10 - Mit. Risk Register'!H42) -> 0 | AX192: =IF('10 - Mit. Risk Register'!H42="","",'10 - Mit. Risk Register'!H42) -> 0 | AY192: 0 | AZ192: =IF('10 - Mit. Risk Register'!I42="","",'10 - Mit. Risk Register'!I42) -> 0 | BA192: =IF('10 - Mit. Risk Register'!J42="","",'10 - Mit. Risk Register'!J42) -> 
AT193: =IF('10 - Mit. Risk Register'!A43="","",'10 - Mit. Risk Register'!A43) -> SC-7 | AU193: =IF('10 - Mit. Risk Register'!B43="","",'10 - Mit. Risk Register'!B43) -> ITS added to this project. | AV193: =IF('10 - Mit. Risk Register'!C43="","",'10 - Mit. Risk Register'!C43) -> No Impact | AW193: =IF('10 - Mit. Risk Register'!H43="", "", '10 - Mit. Risk Register'!H43) -> 0 | AX193: =IF('10 - Mit. Risk Register'!H43="","",'10 - Mit. Risk Register'!H43) -> 0 | AY193: 0 | AZ193: =IF('10 - Mit. Risk Register'!I43="","",'10 - Mit. Risk Register'!I43) -> 0 | BA193: =IF('10 - Mit. Risk Register'!J43="","",'10 - Mit. Risk Register'!J43) -> 
AT194: =IF('10 - Mit. Risk Register'!A44="","",'10 - Mit. Risk Register'!A44) -> PD-2 | AU194: =IF('10 - Mit. Risk Register'!B44="","",'10 - Mit. Risk Register'!B44) -> Split alignment of SH-111 at US-555 interchange. | AV194: =IF('10 - Mit. Risk Register'!C44="","",'10 - Mit. Risk Register'!C44) -> No Impact | AW194: =IF('10 - Mit. Risk Register'!H44="", "", '10 - Mit. Risk Register'!H44) -> 0 | AX194: =IF('10 - Mit. Risk Register'!H44="","",'10 - Mit. Risk Register'!H44) -> 0 | AY194: 0 | AZ194: =IF('10 - Mit. Risk Register'!I44="","",'10 - Mit. Risk Register'!I44) -> 0 | BA194: =IF('10 - Mit. Risk Register'!J44="","",'10 - Mit. Risk Register'!J44) -> 
AT195: =IF('10 - Mit. Risk Register'!A45="","",'10 - Mit. Risk Register'!A45) -> PD-3 | AU195: =IF('10 - Mit. Risk Register'!B45="","",'10 - Mit. Risk Register'!B45) -> Change in configuration of SH 111 / US 555 interchange. | AV195: =IF('10 - Mit. Risk Register'!C45="","",'10 - Mit. Risk Register'!C45) -> No Impact | AW195: =IF('10 - Mit. Risk Register'!H45="", "", '10 - Mit. Risk Register'!H45) -> 0 | AX195: =IF('10 - Mit. Risk Register'!H45="","",'10 - Mit. Risk Register'!H45) -> 0 | AY195: 0 | AZ195: =IF('10 - Mit. Risk Register'!I45="","",'10 - Mit. Risk Register'!I45) -> 0 | BA195: =IF('10 - Mit. Risk Register'!J45="","",'10 - Mit. Risk Register'!J45) -> 
AT196: =IF('10 - Mit. Risk Register'!A46="","",'10 - Mit. Risk Register'!A46) -> PD-7 | AU196: =IF('10 - Mit. Risk Register'!B46="","",'10 - Mit. Risk Register'!B46) -> Additional cost for signalized intersections. | AV196: =IF('10 - Mit. Risk Register'!C46="","",'10 - Mit. Risk Register'!C46) -> No Impact | AW196: =IF('10 - Mit. Risk Register'!H46="", "", '10 - Mit. Risk Register'!H46) -> 0 | AX196: =IF('10 - Mit. Risk Register'!H46="","",'10 - Mit. Risk Register'!H46) -> 0 | AY196: 0 | AZ196: =IF('10 - Mit. Risk Register'!I46="","",'10 - Mit. Risk Register'!I46) -> 0 | BA196: =IF('10 - Mit. Risk Register'!J46="","",'10 - Mit. Risk Register'!J46) -> 
AT197: =IF('10 - Mit. Risk Register'!A47="","",'10 - Mit. Risk Register'!A47) -> PD-9 | AU197: =IF('10 - Mit. Risk Register'!B47="","",'10 - Mit. Risk Register'!B47) -> Rehabilitate instead of reconstruct existing roadway (e.g., overlay instead). | AV197: =IF('10 - Mit. Risk Register'!C47="","",'10 - Mit. Risk Register'!C47) -> No Impact | AW197: =IF('10 - Mit. Risk Register'!H47="", "", '10 - Mit. Risk Register'!H47) -> 0 | AX197: =IF('10 - Mit. Risk Register'!H47="","",'10 - Mit. Risk Register'!H47) -> 0 | AY197: 0 | AZ197: =IF('10 - Mit. Risk Register'!I47="","",'10 - Mit. Risk Register'!I47) -> 0 | BA197: =IF('10 - Mit. Risk Register'!J47="","",'10 - Mit. Risk Register'!J47) -> 
AT198: =IF('10 - Mit. Risk Register'!A48="","",'10 - Mit. Risk Register'!A48) -> PD-10 | AU198: =IF('10 - Mit. Risk Register'!B48="","",'10 - Mit. Risk Register'!B48) -> Change in stormwater design standards. | AV198: =IF('10 - Mit. Risk Register'!C48="","",'10 - Mit. Risk Register'!C48) -> No Impact | AW198: =IF('10 - Mit. Risk Register'!H48="", "", '10 - Mit. Risk Register'!H48) -> 0 | AX198: =IF('10 - Mit. Risk Register'!H48="","",'10 - Mit. Risk Register'!H48) -> 0 | AY198: 0 | AZ198: =IF('10 - Mit. Risk Register'!I48="","",'10 - Mit. Risk Register'!I48) -> 0 | BA198: =IF('10 - Mit. Risk Register'!J48="","",'10 - Mit. Risk Register'!J48) -> 
AT199: =IF('10 - Mit. Risk Register'!A49="","",'10 - Mit. Risk Register'!A49) -> EP-1 | AU199: =IF('10 - Mit. Risk Register'!B49="","",'10 - Mit. Risk Register'!B49) -> Challenge to environmental determination or permits | AV199: =IF('10 - Mit. Risk Register'!C49="","",'10 - Mit. Risk Register'!C49) -> No Impact | AW199: =IF('10 - Mit. Risk Register'!H49="", "", '10 - Mit. Risk Register'!H49) -> 0 | AX199: =IF('10 - Mit. Risk Register'!H49="","",'10 - Mit. Risk Register'!H49) -> 0 | AY199: 0 | AZ199: =IF('10 - Mit. Risk Register'!I49="","",'10 - Mit. Risk Register'!I49) -> 0 | BA199: =IF('10 - Mit. Risk Register'!J49="","",'10 - Mit. Risk Register'!J49) -> 
AT200: =IF('10 - Mit. Risk Register'!A50="","",'10 - Mit. Risk Register'!A50) -> RR-4 | AU200: =IF('10 - Mit. Risk Register'!B50="","",'10 - Mit. Risk Register'!B50) -> Additional relocation or demolition required | AV200: =IF('10 - Mit. Risk Register'!C50="","",'10 - Mit. Risk Register'!C50) -> No Impact | AW200: =IF('10 - Mit. Risk Register'!H50="", "", '10 - Mit. Risk Register'!H50) -> 0 | AX200: =IF('10 - Mit. Risk Register'!H50="","",'10 - Mit. Risk Register'!H50) -> 0 | AY200: 0 | AZ200: =IF('10 - Mit. Risk Register'!I50="","",'10 - Mit. Risk Register'!I50) -> 0 | BA200: =IF('10 - Mit. Risk Register'!J50="","",'10 - Mit. Risk Register'!J50) -> 
AT201: =IF('10 - Mit. Risk Register'!A51="","",'10 - Mit. Risk Register'!A51) -> RR-5 | AU201: =IF('10 - Mit. Risk Register'!B51="","",'10 - Mit. Risk Register'!B51) -> Additional ROW required for planned project | AV201: =IF('10 - Mit. Risk Register'!C51="","",'10 - Mit. Risk Register'!C51) -> No Impact | AW201: =IF('10 - Mit. Risk Register'!H51="", "", '10 - Mit. Risk Register'!H51) -> 0 | AX201: =IF('10 - Mit. Risk Register'!H51="","",'10 - Mit. Risk Register'!H51) -> 0 | AY201: 0 | AZ201: =IF('10 - Mit. Risk Register'!I51="","",'10 - Mit. Risk Register'!I51) -> 0 | BA201: =IF('10 - Mit. Risk Register'!J51="","",'10 - Mit. Risk Register'!J51) -> 
AT202: =IF('10 - Mit. Risk Register'!A52="","",'10 - Mit. Risk Register'!A52) -> RR-9 | AU202: =IF('10 - Mit. Risk Register'!B52="","",'10 - Mit. Risk Register'!B52) -> Other utility relocations not completed on time | AV202: =IF('10 - Mit. Risk Register'!C52="","",'10 - Mit. Risk Register'!C52) -> No Impact | AW202: =IF('10 - Mit. Risk Register'!H52="", "", '10 - Mit. Risk Register'!H52) -> 0 | AX202: =IF('10 - Mit. Risk Register'!H52="","",'10 - Mit. Risk Register'!H52) -> 0 | AY202: 0 | AZ202: =IF('10 - Mit. Risk Register'!I52="","",'10 - Mit. Risk Register'!I52) -> 0 | BA202: =IF('10 - Mit. Risk Register'!J52="","",'10 - Mit. Risk Register'!J52) -> 
AT203: =IF('10 - Mit. Risk Register'!A53="","",'10 - Mit. Risk Register'!A53) -> RR-10 | AU203: =IF('10 - Mit. Risk Register'!B53="","",'10 - Mit. Risk Register'!B53) -> Damage existing utility or encounter unanticipated utility during construction | AV203: =IF('10 - Mit. Risk Register'!C53="","",'10 - Mit. Risk Register'!C53) -> No Impact | AW203: =IF('10 - Mit. Risk Register'!H53="", "", '10 - Mit. Risk Register'!H53) -> 0 | AX203: =IF('10 - Mit. Risk Register'!H53="","",'10 - Mit. Risk Register'!H53) -> 0 | AY203: 0 | AZ203: =IF('10 - Mit. Risk Register'!I53="","",'10 - Mit. Risk Register'!I53) -> 0 | BA203: =IF('10 - Mit. Risk Register'!J53="","",'10 - Mit. Risk Register'!J53) -> 
AT204: =IF('10 - Mit. Risk Register'!A54="","",'10 - Mit. Risk Register'!A54) -> PR-3 | AU204: =IF('10 - Mit. Risk Register'!B54="","",'10 - Mit. Risk Register'!B54) -> Material-supply issues | AV204: =IF('10 - Mit. Risk Register'!C54="","",'10 - Mit. Risk Register'!C54) -> No Impact | AW204: =IF('10 - Mit. Risk Register'!H54="", "", '10 - Mit. Risk Register'!H54) -> 0 | AX204: =IF('10 - Mit. Risk Register'!H54="","",'10 - Mit. Risk Register'!H54) -> 0 | AY204: 0 | AZ204: =IF('10 - Mit. Risk Register'!I54="","",'10 - Mit. Risk Register'!I54) -> 0 | BA204: =IF('10 - Mit. Risk Register'!J54="","",'10 - Mit. Risk Register'!J54) -> 
AT205: =IF('10 - Mit. Risk Register'!A55="","",'10 - Mit. Risk Register'!A55) -> PR-4 | AU205: =IF('10 - Mit. Risk Register'!B55="","",'10 - Mit. Risk Register'!B55) -> Change in project delivery method | AV205: =IF('10 - Mit. Risk Register'!C55="","",'10 - Mit. Risk Register'!C55) -> No Impact | AW205: =IF('10 - Mit. Risk Register'!H55="", "", '10 - Mit. Risk Register'!H55) -> 0 | AX205: =IF('10 - Mit. Risk Register'!H55="","",'10 - Mit. Risk Register'!H55) -> 0 | AY205: 0 | AZ205: =IF('10 - Mit. Risk Register'!I55="","",'10 - Mit. Risk Register'!I55) -> 0 | BA205: =IF('10 - Mit. Risk Register'!J55="","",'10 - Mit. Risk Register'!J55) -> 
AT206: =IF('10 - Mit. Risk Register'!A56="","",'10 - Mit. Risk Register'!A56) -> PR-5 | AU206: =IF('10 - Mit. Risk Register'!B56="","",'10 - Mit. Risk Register'!B56) -> Accelerate pre-construction activities to reach NTP sooner | AV206: =IF('10 - Mit. Risk Register'!C56="","",'10 - Mit. Risk Register'!C56) -> No Impact | AW206: =IF('10 - Mit. Risk Register'!H56="", "", '10 - Mit. Risk Register'!H56) -> 0 | AX206: =IF('10 - Mit. Risk Register'!H56="","",'10 - Mit. Risk Register'!H56) -> 0 | AY206: 0 | AZ206: =IF('10 - Mit. Risk Register'!I56="","",'10 - Mit. Risk Register'!I56) -> 0 | BA206: =IF('10 - Mit. Risk Register'!J56="","",'10 - Mit. Risk Register'!J56) -> 
... 231 more rows
